Workbook

Sheet Title List
L1: SHIP TO INFORMATION:
J2: Organization:
J3: Contact Name:
J4: Address:
J5: City, State, Zip:
J6: eMail Address:
J7: Phone Number:
U8: Total HC | W8: Total EB | AF8: Total Bundle | AJ8: Total
L9: BILL TO INFORMATION: | P9: Check if same as Ship To | U9: =Y9935 -> 0 | W9: =Z9935 -> 0 | AF9: =AA9935 -> 0 | AJ9: =AB9935 -> 0
J10: Organization: | U10: =AC9935 -> 0 | W10: =AD9935 -> 0 | AF10: =AE9935 -> 0 | AJ10: =AE9936 -> 0
D11: Sales Representative: | J11: Contact Name:
D12: PO Number: | J12: Address: | U12: Does your order qualify for a promotional item?
D13: Need by Date: | J13: City, State, Zip: | U13: See available promotions and eligiblity
D14: Backorders Accepted: | J14: eMail Address: | U14: on the Promotions tab!
J15: Phone Number:
J16: Indiana Rep: | L16: mikewhite@booklookindiana.com
A17: New | B17: eBook ISBN | D17: Print ISBN | F17: Title | J17: Series | N17: HC List Price | O17: HC S/L Price | P17: Multi User eBook Price | Q17: Bundle Price | S17: Print Qty | U17: Multi User eBook Qty | W17: Bundle Qty | Y17: HIDDEN HC Qty | Z17: HIDDEN EB Qty | AA17: HIDDEN BUNDLE QTY (HC + EB) | AB17: HIDDEN QTY TOTAL | AC17: HIDDEN HC TOTAL | AD17: HIDDEN EB TOTAL | AE17: HIDDEN BUNDLE TOTAL | AF17: Total | AH17: Mark X for FREE Book | AJ17: Custom Field | AL17: Season Released | AM17: Publishers' Catalog Page Number | AN17: Copyright Year | AO17: Publisher | AP17: Imprint | AQ17: AR Level | AR17: Subject | AS17: Language | AT17: Binding | AU17: Page Count | AV17: Guided Reading Level | AW17: Lexile Level | AX17: Reading Level (by Grade) | AY17: Dewey Number | AZ17: Author
F19: Complete Series of 3 | J19: Amicus Ink Board Books | N19: =SUM(N20) -> 0 | O19: =SUM(O20) -> 9.99 | P19: 25.7 | Q19: 14.99
B20: 9781681525129 | D20: 9781681521947 | F20: It's Not the Baby | J20: Amicus Ink Board Books | N20: 0 | O20: 9.99 | P20: 25.7 | Q20: =O20+5 -> 14.99 | S20: =S19 -> 0 | U20: =U19 -> 0 | W20: =W19 -> 0 | Y20: =S20 -> 0 | Z20: =U20 -> 0 | AA20: =W20*2 -> 0 | AB20: =Y20+Z20+AA20 -> 0 | AC20: =S20*O20 -> 0 | AD20: =U20*P20 -> 0 | AE20: =W20*Q20 -> 0 | AF20: =IF(AH20=FALSE,AC20+AD20+AE20,0) -> 0 | AL20: Fall 2017 | AM20: Insert 10 | AN20: 2018 | AO20: Amicus | AP20: Amicus Ink | AQ20: Not Quizzable | AR20: Fiction | AS20: English | AT20: Board Book | AU20: 14 | AX20: 4 - 8 | AY20: E | AZ20: J. Patrick Lewis & Leigh Lewis
B21: 9781681525150 | D21: 9781681524092 | F21: It's Not the Puppy | J21: Amicus Ink Board Books | N21: 0 | O21: 9.99 | P21: 25.7 | Q21: =O21+5 -> 14.99 | S21: =S19 -> 0 | U21: =U19 -> 0 | W21: =W19 -> 0 | Y21: =S21 -> 0 | Z21: =U21 -> 0 | AA21: =W21*2 -> 0 | AB21: =Y21+Z21+AA21 -> 0 | AC21: =S21*O21 -> 0 | AD21: =U21*P21 -> 0 | AE21: =W21*Q21 -> 0 | AF21: =IF(AH21=FALSE,AC21+AD21+AE21,0) -> 0 | AL21: Spring 2019 | AM21: Insert 10 | AN21: 2019 | AO21: Amicus | AP21: Amicus Ink | AQ21: Not Quizzable | AR21: Fiction | AS21: English | AT21: Board Book | AU21: 14 | AX21: 4 - 8 | AY21: E | AZ21: J. Patrick Lewis & Leigh Lewis
A22: NEW | B22: 9781681525679 | D22: 9781681525037 | F22: Who is Making a Mess? | J22: Amicus Ink Board Books | N22: 0 | O22: 8.99 | P22: 9.99 | Q22: =O22+5 -> 13.99 | S22: =S19 -> 0 | U22: =U19 -> 0 | W22: =W19 -> 0 | Y22: =S22 -> 0 | Z22: =U22 -> 0 | AA22: =W22*2 -> 0 | AB22: =Y22+Z22+AA22 -> 0 | AC22: =S22*O22 -> 0 | AD22: =U22*P22 -> 0 | AE22: =W22*Q22 -> 0 | AF22: =IF(AH22=FALSE,AC22+AD22+AE22,0) -> 0 | AL22: Spring 2020 | AM22: Insert 3 | AN22: 2020 | AO22: Amicus | AP22: Amicus Ink | AQ22: Not Quizzable | AR22: Fiction | AS22: English | AT22: Board Book | AU22: 20 | AX22: 4 - 8 | AY22: DDC [E]--dc23 | AZ22: Maria D’Haene
F24: Complete Series of 6 | J24: Little Animal Friends | N24: =SUM(N25:N30) -> 0 | O24: =SUM(O25:O30) -> 53.94 | P24: 77.16 | Q24: 83.94
A25: NEW | B25: 9781681525648 | D25: 9781681525631 | F25: Little Hippo | J25: Little Animal Friends (Board Book) | N25: 0 | O25: 8.99 | P25: 12.86 | Q25: =O25+5 -> 13.99 | S25: =S24 -> 0 | U25: =U24 -> 0 | W25: =W24 -> 0 | Y25: =S25 -> 0 | Z25: =U25 -> 0 | AA25: =W25*2 -> 0 | AB25: =Y25+Z25+AA25 -> 0 | AC25: =S25*O25 -> 0 | AD25: =U25*P25 -> 0 | AE25: =W25*Q25 -> 0 | AF25: =IF(AH25=FALSE,AC25+AD25+AE25,0) -> 0 | AL25: Spring 2020 | AM25: Insert 4 - 5 | AN25: 2020 | AO25: Amicus | AP25: Amicus Ink | AQ25: Not Quizzable | AR25: Animals & Nature | AS25: English | AT25: Board Book | AU25: 20 | AX25: PreK - 1 | AY25: DDC [E]--dc23 | AZ25: Julie Abery
A26: NEW | B26: 9781681525662 | D26: 9781681525655 | F26: Little Monkey | J26: Little Animal Friends (Board Book) | N26: 0 | O26: 8.99 | P26: 12.86 | Q26: 13.99 | S26: =S24 -> 0 | U26: =U24 -> 0 | W26: =W24 -> 0 | Y26: 0 | Z26: 0 | AA26: 0 | AB26: 0 | AC26: 0 | AD26: 0 | AE26: 0 | AF26: 0 | AL26: Spring 2020 | AM26: Insert 4 - 5 | AN26: 2020 | AO26: Amicus | AP26: Amicus Ink | AQ26: Not Quizzable | AR26: Animals & Nature | AS26: English | AT26: Board Book | AU26: 20 | AX26: PreK - 1 | AY26: DDC [E]--dc23 | AZ26: Julie Abery
A27: NEW | B27: 9781681525174 | D27: 9781681524146 | F27: Little Panda | J27: Little Animal Friends (Board Book) | N27: 0 | O27: 8.99 | P27: 12.86 | Q27: 13.99 | S27: =S24 -> 0 | U27: =U24 -> 0 | W27: =W24 -> 0 | Y27: 0 | Z27: 0 | AA27: 0 | AB27: 0 | AC27: 0 | AD27: 0 | AE27: 0 | AF27: 0 | AL27: Spring 2019 | AM27: Insert 4 - 5 | AN27: 2019 | AO27: Amicus | AP27: Amicus Ink | AQ27: Not Quizzable | AR27: Animals & Nature | AS27: English | AT27: Board Book | AU27: 20 | AX27: PreK - 1 | AY27: E | AZ27: Julie Abery
A28: NEW | B28: 9781681527437 | D28: 9781681527413 | F28: Little Penguin | J28: Little Animal Friends (Board Book) | N28: 0 | O28: 8.99 | P28: 12.86 | Q28: 13.99 | S28: =S24 -> 0 | U28: =U24 -> 0 | W28: =W24 -> 0 | Y28: 0 | Z28: 0 | AA28: 0 | AB28: 0 | AC28: 0 | AD28: 0 | AE28: 0 | AF28: 0 | AL28: Spring 2021 | AM28: Insert 4 - 5 | AN28: 2021 | AO28: Amicus | AP28: Amicus Ink | AR28: Life Science | AS28: English | AT28: Board Book | AU28: 20 | AV28: na | AX28: PreK & Up | AZ28: Julie Abery
A29: NEW | B29: 9781681525167 | D29: 9781681524139 | F29: Little Tiger | J29: Little Animal Friends (Board Book) | N29: 0 | O29: 8.99 | P29: 12.86 | Q29: 13.99 | S29: =S24 -> 0 | U29: =U24 -> 0 | W29: =W24 -> 0 | Y29: 0 | Z29: 0 | AA29: 0 | AB29: 0 | AC29: 0 | AD29: 0 | AE29: 0 | AF29: 0 | AL29: Spring 2019 | AM29: Insert 4 - 5 | AN29: 2019 | AO29: Amicus | AP29: Amicus Ink | AQ29: Not Quizzable | AR29: Animals & Nature | AS29: English | AT29: Board Book | AU29: 20 | AX29: PreK - 1 | AY29: E | AZ29: Julie Abery
A30: NEW | B30: 9781681527444 | D30: 9781681527420 | F30: Little Zebra | J30: Little Animal Friends (Board Book) | N30: 0 | O30: 8.99 | P30: 12.86 | Q30: =O30+5 -> 13.99 | S30: =S24 -> 0 | U30: =U24 -> 0 | W30: =W24 -> 0 | Y30: 0 | Z30: 0 | AA30: 0 | AB30: 0 | AC30: 0 | AD30: 0 | AE30: 0 | AF30: 0 | AL30: Spring 2021 | AM30: Insert 4 - 5 | AN30: 2021 | AO30: Amicus | AP30: Amicus Ink | AR30: Life Science | AS30: English | AT30: Board Book | AU30: 20 | AV30: na | AX30: PreK & Up | AZ30: Julie Abery
F32: Complete Series of 8 | J32: The Amicus Book of... | N32: =SUM(N33:N40) -> 0 | O32: 72.92 | P32: 0 | Q32: 0
B33: Not Available | D33: 9781681525693 | F33: The Amicus Book of 123 | J33: The Amicus Book of…(Board Book) | N33: 0 | O33: 8.99 | P33: 0 | Q33: 0 | S33: =S32 -> 0 | Y33: =S33 -> 0 | Z33: =U33 -> 0 | AA33: =W33*2 -> 0 | AB33: =Y33+Z33+AA33 -> 0 | AC33: =S33*O33 -> 0 | AD33: =U33*P33 -> 0 | AE33: =W33*Q33 -> 0 | AF33: =IF(AH33=FALSE,AC33+AD33+AE33,0) -> 0 | AL33: Fall 2019 | AM33: Insert 6 - 7 | AN33: 2019 | AO33: Amicus | AP33: Amicus Ink | AQ33: Not Quizzable | AR33: Fiction | AS33: English | AT33: Board Book | AU33: 10 | AX33: PreK - 1 | AY33: 513.2/11--dc23 | AZ33: Isobel Lundie
B34: Not Available | D34: 9781681525686 | F34: The Amicus Book of ABC | J34: The Amicus Book of…(Board Book) | N34: 0 | O34: 8.99 | P34: 0 | Q34: 0 | S34: =S32 -> 0 | Y34: =S34 -> 0 | Z34: =U34 -> 0 | AA34: =W34*2 -> 0 | AB34: =Y34+Z34+AA34 -> 0 | AC34: =S34*O34 -> 0 | AD34: =U34*P34 -> 0 | AE34: =W34*Q34 -> 0 | AF34: =IF(AH34=FALSE,AC34+AD34+AE34,0) -> 0 | AL34: Fall 2019 | AM34: Insert 6 - 7 | AN34: 2019 | AO34: Amicus | AP34: Amicus Ink | AQ34: Not Quizzable | AR34: Fiction | AS34: English | AT34: Board Book | AU34: 26 | AX34: PreK - 1 | AY34: E | AZ34: Isobel Lundie
A35: NEW | B35: Not Available | D35: 9781681527574 | F35: The Amicus Book of Animal Homes | J35: The Amicus Book of…(Board Book) | N35: 0 | O35: 9.99 | P35: 0 | Q35: 0 | S35: =S32 -> 0 | Y35: =S35 -> 0 | Z35: =U35 -> 0 | AA35: =W35*2 -> 0 | AB35: =Y35+Z35+AA35 -> 0 | AC35: =S35*O35 -> 0 | AD35: =U35*P35 -> 0 | AE35: =W35*Q35 -> 0 | AF35: =IF(AH35=FALSE,AC35+AD35+AE35,0) -> 0 | AL35: Fall 2020 | AM35: Insert 6 - 7 | AN35: 2020 | AO35: Amicus | AP35: Amicus Ink | AQ35: Not Quizzable | AR35: Fiction | AS35: English | AT35: Board Book | AU35: 10 | AX35: PreK - 1 | AY35: 591.56/4 | AZ35: Isobel Lundie
B36: Not Available | D36: 9781681525709 | F36: The Amicus Book of Animals | J36: The Amicus Book of…(Board Book) | N36: 0 | O36: 8.99 | P36: 0 | Q36: 0 | S36: =S32 -> 0 | Y36: =S36 -> 0 | Z36: =U36 -> 0 | AA36: =W36*2 -> 0 | AB36: =Y36+Z36+AA36 -> 0 | AC36: =S36*O36 -> 0 | AD36: =U36*P36 -> 0 | AE36: =W36*Q36 -> 0 | AF36: =IF(AH36=FALSE,AC36+AD36+AE36,0) -> 0 | AL36: Spring 2020 | AM36: Insert 6 - 7 | AN36: 2020 | AO36: Amicus | AP36: Amicus Ink | AQ36: Not Quizzable | AR36: Fiction | AS36: English | AT36: Board Book | AU36: 10 | AX36: PreK - 1 | AY36: 590--dc23 | AZ36: Isobel Lundie
A37: NEW | B37: Not Available | D37: 9781681527604 | F37: The Amicus Book of Bugs | J37: The Amicus Book of…(Board Book) | N37: 0 | O37: 8.99 | P37: 0 | Q37: 0 | S37: =S32 -> 0 | Y37: =S37 -> 0 | Z37: =U37 -> 0 | AA37: =W37*2 -> 0 | AB37: =Y37+Z37+AA37 -> 0 | AC37: =S37*O37 -> 0 | AD37: =U37*P37 -> 0 | AE37: =W37*Q37 -> 0 | AF37: =IF(AH37=FALSE,AC37+AD37+AE37,0) -> 0 | AL37: Spring 2021 | AM37: Insert 6 - 7 | AN37: 2021 | AO37: Amicus | AP37: Amicus Ink | AR37: Earth and Space Science | AS37: English | AT37: Board Book | AU37: 10 | AV37: na | AX37: PreK & Up | AY37: 595.7 | AZ37: Isobel Lundie
B38: Not Available | D38: 9781681525716 | F38: The Amicus Book of Colors | J38: The Amicus Book of…(Board Book) | N38: 0 | O38: 8.99 | P38: 0 | Q38: 0 | S38: =S32 -> 0 | Y38: 0 | Z38: 0 | AA38: 0 | AB38: 0 | AC38: 0 | AD38: 0 | AE38: 0 | AF38: 0 | AL38: Spring 2020 | AM38: Insert 6 - 7 | AN38: 2020 | AO38: Amicus | AP38: Amicus Ink | AQ38: Not Quizzable | AR38: Fiction | AS38: English | AT38: Board Book | AU38: 10 | AX38: PreK - 1 | AY38: 535.6--dc23 | AZ38: Isobel Lundie
A39: NEW | B39: Not Available | D39: 9781681527581 | F39: The Amicus Book of Earth | J39: The Amicus Book of…(Board Book) | N39: 0 | O39: 8.99 | P39: 0 | Q39: 0 | S39: =S32 -> 0 | Y39: 0 | Z39: 0 | AA39: 0 | AB39: 0 | AC39: 0 | AD39: 0 | AE39: 0 | AF39: 0 | AL39: Fall 2020 | AM39: Insert 6 - 7 | AN39: 2020 | AO39: Amicus | AP39: Amicus Ink | AQ39: Not Quizzable | AR39: Fiction | AS39: English | AT39: Board Book | AU39: 10 | AX39: PreK - 1 | AZ39: Isobel Lundie
A40: NEW | B40: Not Available | D40: 9781681527598 | F40: The Amicus Book of Nature | J40: The Amicus Book of…(Board Book) | N40: 0 | O40: 8.99 | P40: 0 | Q40: 0 | S40: =S32 -> 0 | Y40: 0 | Z40: 0 | AA40: 0 | AB40: 0 | AC40: 0 | AD40: 0 | AE40: 0 | AF40: 0 | AL40: Spring 2021 | AM40: Insert 6 - 7 | AN40: 2021 | AO40: Amicus | AP40: Amicus Ink | AR40: Earth and Space Science | AS40: English | AT40: Board Book | AU40: 10 | AV40: na | AX40: PreK & Up | AY40: 508 | AZ40: Isobel Lundie
F42: Complete Series of 13 | J42: Amicus Ink | N42: =SUM(N43:N54) -> 0 | O42: =SUM(O43:O54) -> 214.88 | P42: =SUM(P43:P54) -> 282.7 | Q42: =SUM(Q43:Q54) -> 251.89
B43: 9781681525204 | D43: 9781681524986 | F43: A Tiny Brown Monkey on the Big Blue Earth | J43: Amicus Ink Picture Books | N43: 0 | O43: 17.99 | P43: 25.7 | Q43: =O43+5 -> 22.99 | S43: =S42 -> 0 | U43: =U42 -> 0 | W43: =W42 -> 0 | Y43: =S43 -> 0 | Z43: =U43 -> 0 | AA43: =W43*2 -> 0 | AB43: =Y43+Z43+AA43 -> 0 | AC43: =S43*O43 -> 0 | AD43: =U43*P43 -> 0 | AE43: =W43*Q43 -> 0 | AF43: =IF(AH43=FALSE,AC43+AD43+AE43,0) -> 0 | AL43: Fall 2019 | AM43: Insert 9 | AN43: 2019 | AO43: Amicus | AP43: Amicus Ink | AQ43: 2.8 | AR43: Fiction | AS43: English | AT43: Hardcover with Jacket | AU43: 32 | AX43: PreK – 2 | AY43: E | AZ43: Tory Christie
B44: 9781681525143 | D44: 9781681524085 | F44: Crane & Crane | J44: Amicus Ink Picture Books | N44: 0 | O44: 17.99 | P44: 25.7 | Q44: =O44+5 -> 22.99 | S44: =S42 -> 0 | U44: =U42 -> 0 | W44: =W42 -> 0 | Y44: 0 | Z44: 0 | AA44: 0 | AB44: 0 | AC44: 0 | AD44: 0 | AE44: 0 | AF44: 0 | AL44: Spring 2019 | AM44: Insert 9 | AN44: 2019 | AO44: Amicus | AP44: Amicus Ink | AR44: Fiction | AS44: English | AT44: Hardcover with Jacket | AU44: 32 | AX44: PreK – 2 | AY44: E | AZ44: Linda Joy Singleton
B45: Not Available | D45: 9781681521930 | F45: Daddy Cuddle | J45: Amicus Ink Picture Books | N45: 0 | O45: 17.99 | P45: 0 | Q45: 0 | S45: =S42 -> 0 | U45: =U42 -> 0 | W45: =W42 -> 0 | Y45: 0 | Z45: 0 | AA45: 0 | AB45: 0 | AC45: 0 | AD45: 0 | AE45: 0 | AF45: 0 | AL45: Spring 2017 | AM45: Insert 9 | AN45: 2017 | AO45: Amicus | AP45: Amicus Ink | AR45: Fiction | AS45: English | AT45: Hardcover with Jacket | AU45: 32 | AX45: PreK – 2 | AY45: E | AZ45: Kate Mayes
A46: NEW | B46: 9781681525051 | D46: 9781681525020 | F46: Extraordinary Ordinary Ella | J46: Amicus Ink Picture Books | N46: 0 | O46: 17.99 | P46: 25.7 | Q46: =O46+5 -> 22.99 | S46: =S42 -> 0 | U46: =U42 -> 0 | W46: =W42 -> 0 | Y46: 0 | Z46: 0 | AA46: 0 | AB46: 0 | AC46: 0 | AD46: 0 | AE46: 0 | AF46: 0 | AL46: Spring 2020 | AM46: Insert 8 | AN46: 2020 | AO46: Amicus | AP46: Amicus Ink | AQ46: Not Quizzable | AR46: Fiction | AS46: English | AT46: Hardcover with Jacket | AU46: 32 | AX46: PreK – 2 | AY46: DDC [E]--dc23 | AZ46: Amber Hendricks
B47: 9781681525112 | D47: 9781681522395 | F47: Grow | J47: Amicus Ink Picture Books | N47: 0 | O47: 17.99 | P47: 25.7 | Q47: 22.99 | S47: =S42 -> 0 | U47: =U42 -> 0 | W47: =W42 -> 0 | Y47: 0 | Z47: 0 | AA47: 0 | AB47: 0 | AC47: 0 | AD47: 0 | AE47: 0 | AF47: 0 | AL47: Spring 2018 | AM47: Insert 10 | AN47: 2018 | AO47: Amicus | AP47: Amicus Ink | AR47: Fiction | AS47: English | AT47: Hardcover with Jacket | AU47: 32 | AX47: PreK – 2 | AY47: E | AZ47: Cynthia Platt
B48: 9781681525044 | D48: 9781681525013 | F48: I've Got a Tail!: Terrific Tails of the Animal World | J48: Amicus Ink Picture Books | N48: 0 | O48: 17.99 | P48: 25.7 | Q48: 22.99 | S48: =S42 -> 0 | U48: =U42 -> 0 | W48: =W42 -> 0 | Y48: 0 | Z48: 0 | AA48: 0 | AB48: 0 | AC48: 0 | AD48: 0 | AE48: 0 | AF48: 0 | AL48: Spring 2020 | AM48: Insert 10 | AN48: 2020 | AO48: Amicus | AP48: Amicus Ink | AQ48: Not Quizzable | AR48: Fiction | AS48: English | AT48: Hardcover with Jacket | AU48: 32 | AX48: PreK – 2 | AY48: DDC 591.47--dc23 | AZ48: Julie Murphy
B49: 9781681525136 | D49: 9781681521954 | F49: I've Got Feet: Fantastical Feet of the Animal World | J49: Amicus Ink Picture Books | N49: 0 | O49: 17.99 | P49: 25.7 | Q49: 22.99 | S49: =S42 -> 0 | U49: =U42 -> 0 | W49: =W42 -> 0 | Y49: 0 | Z49: 0 | AA49: 0 | AB49: 0 | AC49: 0 | AD49: 0 | AE49: 0 | AF49: 0 | AL49: Spring 2017 | AM49: Insert 10 | AN49: 2017 | AO49: Amicus | AP49: Amicus Ink | AQ49: 2.7 | AR49: Fiction | AS49: English | AT49: Hardcover with Jacket | AU49: 32 | AX49: PreK – 2 | AY49: 591.47/9 | AZ49: Julie Murphy
B50: 9781681525068 | D50: 9781681524047 | F50: I’ve Got Eyes!: Exceptional Eyes of the Animal World | J50: Amicus Ink Picture Books | N50: 0 | O50: 17.99 | P50: 25.7 | Q50: 22.99 | S50: =S42 -> 0 | U50: =U42 -> 0 | W50: =W42 -> 0 | Y50: 0 | Z50: 0 | AA50: 0 | AB50: 0 | AC50: 0 | AD50: 0 | AE50: 0 | AF50: 0 | AL50: Fall 2018 | AM50: Insert 10 | AN50: 2018 | AO50: Amicus | AP50: Amicus Ink | AR50: Fiction | AS50: English | AT50: Hardcover with Jacket | AU50: 32 | AX50: PreK – 2 | AY50: 591.4/4 | AZ50: Julie Murphy
B51: 9781681525105 | D51: 9781681522029 | F51: Just My Style | J51: Amicus Ink Picture Books | N51: 0 | O51: 17.99 | P51: 25.7 | Q51: 22.99 | S51: =S42 -> 0 | U51: =U42 -> 0 | W51: =W42 -> 0 | Y51: 0 | Z51: 0 | AA51: 0 | AB51: 0 | AC51: 0 | AD51: 0 | AE51: 0 | AF51: 0 | AL51: Spring 2018 | AM51: Website | AN51: 2018 | AO51: Amicus | AP51: Amicus Ink | AR51: Fiction | AS51: English | AT51: Hardcover with Jacket
B52: 9781681525198 | D52: 9781681524153 | F52: No Hugs! | J52: Amicus Ink Picture Books | N52: 0 | O52: 16.99 | P52: 25.7 | Q52: 21.99 | S52: =S42 -> 0 | U52: =U42 -> 0 | W52: =W42 -> 0 | Y52: 0 | Z52: 0 | AA52: 0 | AB52: 0 | AC52: 0 | AD52: 0 | AE52: 0 | AF52: 0 | AL52: Fall 2019 | AM52: Insert 9 | AN52: 2019 | AO52: Amicus | AP52: Amicus Ink | AR52: Fiction | AS52: English | AT52: Hardcover with Jacket | AU52: 24 | AX52: PreK – 2 | AY52: E | AZ52: Deirdre A. Prischmann
B53: 9781681525181 | D53: 9781681522371 | F53: The Mighty Steam Engine | J53: Amicus Ink Picture Books | N53: 0 | O53: 17.99 | P53: 25.7 | Q53: 22.99 | S53: =S42 -> 0 | U53: =U42 -> 0 | W53: =W42 -> 0 | Y53: 0 | Z53: 0 | AA53: 0 | AB53: 0 | AC53: 0 | AD53: 0 | AE53: 0 | AF53: 0 | AL53: Fall 2019 | AM53: Insert 9 | AN53: 2019 | AO53: Amicus | AP53: Amicus Ink | AQ53: 4.9 | AR53: Fiction | AS53: English | AT53: Hardcover with Jacket | AU53: 32 | AX53: PreK – 2 | AY53: E | AZ53: Yvonne Ng
B54: 9781681525075 | D54: 9781681524054 | F54: Twinkle, Twinkle, Little Lamb | J54: Amicus Ink Picture Books | N54: 0 | O54: 17.99 | P54: 25.7 | Q54: 22.99 | S54: =S42 -> 0 | U54: =U42 -> 0 | W54: =W42 -> 0 | Y54: 0 | Z54: 0 | AA54: 0 | AB54: 0 | AC54: 0 | AD54: 0 | AE54: 0 | AF54: 0 | AL54: Fall 2018 | AM54: Insert 9 | AN54: 2018 | AO54: Amicus | AP54: Amicus Ink | AR54: Fiction | AS54: English | AT54: Hardcover with Jacket | AU54: 32 | AX54: PreK – 2 | AY54: E | AZ54: Bridget Heos
F56: Complete Series of 4 | J56: Riddle Diddle Dumplings | N56: =SUM(N57:N60) -> 0 | O56: 39.96 | P56: 39.96 | Q56: 59.96
B57: 9781681525082 | D57: 9781681524061 | F57: Riddle Diddle Farm | J57: Riddle Diddle Dumplings (Board Book) | N57: 0 | O57: 9.99 | P57: 9.99 | Q57: =O57+5 -> 14.99 | S57: =S56 -> 0 | U57: =U56 -> 0 | W57: =W56 -> 0 | Y57: =S57 -> 0 | Z57: =U57 -> 0 | AA57: =W57*2 -> 0 | AB57: =Y57+Z57+AA57 -> 0 | AC57: =S57*O57 -> 0 | AD57: =U57*P57 -> 0 | AE57: =W57*Q57 -> 0 | AF57: =IF(AH57=FALSE,AC57+AD57+AE57,0) -> 0 | AL57: Fall 2018 | AM57: Insert 11 | AN57: 2018 | AO57: Amicus | AP57: Amicus Ink | AQ57: Not Quizzable | AR57: Animals & Nature | AS57: English | AT57: Board Book | AU57: 10 | AX57: PreK - 1 | AY57: 636 | AZ57: Diane Z. Shore and Deanna Calvert
B58: 9781681525211 | D58: 9781681524993 | F58: Riddle Diddle Ocean | J58: Riddle Diddle Dumplings (Board Book) | N58: 0 | O58: 9.99 | P58: 9.99 | Q58: =O58+5 -> 14.99 | S58: =S56 -> 0 | U58: =U56 -> 0 | W58: =W56 -> 0 | Y58: =S58 -> 0 | Z58: =U58 -> 0 | AA58: =W58*2 -> 0 | AB58: =Y58+Z58+AA58 -> 0 | AC58: =S58*O58 -> 0 | AD58: =U58*P58 -> 0 | AE58: =W58*Q58 -> 0 | AF58: =IF(AH58=FALSE,AC58+AD58+AE58,0) -> 0 | AL58: Fall 2019 | AM58: Insert 11 | AN58: 2019 | AO58: Amicus | AP58: Amicus Ink | AQ58: Not Quizzable | AR58: Animals & Nature | AS58: English | AT58: Board Book | AU58: 10 | AV58: na | AX58: PreK - 1 | AY58: 591.77--dc23 | AZ58: Diane Z. Shore and Deanna Calvert
B59: 9781681525228 | D59: 9781681525006 | F59: Riddle Diddle Rainforest | J59: Riddle Diddle Dumplings (Board Book) | N59: 0 | O59: 9.99 | P59: 9.99 | Q59: 14.99 | S59: =S56 -> 0 | U59: =U56 -> 0 | W59: =W56 -> 0 | Y59: =S59 -> 0 | Z59: =U59 -> 0 | AA59: =W59*2 -> 0 | AB59: =Y59+Z59+AA59 -> 0 | AC59: =S59*O59 -> 0 | AD59: =U59*P59 -> 0 | AE59: =W59*Q59 -> 0 | AF59: =IF(AH59=FALSE,AC59+AD59+AE59,0) -> 0 | AL59: Fall 2019 | AM59: Insert 11 | AN59: 2019 | AO59: Amicus | AP59: Amicus Ink | AQ59: Not Quizzable | AR59: Animals & Nature | AS59: English | AT59: Board Book | AU59: 10 | AV59: na | AX59: PreK - 1 | AY59: 591.734--dc23 | AZ59: Diane Z. Shore and Deanna Calvert
B60: 9781681525099 | D60: 9781681524078 | F60: Riddle Diddle Safari | J60: Riddle Diddle Dumplings (Board Book) | N60: 0 | O60: 9.99 | P60: 9.99 | Q60: 14.99 | S60: =S56 -> 0 | U60: =U56 -> 0 | W60: =W56 -> 0 | Y60: =S60 -> 0 | Z60: =U60 -> 0 | AA60: =W60*2 -> 0 | AB60: =Y60+Z60+AA60 -> 0 | AC60: =S60*O60 -> 0 | AD60: =U60*P60 -> 0 | AE60: =W60*Q60 -> 0 | AF60: =IF(AH60=FALSE,AC60+AD60+AE60,0) -> 0 | AL60: Fall 2018 | AM60: Insert 11 | AN60: 2018 | AO60: Amicus | AP60: Amicus Ink | AQ60: Not Quizzable | AR60: Animals & Nature | AS60: English | AT60: Board Book | AU60: 10 | AX60: PreK - 1 | AY60: 591.96 | AZ60: Diane Z. Shore and Deanna Calvert
F62: Complete Series of 4 | J62: First Words and Pictures | N62: =SUM(N63:N65) -> 0 | O62: =SUM(O63:O65) -> 29.97 | P62: =SUM(P63:P65) -> 0 | Q62: =SUM(Q63:Q65) -> 0
B63: Not Available | D63: 9781681524108 | F63: Around Town | J63: First Words and Pictures (Board Book) | N63: 0 | O63: 9.99 | P63: 0 | Q63: 0 | S63: =S62 -> 0 | Y63: =S63 -> 0 | Z63: =U63 -> 0 | AA63: =W63*2 -> 0 | AB63: =Y63+Z63+AA63 -> 0 | AC63: =S63*O63 -> 0 | AD63: =U63*P63 -> 0 | AE63: =W63*Q63 -> 0 | AF63: =IF(AH63=FALSE,AC63+AD63+AE63,0) -> 0 | AL63: Spring 2018 | AM63: Insert 11 | AN63: 2018 | AO63: Amicus | AP63: Amicus Ink | AQ63: Not Quizzable | AR63: Fiction | AS63: English | AT63: Board Book | AU63: 14 | AX63: PreK - 1 | AY63: 307.76 | AZ63: Margot Channing
B64: Not Available | D64: 9781681524115 | F64: At Home | J64: First Words and Pictures (Board Book) | N64: 0 | O64: 9.99 | P64: 0 | Q64: 0 | S64: =S62 -> 0 | Y64: =S64 -> 0 | Z64: =U64 -> 0 | AA64: =W64*2 -> 0 | AB64: =Y64+Z64+AA64 -> 0 | AC64: =S64*O64 -> 0 | AD64: =U64*P64 -> 0 | AE64: =W64*Q64 -> 0 | AF64: =IF(AH64=FALSE,AC64+AD64+AE64,0) -> 0 | AL64: Spring 2018 | AM64: Insert 11 | AN64: 2018 | AO64: Amicus | AP64: Amicus Ink | AQ64: Not Quizzable | AR64: Fiction | AS64: English | AT64: Board Book | AU64: 14 | AX64: PreK - 1 | AY64: 643/.6 | AZ64: Margot Channing
B65: Not Available | D65: 9781681522012 | F65: On the Go | J65: First Words and Pictures (Board Book) | N65: 0 | O65: 9.99 | P65: 0 | Q65: 0 | S65: =S62 -> 0 | Y65: =S65 -> 0 | Z65: =U65 -> 0 | AA65: =W65*2 -> 0 | AB65: =Y65+Z65+AA65 -> 0 | AC65: =S65*O65 -> 0 | AD65: =U65*P65 -> 0 | AE65: =W65*Q65 -> 0 | AF65: =IF(AH65=FALSE,AC65+AD65+AE65,0) -> 0 | AL65: Fall 2017 | AM65: Insert 11 | AN65: 2018 | AO65: Amicus | AP65: Amicus Ink | AQ65: Not Quizzable | AR65: Fiction | AS65: English | AT65: Board Book | AU65: 14 | AX65: PreK - 1 | AY65: 629.04/6 | AZ65: Margot Channing
F67: Complete Series of 21 | J67: Amicus Ink | N67: =SUM(N68:N85) -> 0 | O67: =SUM(O68:O85) -> 143.82 | P67: =SUM(P68:P85) -> 0 | Q67: =SUM(Q68:Q85) -> 0
B68: Not Available | D68: 9781681521251 | F68: Cows Moo | J68: Amicus Ink Board Books - Farm Animals | N68: 0 | O68: 7.99 | P68: 0 | Q68: 0 | S68: =S67 -> 0 | Y68: =S68 -> 0 | Z68: =U68 -> 0 | AA68: =W68*2 -> 0 | AB68: =Y68+Z68+AA68 -> 0 | AC68: =S68*O68 -> 0 | AD68: =U68*P68 -> 0 | AE68: =W68*Q68 -> 0 | AF68: =IF(AH68=FALSE,AC68+AD68+AE68,0) -> 0 | AL68: Fall 2016 | AM68: Insert 12 | AN68: 2017 | AO68: Amicus | AP68: Amicus Ink | AQ68: Not Quizzable | AR68: Animals & Nature | AS68: English | AT68: Board Book | AU68: 14 | AX68: PreK - 1 | AY68: 636.2 | AZ68: Rebecca Glaser
B69: Not Available | D69: 9781681521275 | F69: Ducks Quack | J69: Amicus Ink Board Books - Farm Animals | N69: 0 | O69: 7.99 | P69: 0 | Q69: 0 | S69: =S67 -> 0 | Y69: 0 | Z69: 0 | AA69: 0 | AB69: 0 | AC69: 0 | AD69: 0 | AE69: 0 | AF69: 0 | AL69: Fall 2016 | AM69: Insert 12 | AN69: 2017 | AO69: Amicus | AP69: Amicus Ink | AQ69: Not Quizzable | AR69: Animals & Nature | AS69: English | AT69: Board Book | AU69: 14 | AX69: PreK - 1 | AY69: 636.5/97 | AZ69: Rebecca Glaser
B70: Not Available | D70: 9781681521268 | F70: Horses Neigh | J70: Amicus Ink Board Books - Farm Animals | N70: 0 | O70: 7.99 | P70: 0 | Q70: 0 | S70: =S67 -> 0 | Y70: 0 | Z70: 0 | AA70: 0 | AB70: 0 | AC70: 0 | AD70: 0 | AE70: 0 | AF70: 0 | AL70: Fall 2016 | AM70: Insert 12 | AN70: 2017 | AO70: Amicus | AP70: Amicus Ink | AQ70: Not Quizzable | AR70: Animals & Nature | AS70: English | AT70: Board Book | AU70: 14 | AX70: PreK - 1 | AY70: 636.1 | AZ70: Rebecca Glaser
B71: Not Available | D71: 9781681521992 | F71: Bunnies Hop | J71: Amicus Ink Board Books - Pets | N71: 0 | O71: 7.99 | P71: 0 | Q71: 0 | S71: =S67 -> 0 | Y71: 0 | Z71: 0 | AA71: 0 | AB71: 0 | AC71: 0 | AD71: 0 | AE71: 0 | AF71: 0 | AL71: Fall 2017 | AM71: Insert 12 | AN71: 2018 | AO71: Amicus | AP71: Amicus Ink | AQ71: Not Quizzable | AR71: Fiction | AS71: English | AT71: Board Book | AU71: 14 | AX71: PreK - 1 | AY71: 636.932 | AZ71: Rebecca Glaser
B72: Not Available | D72: 9781681521985 | F72: Fish Swim | J72: Amicus Ink Board Books - Pets | N72: 0 | O72: 7.99 | P72: 0 | Q72: 0 | S72: =S67 -> 0 | Y72: 0 | Z72: 0 | AA72: 0 | AB72: 0 | AC72: 0 | AD72: 0 | AE72: 0 | AF72: 0 | AL72: Fall 2017 | AM72: Insert 12 | AN72: 2018 | AO72: Amicus | AP72: Amicus Ink | AQ72: Not Quizzable | AR72: Fiction | AS72: English | AT72: Board Book | AU72: 14 | AX72: PreK - 1 | AY72: 639.34 | AZ72: Rebecca Glaser
B73: Not Available | D73: 9781681521978 | F73: Kittens Pounce | J73: Amicus Ink Board Books - Pets | N73: 0 | O73: 7.99 | P73: 0 | Q73: 0 | S73: =S67 -> 0 | Y73: 0 | Z73: 0 | AA73: 0 | AB73: 0 | AC73: 0 | AD73: 0 | AE73: 0 | AF73: 0 | AL73: Fall 2017 | AM73: Insert 12 | AN73: 2018 | AO73: Amicus | AP73: Amicus Ink | AQ73: Not Quizzable | AR73: Fiction | AS73: English | AT73: Board Book | AU73: 14 | AX73: PreK - 1 | AY73: 636.8/07 | AZ73: Rebecca Glaser
B74: Not Available | D74: 9781681521961 | F74: Puppies Chase | J74: Amicus Ink Board Books - Pets | N74: 0 | O74: 7.99 | P74: 0 | Q74: 0 | S74: =S67 -> 0 | Y74: 0 | Z74: 0 | AA74: 0 | AB74: 0 | AC74: 0 | AD74: 0 | AE74: 0 | AF74: 0 | AL74: Fall 2017 | AM74: Insert 12 | AN74: 2018 | AO74: Amicus | AP74: Amicus Ink | AQ74: Not Quizzable | AR74: Fiction | AS74: English | AT74: Board Book | AU74: 14 | AX74: PreK - 1 | AY74: 636.7/07 | AZ74: Rebecca Glaser
B75: Not Available | D75: 9781681522432 | F75: Boats Float | J75: Amicus Ink Board Books - Vehicles | N75: 0 | O75: 7.99 | P75: 0 | Q75: 0 | S75: =S67 -> 0 | Y75: 0 | Z75: 0 | AA75: 0 | AB75: 0 | AC75: 0 | AD75: 0 | AE75: 0 | AF75: 0 | AL75: Spring 2018 | AM75: Insert 12 | AN75: 2018 | AO75: Amicus | AP75: Amicus Ink | AQ75: Not Quizzable | AR75: Fiction | AS75: English | AT75: Board Book | AU75: 14 | AX75: PreK - 1 | AY75: 623.82 | AZ75: Rebecca Glaser
B76: Not Available | D76: 9781681521213 | F76: Cars Zoom | J76: Amicus Ink Board Books - Vehicles | N76: 0 | O76: 7.99 | P76: 0 | Q76: 0 | S76: =S67 -> 0 | Y76: 0 | Z76: 0 | AA76: 0 | AB76: 0 | AC76: 0 | AD76: 0 | AE76: 0 | AF76: 0 | AL76: Fall 2016 | AM76: Insert 12 | AN76: 2017 | AO76: Amicus | AP76: Amicus Ink | AQ76: Not Quizzable | AR76: Fiction | AS76: English | AT76: Board Book | AU76: 14 | AX76: PreK - 1 | AY76: 629.222 | AZ76: Rebecca Glaser
B77: Not Available | D77: 9781681522401 | F77: Fire Trucks Rescue | J77: Amicus Ink Board Books - Vehicles | N77: 0 | O77: 7.99 | P77: 0 | Q77: 0 | S77: =S67 -> 0 | Y77: 0 | Z77: 0 | AA77: 0 | AB77: 0 | AC77: 0 | AD77: 0 | AE77: 0 | AF77: 0 | AL77: Spring 2018 | AM77: Insert 12 | AN77: 2018 | AO77: Amicus | AP77: Amicus Ink | AQ77: Not Quizzable | AR77: Fiction | AS77: English | AT77: Board Book | AU77: 14 | AX77: PreK - 1 | AY77: 628.9/259 | AZ77: Rebecca Glaser
B78: Not Available | D78: 9781681521220 | F78: Planes Soar | J78: Amicus Ink Board Books - Vehicles | N78: 0 | O78: 7.99 | P78: 0 | Q78: 0 | S78: =S67 -> 0 | Y78: 0 | Z78: 0 | AA78: 0 | AB78: 0 | AC78: 0 | AD78: 0 | AE78: 0 | AF78: 0 | AL78: Fall 2016 | AM78: Insert 12 | AN78: 2017 | AO78: Amicus | AP78: Amicus Ink | AQ78: Not Quizzable | AR78: Fiction | AS78: English | AT78: Board Book | AU78: 14 | AX78: PreK - 1 | AY78: 629.133/34 | AZ78: Rebecca Glaser
B79: Not Available | D79: 9781681522425 | F79: Trains Chug | J79: Amicus Ink Board Books - Vehicles | N79: 0 | O79: 7.99 | P79: 0 | Q79: 0 | S79: =S67 -> 0 | Y79: 0 | Z79: 0 | AA79: 0 | AB79: 0 | AC79: 0 | AD79: 0 | AE79: 0 | AF79: 0 | AL79: Spring 2018 | AM79: Insert 12 | AN79: 2018 | AO79: Amicus | AP79: Amicus Ink | AQ79: Not Quizzable | AR79: Fiction | AS79: English | AT79: Board Book | AU79: 14 | AX79: PreK - 1 | AY79: 625.2 | AZ79: Rebecca Glaser
B80: Not Available | D80: 9781681521244 | F80: Trucks Haul | J80: Amicus Ink Board Books - Vehicles | N80: 0 | O80: 7.99 | P80: 0 | Q80: 0 | S80: =S67 -> 0 | Y80: 0 | Z80: 0 | AA80: 0 | AB80: 0 | AC80: 0 | AD80: 0 | AE80: 0 | AF80: 0 | AL80: Fall 2016 | AM80: Insert 12 | AN80: 2017 | AO80: Amicus | AP80: Amicus Ink | AQ80: Not Quizzable | AR80: Fiction | AS80: English | AT80: Board Book | AU80: 14 | AX80: PreK - 1 | AY80: 629.224 | AZ80: Rebecca Glaser
B81: Not Available | D81: 9781681520674 | F81: Dolphins Play | J81: Amicus Ink Board Books - Wild Animals | N81: 0 | O81: 7.99 | P81: 0 | Q81: 0 | S81: =S67 -> 0 | Y81: 0 | Z81: 0 | AA81: 0 | AB81: 0 | AC81: 0 | AD81: 0 | AE81: 0 | AF81: 0 | AL81: Spring 2016 | AM81: Insert 12 | AN81: 2016 | AO81: Amicus | AP81: Amicus Ink | AQ81: Not Quizzable | AR81: Animals & Nature | AS81: English | AT81: Board Book | AU81: 14 | AX81: PreK - 1 | AY81: 599.53 | AZ81: Rebecca Glaser
B82: Not Available | D82: 9781681520681 | F82: Elephants Spray | J82: Amicus Ink Board Books - Wild Animals | N82: 0 | O82: 7.99 | P82: 0 | Q82: 0 | S82: =S67 -> 0 | Y82: 0 | Z82: 0 | AA82: 0 | AB82: 0 | AC82: 0 | AD82: 0 | AE82: 0 | AF82: 0 | AL82: Spring 2016 | AM82: Insert 12 | AN82: 2016 | AO82: Amicus | AP82: Amicus Ink | AQ82: Not Quizzable | AR82: Animals & Nature | AS82: English | AT82: Board Book | AU82: 14 | AX82: PreK - 1 | AY82: 599.67 | AZ82: Rebecca Glaser
B83: Not Available | D83: 9781681520698 | F83: Giraffes Stretch | J83: Amicus Ink Board Books - Wild Animals | N83: 0 | O83: 7.99 | P83: 0 | Q83: 0 | S83: =S67 -> 0 | Y83: 0 | Z83: 0 | AA83: 0 | AB83: 0 | AC83: 0 | AD83: 0 | AE83: 0 | AF83: 0 | AL83: Spring 2016 | AM83: Insert 12 | AN83: 2016 | AO83: Amicus | AP83: Amicus Ink | AQ83: Not Quizzable | AR83: Animals & Nature | AS83: English | AT83: Board Book | AU83: 14 | AX83: PreK - 1 | AY83: 599.638 | AZ83: Rebecca Glaser
B84: Not Available | D84: 9781681520711 | F84: Lions Roar | J84: Amicus Ink Board Books - Wild Animals | N84: 0 | O84: 7.99 | P84: 0 | Q84: 0 | S84: =S67 -> 0 | Y84: 0 | Z84: 0 | AA84: 0 | AB84: 0 | AC84: 0 | AD84: 0 | AE84: 0 | AF84: 0 | AL84: Spring 2016 | AM84: Insert 12 | AN84: 2016 | AO84: Amicus | AP84: Amicus Ink | AQ84: Not Quizzable | AR84: Animals & Nature | AS84: English | AT84: Board Book | AU84: 14 | AX84: PreK - 1 | AY84: 599.75/5 | AZ84: Rebecca Glaser
B85: Not Available | D85: 9781681520728 | F85: Monkeys Swing | J85: Amicus Ink Board Books - Wild Animals | N85: 0 | O85: 7.99 | P85: 0 | Q85: 0 | S85: =S67 -> 0 | Y85: 0 | Z85: 0 | AA85: 0 | AB85: 0 | AC85: 0 | AD85: 0 | AE85: 0 | AF85: 0 | AL85: Spring 2016 | AM85: Insert 12 | AN85: 2016 | AO85: Amicus | AP85: Amicus Ink | AQ85: Not Quizzable | AR85: Animals & Nature | AS85: English | AT85: Board Book | AU85: 14 | AX85: PreK - 1 | AY85: 599.8 | AZ85: Rebecca Glaser
F87: Complete Series of 64 | J87: Mancha (Spot Spanish) | N87: =SUM(N88:N151) -> 1734.4 | O87: =SUM(O88:O151) -> 1212.8 | P87: =SUM(P88:P151) -> 1512 | Q87: =SUM(Q88:Q151) -> 958 | AO87: Amicus
B88: 9781681519081 | D88: 9781681518824 | F88: Las cebras (Zebras) | J88: Animales africanos (Spot African Animals) | N88: 27.1 | O88: 18.95 | P88: 37.8 | Q88: =O88+5 -> 23.95 | S88: =S87 -> 0 | U88: =U87 -> 0 | W88: =W87 -> 0 | Y88: =S88 -> 0 | Z88: =U88 -> 0 | AA88: =W88*2 -> 0 | AB88: =Y88+Z88+AA88 -> 0 | AC88: =S88*O88 -> 0 | AD88: =U88*P88 -> 0 | AE88: =W88*Q88 -> 0 | AF88: =IF(AH88=FALSE,AC88+AD88+AE88,0) -> 0 | AL88: Fall 2019 | AM88: 42 | AN88: 2020 | AO88: Amicus | AP88: Spot | AQ88: 0.9 | AR88: Animals & Nature | AS88: Spanish | AT88: Reinforced Library | AU88: 16 | AX88: PreK - 3 | AY88: 599.665/7--dc23 | AZ88: Mary Ellen Klukow
B89: 9781681519043 | D89: 9781681518787 | F89: Las jirafas (Giraffes) | J89: Animales africanos (Spot African Animals) | N89: 27.1 | O89: 18.95 | P89: 37.8 | Q89: 23.95 | S89: =S87 -> 0 | U89: =U87 -> 0 | W89: =W87 -> 0 | Y89: 0 | Z89: 0 | AA89: 0 | AB89: 0 | AC89: 0 | AD89: 0 | AE89: 0 | AF89: 0 | AL89: Fall 2019 | AM89: 42 | AN89: 2020 | AO89: Amicus | AP89: Spot | AQ89: 0.9 | AR89: Animals & Nature | AS89: Spanish | AT89: Reinforced Library | AU89: 16 | AX89: PreK - 3 | AY89: 599.638--dc23 | AZ89: Mary Ellen Klukow
B90: 9781681519029 | D90: 9781681518763 | F90: Los cocodrilos (Crocodiles) | J90: Animales africanos (Spot African Animals) | N90: 27.1 | O90: 18.95 | P90: 37.8 | Q90: 23.95 | S90: =S87 -> 0 | U90: =U87 -> 0 | W90: =W87 -> 0 | Y90: 0 | Z90: 0 | AA90: 0 | AB90: 0 | AC90: 0 | AD90: 0 | AE90: 0 | AF90: 0 | AL90: Fall 2019 | AM90: 42 | AN90: 2020 | AO90: Amicus | AP90: Spot | AQ90: 0.8 | AR90: Animals & Nature | AS90: Spanish | AT90: Reinforced Library | AU90: 16 | AX90: PreK - 3 | AY90: 597.98/2--dc23 | AZ90: Mary Ellen Klukow
B91: 9781681519036 | D91: 9781681518770 | F91: Los elefantes (Elephants) | J91: Animales africanos (Spot African Animals) | N91: 27.1 | O91: 18.95 | P91: 37.8 | Q91: 23.95 | S91: =S87 -> 0 | U91: =U87 -> 0 | W91: =W87 -> 0 | Y91: 0 | Z91: 0 | AA91: 0 | AB91: 0 | AC91: 0 | AD91: 0 | AE91: 0 | AF91: 0 | AL91: Fall 2019 | AM91: 42 | AN91: 2020 | AO91: Amicus | AP91: Spot | AQ91: 0.9 | AR91: Animals & Nature | AS91: Spanish | AT91: Reinforced Library | AU91: 16 | AX91: PreK - 3 | AY91: 599.67--dc23 | AZ91: Mary Ellen Klukow
B92: 9781681519050 | D92: 9781681518794 | F92: Los gorilas (Gorillas) | J92: Animales africanos (Spot African Animals) | N92: 27.1 | O92: 18.95 | P92: 37.8 | Q92: 23.95 | S92: =S87 -> 0 | U92: =U87 -> 0 | W92: =W87 -> 0 | Y92: 0 | Z92: 0 | AA92: 0 | AB92: 0 | AC92: 0 | AD92: 0 | AE92: 0 | AF92: 0 | AL92: Fall 2019 | AM92: 42 | AN92: 2020 | AO92: Amicus | AP92: Spot | AQ92: 0.9 | AR92: Animals & Nature | AS92: Spanish | AT92: Reinforced Library | AU92: 16 | AX92: PreK - 3 | AY92: 599.884--dc23 | AZ92: Mary Ellen Klukow
B93: 9781681519012 | D93: 9781681518756 | F93: Los guepardos (Cheetahs) | J93: Animales africanos (Spot African Animals) | N93: 27.1 | O93: 18.95 | P93: 37.8 | Q93: 23.95 | S93: =S87 -> 0 | U93: =U87 -> 0 | W93: =W87 -> 0 | Y93: 0 | Z93: 0 | AA93: 0 | AB93: 0 | AC93: 0 | AD93: 0 | AE93: 0 | AF93: 0 | AL93: Fall 2019 | AM93: 42 | AN93: 2020 | AO93: Amicus | AP93: Spot | AQ93: 0.9 | AR93: Animals & Nature | AS93: Spanish | AT93: Reinforced Library | AU93: 16 | AX93: PreK - 3 | AY93: 599.75/9--dc23 | AZ93: Mary Ellen Klukow
B94: 9781681519067 | D94: 9781681518800 | F94: Los hipopótamos (Hippos) | J94: Animales africanos (Spot African Animals) | N94: 27.1 | O94: 18.95 | P94: 37.8 | Q94: 23.95 | S94: =S87 -> 0 | U94: =U87 -> 0 | W94: =W87 -> 0 | Y94: 0 | Z94: 0 | AA94: 0 | AB94: 0 | AC94: 0 | AD94: 0 | AE94: 0 | AF94: 0 | AL94: Fall 2019 | AM94: 42 | AN94: 2020 | AO94: Amicus | AP94: Spot | AQ94: 0.9 | AR94: Animals & Nature | AS94: Spanish | AT94: Reinforced Library | AU94: 16 | AX94: PreK - 3 | AY94: 599.63/5--dc23 | AZ94: Mary Ellen Klukow
B95: 9781681519074 | D95: 9781681518817 | F95: Los leones (Lions) | J95: Animales africanos (Spot African Animals) | N95: 27.1 | O95: 18.95 | P95: 37.8 | Q95: 23.95 | S95: =S87 -> 0 | U95: =U87 -> 0 | W95: =W87 -> 0 | Y95: 0 | Z95: 0 | AA95: 0 | AB95: 0 | AC95: 0 | AD95: 0 | AE95: 0 | AF95: 0 | AL95: Fall 2019 | AM95: 42 | AN95: 2020 | AO95: Amicus | AP95: Spot | AQ95: 0.9 | AR95: Animals & Nature | AS95: Spanish | AT95: Reinforced Library | AU95: 16 | AX95: PreK - 3 | AY95: 599.757--dc23 | AZ95: Mary Ellen Klukow
A96: NEW | B96: 9781645492399 | D96: 9781645492337 | F96: Las anguilas (Eels) | J96: Animales del océano (Spot Ocean Animals) | N96: 27.1 | O96: 18.95 | P96: 37.8 | Q96: 23.95 | S96: =S87 -> 0 | U96: =U87 -> 0 | W96: =W87 -> 0 | Y96: 0 | Z96: 0 | AA96: 0 | AB96: 0 | AC96: 0 | AD96: 0 | AE96: 0 | AF96: 0 | AL96: Spring 2021 | AM96: K | AN96: 2021 | AO96: Amicus | AP96: Spot | AR96: Life Science | AS96: Spanish | AT96: Reinforced Library | AU96: 16 | AV96: C | AX96: K & Up | AY96: 597/.43 | AZ96: Mari Schuh
A97: NEW | B97: 9781645492405 | D97: 9781645492344 | F97: Las langostas (Lobsters) | J97: Animales del océano (Spot Ocean Animals) | N97: 27.1 | O97: 18.95 | P97: 37.8 | Q97: 23.95 | S97: =S87 -> 0 | U97: =U87 -> 0 | W97: =W87 -> 0 | Y97: 0 | Z97: 0 | AA97: 0 | AB97: 0 | AC97: 0 | AD97: 0 | AE97: 0 | AF97: 0 | AL97: Spring 2021 | AM97: K | AN97: 2021 | AO97: Amicus | AP97: Spot | AR97: Life Science | AS97: Spanish | AT97: Reinforced Library | AU97: 16 | AV97: C | AX97: K & Up | AY97: 595.3/84 | AZ97: Mari Schuh
A98: NEW | B98: 9781645492436 | D98: 9781645492375 | F98: Los calamares (Squids) | J98: Animales del océano (Spot Ocean Animals) | N98: 27.1 | O98: 18.95 | P98: 37.8 | Q98: 23.95 | S98: =S87 -> 0 | U98: =U87 -> 0 | W98: =W87 -> 0 | Y98: 0 | Z98: 0 | AA98: 0 | AB98: 0 | AC98: 0 | AD98: 0 | AE98: 0 | AF98: 0 | AL98: Spring 2021 | AM98: K | AN98: 2021 | AO98: Amicus | AP98: Spot | AR98: Life Science | AS98: Spanish | AT98: Reinforced Library | AU98: 16 | AV98: C | AX98: K & Up | AY98: 594/.58 | AZ98: Mari Schuh
A99: NEW | B99: 9781645492382 | D99: 9781645492320 | F99: Los corales (Corals) | J99: Animales del océano (Spot Ocean Animals) | N99: 27.1 | O99: 18.95 | P99: 37.8 | Q99: 23.95 | S99: =S87 -> 0 | U99: =U87 -> 0 | W99: =W87 -> 0 | Y99: 0 | Z99: 0 | AA99: 0 | AB99: 0 | AC99: 0 | AD99: 0 | AE99: 0 | AF99: 0 | AL99: Spring 2021 | AM99: K | AN99: 2021 | AO99: Amicus | AP99: Spot | AR99: Life Science | AS99: Spanish | AT99: Reinforced Library | AU99: 16 | AV99: C | AX99: K & Up | AY99: 593.6 | AZ99: Mari Schuh
A100: NEW | B100: 9781645492429 | D100: 9781645492368 | F100: Los dragones de mar (Sea Dragons) | J100: Animales del océano (Spot Ocean Animals) | N100: 27.1 | O100: 18.95 | P100: 37.8 | Q100: 23.95 | S100: =S87 -> 0 | U100: =U87 -> 0 | W100: =W87 -> 0 | Y100: 0 | Z100: 0 | AA100: 0 | AB100: 0 | AC100: 0 | AD100: 0 | AE100: 0 | AF100: 0 | AL100: Spring 2021 | AM100: K | AN100: 2021 | AO100: Amicus | AP100: Spot | AR100: Life Science | AS100: Spanish | AT100: Reinforced Library | AU100: 16 | AV100: C | AX100: K & Up | AY100: 597/.679 | AZ100: Mari Schuh
A101: NEW | B101: 9781645492412 | D101: 9781645492351 | F101: Los manatíes (Manatees) | J101: Animales del océano (Spot Ocean Animals) | N101: 27.1 | O101: 18.95 | P101: 37.8 | Q101: 23.95 | S101: =S87 -> 0 | U101: =U87 -> 0 | W101: =W87 -> 0 | Y101: 0 | Z101: 0 | AA101: 0 | AB101: 0 | AC101: 0 | AD101: 0 | AE101: 0 | AF101: 0 | AL101: Spring 2021 | AM101: K | AN101: 2021 | AO101: Amicus | AP101: Spot | AR101: Life Science | AS101: Spanish | AT101: Reinforced Library | AU101: 16 | AV101: C | AX101: K & Up | AY101: 599.55 | AZ101: Mari Schuh
B102: Not Available | D102: 9781681512747 | F102: El búho (Owls) | J102: Animales del patio (Spot Backyard Animals) | N102: 27.1 | O102: 18.95 | P102: 0 | Q102: 0 | S102: =S87 -> 0 | Y102: =S102 -> 0 | Z102: =U102 -> 0 | AA102: =W102*2 -> 0 | AB102: =Y102+Z102+AA102 -> 0 | AC102: =S102*O102 -> 0 | AD102: =U102*P102 -> 0 | AE102: =W102*Q102 -> 0 | AF102: =IF(AH102=FALSE,AC102+AD102+AE102,0) -> 0 | AL102: Fall 2017 | AM102: 43 | AN102: 2018 | AO102: Amicus | AP102: Spot | AQ102: 0.6 | AR102: Animals & Nature | AS102: Spanish | AT102: Reinforced Library | AU102: 16 | AX102: PreK - 3 | AY102: 598.9/7 | AZ102: Wendy Strobel Dieker
B103: Not Available | D103: 9781681512723 | F103: El geco (Geckos) | J103: Animales del patio (Spot Backyard Animals) | N103: 27.1 | O103: 18.95 | P103: 0 | Q103: 0 | S103: =S87 -> 0 | Y103: 0 | Z103: 0 | AA103: 0 | AB103: 0 | AC103: 0 | AD103: 0 | AE103: 0 | AF103: 0 | AL103: Fall 2017 | AM103: 43 | AN103: 2018 | AO103: Amicus | AP103: Spot | AQ103: 0.6 | AR103: Animals & Nature | AS103: Spanish | AT103: Reinforced Library | AU103: 16 | AX103: PreK - 3 | AY103: 597.95/2 | AZ103: Rachel Bach
B104: Not Available | D104: 9781681512754 | F104: El mapache (Raccoons) | J104: Animales del patio (Spot Backyard Animals) | N104: 27.1 | O104: 18.95 | P104: 0 | Q104: 0 | S104: =S87 -> 0 | Y104: 0 | Z104: 0 | AA104: 0 | AB104: 0 | AC104: 0 | AD104: 0 | AE104: 0 | AF104: 0 | AL104: Fall 2017 | AM104: 43 | AN104: 2018 | AO104: Amicus | AP104: Spot | AQ104: 1.2 | AR104: Animals & Nature | AS104: Spanish | AT104: Reinforced Library | AU104: 16 | AX104: PreK - 3 | AY104: 599.76/32 | AZ104: Marysa Storm
B105: Not Available | D105: 9781681512709 | F105: El murciélago (Bats) | J105: Animales del patio (Spot Backyard Animals) | N105: 27.1 | O105: 18.95 | P105: 0 | Q105: 0 | S105: =S87 -> 0 | Y105: 0 | Z105: 0 | AA105: 0 | AB105: 0 | AC105: 0 | AD105: 0 | AE105: 0 | AF105: 0 | AL105: Fall 2017 | AM105: 43 | AN105: 2018 | AO105: Amicus | AP105: Spot | AQ105: 1.5 | AR105: Animals & Nature | AS105: Spanish | AT105: Reinforced Library | AU105: 16 | AX105: PreK - 3 | AY105: 599.4 | AZ105: Wendy Strobel Dieker
B106: Not Available | D106: 9781681512730 | F106: El ratón (Mice) | J106: Animales del patio (Spot Backyard Animals) | N106: 27.1 | O106: 18.95 | P106: 0 | Q106: 0 | S106: =S87 -> 0 | Y106: 0 | Z106: 0 | AA106: 0 | AB106: 0 | AC106: 0 | AD106: 0 | AE106: 0 | AF106: 0 | AL106: Fall 2017 | AM106: 43 | AN106: 2018 | AO106: Amicus | AP106: Spot | AQ106: 1.1 | AR106: Animals & Nature | AS106: Spanish | AT106: Reinforced Library | AU106: 16 | AX106: PreK - 3 | AY106: 599.35 | AZ106: Marysa Storm
B107: Not Available | D107: 9781681512761 | F107: El zorrillo (Skunks) | J107: Animales del patio (Spot Backyard Animals) | N107: 27.1 | O107: 18.95 | P107: 0 | Q107: 0 | S107: =S87 -> 0 | Y107: 0 | Z107: 0 | AA107: 0 | AB107: 0 | AC107: 0 | AD107: 0 | AE107: 0 | AF107: 0 | AL107: Fall 2017 | AM107: 43 | AN107: 2018 | AO107: Amicus | AP107: Spot | AQ107: 1.6 | AR107: Animals & Nature | AS107: Spanish | AT107: Reinforced Library | AU107: 16 | AX107: PreK - 3 | AY107: 599.76/8 | AZ107: Wendy Strobel Dieker
B108: Not Available | D108: 9781681512778 | F108: La ardilla (Squirrels) | J108: Animales del patio (Spot Backyard Animals) | N108: 27.1 | O108: 18.95 | P108: 0 | Q108: 0 | S108: =S87 -> 0 | Y108: 0 | Z108: 0 | AA108: 0 | AB108: 0 | AC108: 0 | AD108: 0 | AE108: 0 | AF108: 0 | AL108: Fall 2017 | AM108: 43 | AN108: 2018 | AO108: Amicus | AP108: Spot | AQ108: 0.9 | AR108: Animals & Nature | AS108: Spanish | AT108: Reinforced Library | AU108: 16 | AX108: PreK - 3 | AY108: 599.36 | AZ108: Wendy Strobel Dieker
B109: Not Available | D109: 9781681512716 | F109: La rana (Frogs) | J109: Animales del patio (Spot Backyard Animals) | N109: 27.1 | O109: 18.95 | P109: 0 | Q109: 0 | S109: =S87 -> 0 | Y109: 0 | Z109: 0 | AA109: 0 | AB109: 0 | AC109: 0 | AD109: 0 | AE109: 0 | AF109: 0 | AL109: Fall 2017 | AM109: 43 | AN109: 2018 | AO109: Amicus | AP109: Spot | AQ109: 0.7 | AR109: Animals & Nature | AS109: Spanish | AT109: Reinforced Library | AU109: 16 | AX109: PreK - 3 | AY109: 597.8/9 | AZ109: Marysa Storm
A110: NEW | B110: 9781645492221 | D110: 9781645491965 | F110: Las inundaciones (Floods) | J110: Clima extremo (Spot Extreme Weather) | N110: 27.1 | O110: 18.95 | P110: 37.8 | Q110: 23.95 | S110: =S87 -> 0 | U110: =U87 -> 0 | W110: =W87 -> 0 | Y110: 0 | Z110: 0 | AA110: 0 | AB110: 0 | AC110: 0 | AD110: 0 | AE110: 0 | AF110: 0 | AL110: Spring 2021 | AM110: K | AN110: 2021 | AO110: Amicus | AP110: Spot | AR110: Science | AS110: Spanish | AT110: Reinforced Library | AU110: 16 | AV110: D | AX110: K & Up | AY110: 551.48/9 | AZ110: Anastasia Suen
A111: NEW | B111: 9781645492207 | D111: 9781645491941 | F111: Las ventiscas (Blizzards) | J111: Clima extremo (Spot Extreme Weather) | N111: 27.1 | O111: 18.95 | P111: 37.8 | Q111: 23.95 | S111: =S87 -> 0 | U111: =U87 -> 0 | W111: =W87 -> 0 | Y111: 0 | Z111: 0 | AA111: 0 | AB111: 0 | AC111: 0 | AD111: 0 | AE111: 0 | AF111: 0 | AL111: Spring 2021 | AM111: K | AN111: 2021 | AO111: Amicus | AP111: Spot | AR111: Science | AS111: Spanish | AT111: Reinforced Library | AU111: 16 | AV111: D | AX111: K & Up | AY111: 551.55/5 | AZ111: Anastasia Suen
A112: NEW | B112: 9781645492238 | D112: 9781645491972 | F112: Los huracanes (Hurricanes) | J112: Clima extremo (Spot Extreme Weather) | N112: 27.1 | O112: 18.95 | P112: 37.8 | Q112: 23.95 | S112: =S87 -> 0 | U112: =U87 -> 0 | W112: =W87 -> 0 | Y112: 0 | Z112: 0 | AA112: 0 | AB112: 0 | AC112: 0 | AD112: 0 | AE112: 0 | AF112: 0 | AL112: Spring 2021 | AM112: K | AN112: 2021 | AO112: Amicus | AP112: Spot | AR112: Science | AS112: Spanish | AT112: Reinforced Library | AU112: 16 | AV112: D | AX112: K & Up | AY112: 551.55/2 | AZ112: Anastasia Suen
A113: NEW | B113: 9781645492252 | D113: 9781645491996 | F113: Los incendios forestales (Forest Fires) | J113: Clima extremo (Spot Extreme Weather) | N113: 27.1 | O113: 18.95 | P113: 37.8 | Q113: 23.95 | S113: =S87 -> 0 | U113: =U87 -> 0 | W113: =W87 -> 0 | Y113: 0 | Z113: 0 | AA113: 0 | AB113: 0 | AC113: 0 | AD113: 0 | AE113: 0 | AF113: 0 | AL113: Spring 2021 | AM113: K | AN113: 2021 | AO113: Amicus | AP113: Spot | AR113: Science | AS113: Spanish | AT113: Reinforced Library | AU113: 16 | AV113: D | AX113: K & Up | AY113: 634.9/618 | AZ113: Anastasia Suen
A114: NEW | B114: 9781645492214 | D114: 9781645491958 | F114: Los terremotos (Earthquakes) | J114: Clima extremo (Spot Extreme Weather) | N114: 27.1 | O114: 18.95 | P114: 37.8 | Q114: 23.95 | S114: =S87 -> 0 | U114: =U87 -> 0 | W114: =W87 -> 0 | Y114: 0 | Z114: 0 | AA114: 0 | AB114: 0 | AC114: 0 | AD114: 0 | AE114: 0 | AF114: 0 | AL114: Spring 2021 | AM114: K | AN114: 2021 | AO114: Amicus | AP114: Spot | AR114: Science | AS114: Spanish | AT114: Reinforced Library | AU114: 16 | AV114: D | AX114: K & Up | AY114: 551.22 | AZ114: Anastasia Suen
A115: NEW | B115: 9781645492245 | D115: 9781645491989 | F115: Los tornados (Tornadoes) | J115: Clima extremo (Spot Extreme Weather) | N115: 27.1 | O115: 18.95 | P115: 37.8 | Q115: 23.95 | S115: =S87 -> 0 | U115: =U87 -> 0 | W115: =W87 -> 0 | Y115: 0 | Z115: 0 | AA115: 0 | AB115: 0 | AC115: 0 | AD115: 0 | AE115: 0 | AF115: 0 | AL115: Spring 2021 | AM115: K | AN115: 2021 | AO115: Amicus | AP115: Spot | AR115: Science | AS115: Spanish | AT115: Reinforced Library | AU115: 16 | AV115: D | AX115: K & Up | AY115: 551.55/3 | AZ115: Anastasia Suen
A116: NEW | B116: 9781645492191 | D116: 9781645491934 | F116: Atletismo (Track & Field) | J116: Deportes (Spot Sports) | N116: 27.1 | O116: 18.95 | P116: 37.8 | Q116: 23.95 | S116: =S87 -> 0 | U116: =U87 -> 0 | W116: =W87 -> 0 | Y116: 0 | Z116: 0 | AA116: 0 | AB116: 0 | AC116: 0 | AD116: 0 | AE116: 0 | AF116: 0 | AL116: Spring 2021 | AM116: K | AN116: 2021 | AO116: Amicus | AP116: Spot | AR116: Sports and Recreation | AS116: Spanish | AT116: Reinforced Library | AU116: 16 | AX116: K & Up | AY116: 796.42 | AZ116: Mari Schuh
A117: NEW | B117: 9781645492122 | D117: 9781645491866 | F117: Boliche (Bowling) | J117: Deportes (Spot Sports) | N117: 27.1 | O117: 18.95 | P117: 37.8 | Q117: 23.95 | S117: =S87 -> 0 | U117: =U87 -> 0 | W117: =W87 -> 0 | Y117: 0 | Z117: 0 | AA117: 0 | AB117: 0 | AC117: 0 | AD117: 0 | AE117: 0 | AF117: 0 | AL117: Spring 2021 | AM117: K | AN117: 2021 | AO117: Amicus | AP117: Spot | AR117: Sports and Recreation | AS117: Spanish | AT117: Reinforced Library | AU117: 16 | AX117: K & Up | AY117: 794.6 | AZ117: Mari Schuh
A118: NEW | B118: 9781645492146 | D118: 9781645491880 | F118: Esquí alpino (Downhill Skiing) | J118: Deportes (Spot Sports) | N118: 27.1 | O118: 18.95 | P118: 37.8 | Q118: 23.95 | S118: =S87 -> 0 | U118: =U87 -> 0 | W118: =W87 -> 0 | Y118: 0 | Z118: 0 | AA118: 0 | AB118: 0 | AC118: 0 | AD118: 0 | AE118: 0 | AF118: 0 | AL118: Spring 2021 | AM118: K | AN118: 2021 | AO118: Amicus | AP118: Spot | AR118: Sports and Recreation | AS118: Spanish | AT118: Reinforced Library | AU118: 16 | AX118: K & Up | AY118: 796.93 | AZ118: Mari Schuh
A119: NEW | B119: 9781645492153 | D119: 9781645491897 | F119: Lacrosse (Lacrosse) | J119: Deportes (Spot Sports) | N119: 27.1 | O119: 18.95 | P119: 37.8 | Q119: 23.95 | S119: =S87 -> 0 | U119: =U87 -> 0 | W119: =W87 -> 0 | Y119: 0 | Z119: 0 | AA119: 0 | AB119: 0 | AC119: 0 | AD119: 0 | AE119: 0 | AF119: 0 | AL119: Spring 2021 | AM119: K | AN119: 2021 | AO119: Amicus | AP119: Spot | AR119: Sports and Recreation | AS119: Spanish | AT119: Reinforced Library | AU119: 16 | AX119: K & Up | AY119: 796.36/2 | AZ119: Mari Schuh
A120: NEW | B120: 9781645492160 | D120: 9781645491903 | F120: Patineta (Skateboarding) | J120: Deportes (Spot Sports) | N120: 27.1 | O120: 18.95 | P120: 37.8 | Q120: 23.95 | S120: =S87 -> 0 | U120: =U87 -> 0 | W120: =W87 -> 0 | Y120: 0 | Z120: 0 | AA120: 0 | AB120: 0 | AC120: 0 | AD120: 0 | AE120: 0 | AF120: 0 | AL120: Spring 2021 | AM120: K | AN120: 2021 | AO120: Amicus | AP120: Spot | AR120: Sports and Recreation | AS120: Spanish | AT120: Reinforced Library | AU120: 16 | AX120: K & Up | AY120: 796.22 | AZ120: Mari Schuh
A121: NEW | B121: 9781645492139 | D121: 9781645491873 | F121: Porrismo (Cheerleading) | J121: Deportes (Spot Sports) | N121: 27.1 | O121: 18.95 | P121: 37.8 | Q121: 23.95 | S121: =S87 -> 0 | U121: =U87 -> 0 | W121: =W87 -> 0 | Y121: 0 | Z121: 0 | AA121: 0 | AB121: 0 | AC121: 0 | AD121: 0 | AE121: 0 | AF121: 0 | AL121: Spring 2021 | AM121: K | AN121: 2021 | AO121: Amicus | AP121: Spot | AR121: Sports and Recreation | AS121: Spanish | AT121: Reinforced Library | AU121: 16 | AX121: K & Up | AY121: 791.6/4 | AZ121: Mari Schuh
A122: NEW | B122: 9781645492177 | D122: 9781645491910 | F122: Sofbol (Softball) | J122: Deportes (Spot Sports) | N122: 27.1 | O122: 18.95 | P122: 37.8 | Q122: 23.95 | S122: =S87 -> 0 | U122: =U87 -> 0 | W122: =W87 -> 0 | Y122: 0 | Z122: 0 | AA122: 0 | AB122: 0 | AC122: 0 | AD122: 0 | AE122: 0 | AF122: 0 | AL122: Spring 2021 | AM122: K | AN122: 2021 | AO122: Amicus | AP122: Spot | AR122: Sports and Recreation | AS122: Spanish | AT122: Reinforced Library | AU122: 16 | AX122: K & Up | AY122: 796.357/8 | AZ122: Mari Schuh
A123: NEW | B123: 9781645492184 | D123: 9781645491927 | F123: Tenis (Tennis) | J123: Deportes (Spot Sports) | N123: 27.1 | O123: 18.95 | P123: 37.8 | Q123: 23.95 | S123: =S87 -> 0 | U123: =U87 -> 0 | W123: =W87 -> 0 | Y123: 0 | Z123: 0 | AA123: 0 | AB123: 0 | AC123: 0 | AD123: 0 | AE123: 0 | AF123: 0 | AL123: Spring 2021 | AM123: K | AN123: 2021 | AO123: Amicus | AP123: Spot | AR123: Sports and Recreation | AS123: Spanish | AT123: Reinforced Library | AU123: 16 | AX123: K & Up | AY123: 796.342 | AZ123: Mari Schuh
B124: Not Available | D124: 9781681516295 | F124: El invierno (Winter) | J124: Estaciones (Spot Seasons) | N124: 27.1 | O124: 18.95 | P124: 0 | Q124: 0 | S124: =S87 -> 0 | Y124: 0 | Z124: 0 | AA124: 0 | AB124: 0 | AC124: 0 | AD124: 0 | AE124: 0 | AF124: 0 | AL124: Spring 2019 | AM124: 43 | AN124: 2019 | AO124: Amicus | AP124: Spot | AQ124: 1.2 | AR124: Animals & Nature | AS124: Spanish | AT124: Reinforced Library | AU124: 16 | AW124: 240L | AX124: PreK - 3 | AY124: 508.2 | AZ124: Mari Schuh
B125: Not Available | D125: 9781681516288 | F125: El otoño (Autumn) | J125: Estaciones (Spot Seasons) | N125: 27.1 | O125: 18.95 | P125: 0 | Q125: 0 | S125: =S87 -> 0 | Y125: 0 | Z125: 0 | AA125: 0 | AB125: 0 | AC125: 0 | AD125: 0 | AE125: 0 | AF125: 0 | AL125: Spring 2019 | AM125: 43 | AN125: 2019 | AO125: Amicus | AP125: Spot | AQ125: 1.5 | AR125: Animals & Nature | AS125: Spanish | AT125: Reinforced Library | AU125: 16 | AW125: 200L | AX125: PreK - 3 | AY125: 508.2 | AZ125: Mari Schuh
B126: Not Available | D126: 9781681516271 | F126: El verano (Summer) | J126: Estaciones (Spot Seasons) | N126: 27.1 | O126: 18.95 | P126: 0 | Q126: 0 | S126: =S87 -> 0 | Y126: 0 | Z126: 0 | AA126: 0 | AB126: 0 | AC126: 0 | AD126: 0 | AE126: 0 | AF126: 0 | AL126: Spring 2019 | AM126: 43 | AN126: 2019 | AO126: Amicus | AP126: Spot | AQ126: 1.3 | AR126: Animals & Nature | AS126: Spanish | AT126: Reinforced Library | AU126: 16 | AW126: 200L | AX126: PreK - 3 | AY126: 508.2 | AZ126: Mari Schuh
B127: Not Available | D127: 9781681516264 | F127: La primavera (Spring) | J127: Estaciones (Spot Seasons) | N127: 27.1 | O127: 18.95 | P127: 0 | Q127: 0 | S127: =S87 -> 0 | Y127: 0 | Z127: 0 | AA127: 0 | AB127: 0 | AC127: 0 | AD127: 0 | AE127: 0 | AF127: 0 | AL127: Spring 2019 | AM127: 43 | AN127: 2019 | AO127: Amicus | AP127: Spot | AQ127: 1.1 | AR127: Animals & Nature | AS127: Spanish | AT127: Reinforced Library | AU127: 16 | AW127: 160L | AX127: PreK - 3 | AY127: 508.2 | AZ127: Mari Schuh
A128: NEW | B128: 9781645492061 | D128: 9781645491804 | F128: Los gatos monteses (Wild Cats) | J128: Los gatos salvajes (Spot Wild Cats) | N128: 27.1 | O128: 18.95 | P128: 37.8 | Q128: =O128+5 -> 23.95 | S128: =S87 -> 0 | U128: =U87 -> 0 | W128: =W87 -> 0 | Y128: =S128 -> 0 | Z128: =U128 -> 0 | AA128: =W128*2 -> 0 | AB128: =Y128+Z128+AA128 -> 0 | AC128: =S128*O128 -> 0 | AD128: =U128*P128 -> 0 | AE128: =W128*Q128 -> 0 | AF128: =IF(AH128=FALSE,AC128+AD128+AE128,0) -> 0 | AL128: Spring 2021 | AM128: K | AN128: 2021 | AO128: Amicus | AP128: Spot | AR128: Life Science | AS128: Spanish | AT128: Reinforced Library | AU128: 16 | AX128: K & Up | AY128: 599.75/36 | AZ128: Alissa Thielges
A129: NEW | B129: 9781645492085 | D129: 9781645491828 | F129: Los jaguares (Jaguars) | J129: Los gatos salvajes (Spot Wild Cats) | N129: 27.1 | O129: 18.95 | P129: 37.8 | Q129: 23.95 | S129: =S87 -> 0 | U129: =U87 -> 0 | W129: =W87 -> 0 | Y129: 0 | Z129: 0 | AA129: 0 | AB129: 0 | AC129: 0 | AD129: 0 | AE129: 0 | AF129: 0 | AL129: Spring 2021 | AM129: K | AN129: 2021 | AO129: Amicus | AP129: Spot | AR129: Life Science | AS129: Spanish | AT129: Reinforced Library | AU129: 16 | AX129: K & Up | AY129: 599.75/5 | AZ129: Alissa Thielges
A130: NEW | B130: 9781645492092 | D130: 9781645491835 | F130: Los leopardos (Leopards) | J130: Los gatos salvajes (Spot Wild Cats) | N130: 27.1 | O130: 18.95 | P130: 37.8 | Q130: 23.95 | S130: =S87 -> 0 | U130: =U87 -> 0 | W130: =W87 -> 0 | Y130: 0 | Z130: 0 | AA130: 0 | AB130: 0 | AC130: 0 | AD130: 0 | AE130: 0 | AF130: 0 | AL130: Spring 2021 | AM130: K | AN130: 2021 | AO130: Amicus | AP130: Spot | AR130: Life Science | AS130: Spanish | AT130: Reinforced Library | AU130: 16 | AX130: K & Up | AY130: 599.75 | AZ130: Alissa Thielges
A131: NEW | B131: 9781645492108 | D131: 9781645491842 | F131: Los linces (Lynx) | J131: Los gatos salvajes (Spot Wild Cats) | N131: 27.1 | O131: 18.95 | P131: 37.8 | Q131: 23.95 | S131: =S87 -> 0 | U131: =U87 -> 0 | W131: =W87 -> 0 | Y131: 0 | Z131: 0 | AA131: 0 | AB131: 0 | AC131: 0 | AD131: 0 | AE131: 0 | AF131: 0 | AL131: Spring 2021 | AM131: K | AN131: 2021 | AO131: Amicus | AP131: Spot | AR131: Life Science | AS131: Spanish | AT131: Reinforced Library | AU131: 16 | AX131: K & Up | AY131: 599.75/3 | AZ131: Alissa Thielges
A132: NEW | B132: 9781645492078 | D132: 9781645491811 | F132: Los pumas (Pumas) | J132: Los gatos salvajes (Spot Wild Cats) | N132: 27.1 | O132: 18.95 | P132: 37.8 | Q132: 23.95 | S132: =S87 -> 0 | U132: =U87 -> 0 | W132: =W87 -> 0 | Y132: 0 | Z132: 0 | AA132: 0 | AB132: 0 | AC132: 0 | AD132: 0 | AE132: 0 | AF132: 0 | AL132: Spring 2021 | AM132: K | AN132: 2021 | AO132: Amicus | AP132: Spot | AR132: Life Science | AS132: Spanish | AT132: Reinforced Library | AU132: 16 | AX132: K & Up | AY132: 599.75/24 | AZ132: Alissa Thielges
A133: NEW | B133: 9781645492115 | D133: 9781645491859 | F133: Los tigres (Tigers) | J133: Los gatos salvajes (Spot Wild Cats) | N133: 27.1 | O133: 18.95 | P133: 37.8 | Q133: 23.95 | S133: =S87 -> 0 | U133: =U87 -> 0 | W133: =W87 -> 0 | Y133: 0 | Z133: 0 | AA133: 0 | AB133: 0 | AC133: 0 | AD133: 0 | AE133: 0 | AF133: 0 | AL133: Spring 2021 | AM133: K | AN133: 2021 | AO133: Amicus | AP133: Spot | AR133: Life Science | AS133: Spanish | AT133: Reinforced Library | AU133: 16 | AX133: K & Up | AY133: 599.756 | AZ133: Alissa Thielges
B134: Not Available | D134: 9781681516073 | F134: Las camionetas (Trucks) | J134: Máquinas poderosas (Spot Mighty Machines) | N134: 27.1 | O134: 18.95 | P134: 0 | Q134: 0 | S134: =S87 -> 0 | Y134: 0 | Z134: 0 | AA134: 0 | AB134: 0 | AC134: 0 | AD134: 0 | AE134: 0 | AF134: 0 | AL134: Fall 2018 | AM134: 42 | AN134: 2019 | AO134: Amicus | AP134: Spot | AQ134: 2 | AR134: Science & Technology | AS134: Spanish | AT134: Reinforced Library | AU134: 16 | AX134: PreK - 3 | AY134: 629.223/2 | AZ134: Wendy Strobel Dieker
B135: Not Available | D135: 9781681512693 | F135: Las cargadoras (Loaders) | J135: Máquinas poderosas (Spot Mighty Machines) | N135: 27.1 | O135: 18.95 | P135: 0 | Q135: 0 | S135: =S87 -> 0 | Y135: 0 | Z135: 0 | AA135: 0 | AB135: 0 | AC135: 0 | AD135: 0 | AE135: 0 | AF135: 0 | AL135: Fall 2017 | AM135: 42 | AN135: 2018 | AO135: Amicus | AP135: Spot | AQ135: 1.2 | AR135: Science & Technology | AS135: Spanish | AT135: Reinforced Library | AU135: 16 | AW135: 240L | AX135: PreK - 3 | AY135: 621.8/6 | AZ135: Mari Schuh
B136: Not Available | D136: 9781681512679 | F136: Las excavadoras (Diggers) | J136: Máquinas poderosas (Spot Mighty Machines) | N136: 27.1 | O136: 18.95 | P136: 0 | Q136: 0 | S136: =S87 -> 0 | Y136: 0 | Z136: 0 | AA136: 0 | AB136: 0 | AC136: 0 | AD136: 0 | AE136: 0 | AF136: 0 | AL136: Fall 2017 | AM136: 42 | AN136: 2018 | AO136: Amicus | AP136: Spot | AQ136: 1.3 | AR136: Science & Technology | AS136: Spanish | AT136: Reinforced Library | AU136: 16 | AW136: 290L | AX136: PreK - 3 | AY136: 621.8/65 | AZ136: Mari Schuh
B137: Not Available | D137: 9781681512662 | F137: Las grúas (Cranes) | J137: Máquinas poderosas (Spot Mighty Machines) | N137: 27.1 | O137: 18.95 | P137: 0 | Q137: 0 | S137: =S87 -> 0 | Y137: 0 | Z137: 0 | AA137: 0 | AB137: 0 | AC137: 0 | AD137: 0 | AE137: 0 | AF137: 0 | AL137: Fall 2017 | AM137: 42 | AN137: 2018 | AO137: Amicus | AP137: Spot | AQ137: 0.8 | AR137: Science & Technology | AS137: Spanish | AT137: Reinforced Library | AU137: 16 | AW137: 250L | AX137: PreK - 3 | AY137: 621.8/73 | AZ137: Mari Schuh
B138: Not Available | D138: 9781681512655 | F138: Las mezcladoras de concreto (Concrete Mixers) | J138: Máquinas poderosas (Spot Mighty Machines) | N138: 27.1 | O138: 18.95 | P138: 0 | Q138: 0 | S138: =S87 -> 0 | Y138: 0 | Z138: 0 | AA138: 0 | AB138: 0 | AC138: 0 | AD138: 0 | AE138: 0 | AF138: 0 | AL138: Fall 2017 | AM138: 42 | AN138: 2018 | AO138: Amicus | AP138: Spot | AQ138: 1.2 | AR138: Science & Technology | AS138: Spanish | AT138: Reinforced Library | AU138: 16 | AW138: 240L | AX138: PreK - 3 | AY138: 629.225 | AZ138: Mari Schuh
B139: 9781681519111 | D139: 9781681518855 | F139: Las motocicletas (Motorcycles) | J139: Máquinas poderosas (Spot Mighty Machines) | N139: 27.1 | O139: 18.95 | P139: 37.8 | Q139: =O139+5 -> 23.95 | S139: =S87 -> 0 | U139: =U87 -> 0 | W139: =W87 -> 0 | Y139: 0 | Z139: 0 | AA139: 0 | AB139: 0 | AC139: 0 | AD139: 0 | AE139: 0 | AF139: 0 | AL139: Fall 2019 | AM139: 42 | AN139: 2020 | AO139: Amicus | AP139: Spot | AQ139: 1.9 | AR139: Science & Technology | AS139: Spanish | AT139: Reinforced Library | AU139: 16 | AX139: PreK - 3 | AY139: 629.227/5--dc23 | AZ139: Wendy Strobel Dieker
B140: Not Available | D140: 9781681512648 | F140: Las topadoras (Bulldozers) | J140: Máquinas poderosas (Spot Mighty Machines) | N140: 27.1 | O140: 18.95 | P140: 0 | Q140: 0 | S140: =S87 -> 0 | Y140: 0 | Z140: 0 | AA140: 0 | AB140: 0 | AC140: 0 | AD140: 0 | AE140: 0 | AF140: 0 | AL140: Fall 2017 | AM140: 42 | AN140: 2018 | AO140: Amicus | AP140: Spot | AQ140: 1.1 | AR140: Science & Technology | AS140: Spanish | AT140: Reinforced Library | AU140: 16 | AW140: 260L | AX140: PreK - 3 | AY140: 629.225 | AZ140: Mari Schuh
B141: 9781681519098 | D141: 9781681518831 | F141: Los aviones (Airplanes) | J141: Máquinas poderosas (Spot Mighty Machines) | N141: 27.1 | O141: 18.95 | P141: 37.8 | Q141: =O141+5 -> 23.95 | S141: =S87 -> 0 | U141: =U87 -> 0 | W141: =W87 -> 0 | Y141: 0 | Z141: 0 | AA141: 0 | AB141: 0 | AC141: 0 | AD141: 0 | AE141: 0 | AF141: 0 | AL141: Fall 2019 | AM141: 42 | AN141: 2020 | AO141: Amicus | AP141: Spot | AQ141: 1.3 | AR141: Science & Technology | AS141: Spanish | AT141: Reinforced Library | AU141: 16 | AX141: PreK - 3 | AY141: 629.133/34--dc23 | AZ141: Wendy Strobel Dieker
B142: Not Available | D142: 9781681516080 | F142: Los camiones cisterna (Tanker Trucks) | J142: Máquinas poderosas (Spot Mighty Machines) | N142: 27.1 | O142: 18.95 | P142: 0 | Q142: 0 | S142: =S87 -> 0 | Y142: 0 | Z142: 0 | AA142: 0 | AB142: 0 | AC142: 0 | AD142: 0 | AE142: 0 | AF142: 0 | AL142: Fall 2018 | AM142: 42 | AN142: 2019 | AO142: Amicus | AP142: Spot | AQ142: 1.4 | AR142: Science & Technology | AS142: Spanish | AT142: Reinforced Library | AU142: 16 | AX142: PreK - 3 | AY142: 629.224 | AZ142: Wendy Strobel Dieker
B143: Not Available | D143: 9781681516066 | F143: Los camiones de basura (Garbage Trucks) | J143: Máquinas poderosas (Spot Mighty Machines) | N143: 27.1 | O143: 18.95 | P143: 0 | Q143: 0 | S143: =S87 -> 0 | Y143: 0 | Z143: 0 | AA143: 0 | AB143: 0 | AC143: 0 | AD143: 0 | AE143: 0 | AF143: 0 | AL143: Fall 2018 | AM143: 42 | AN143: 2019 | AO143: Amicus | AP143: Spot | AQ143: 0.9 | AR143: Science & Technology | AS143: Spanish | AT143: Reinforced Library | AU143: 16 | AX143: PreK - 3 | AY143: 628.4/42 | AZ143: Wendy Strobel Dieker
B144: Not Available | D144: 9781681516059 | F144: Los camiones de bomberos (Fire Trucks) | J144: Máquinas poderosas (Spot Mighty Machines) | N144: 27.1 | O144: 18.95 | P144: 0 | Q144: 0 | S144: =S87 -> 0 | Y144: 0 | Z144: 0 | AA144: 0 | AB144: 0 | AC144: 0 | AD144: 0 | AE144: 0 | AF144: 0 | AL144: Fall 2018 | AM144: 42 | AN144: 2019 | AO144: Amicus | AP144: Spot | AQ144: 1.5 | AR144: Science & Technology | AS144: Spanish | AT144: Reinforced Library | AU144: 16 | AX144: PreK - 3 | AY144: 628.9/259 | AZ144: Wendy Strobel Dieker
B145: Not Available | D145: 9781681516097 | F145: Los camiones de remolque (Tow Trucks) | J145: Máquinas poderosas (Spot Mighty Machines) | N145: 27.1 | O145: 18.95 | P145: 0 | Q145: 0 | S145: =S87 -> 0 | Y145: 0 | Z145: 0 | AA145: 0 | AB145: 0 | AC145: 0 | AD145: 0 | AE145: 0 | AF145: 0 | AL145: Fall 2018 | AM145: 42 | AN145: 2019 | AO145: Amicus | AP145: Spot | AQ145: 1.6 | AR145: Science & Technology | AS145: Spanish | AT145: Reinforced Library | AU145: 16 | AX145: PreK - 3 | AY145: 629.225 | AZ145: Wendy Strobel Dieker
B146: Not Available | D146: 9781681516042 | F146: Los camiones grandes (Big Rigs) | J146: Máquinas poderosas (Spot Mighty Machines) | N146: 27.1 | O146: 18.95 | P146: 0 | Q146: 0 | S146: =S87 -> 0 | Y146: 0 | Z146: 0 | AA146: 0 | AB146: 0 | AC146: 0 | AD146: 0 | AE146: 0 | AF146: 0 | AL146: Fall 2018 | AM146: 42 | AN146: 2019 | AO146: Amicus | AP146: Spot | AQ146: 0.9 | AR146: Science & Technology | AS146: Spanish | AT146: Reinforced Library | AU146: 16 | AX146: PreK - 3 | AY146: 629.224 | AZ146: Wendy Strobel Dieker
B147: Not Available | D147: 9781681512686 | F147: Los camiones volquetes (Dump Trucks) | J147: Máquinas poderosas (Spot Mighty Machines) | N147: 27.1 | O147: 18.95 | P147: 0 | Q147: 0 | S147: =S87 -> 0 | Y147: 0 | Z147: 0 | AA147: 0 | AB147: 0 | AC147: 0 | AD147: 0 | AE147: 0 | AF147: 0 | AL147: Fall 2019 | AM147: 42 | AN147: 2020 | AO147: Amicus | AP147: Spot | AQ147: 1.1 | AR147: Science & Technology | AS147: Spanish | AT147: Reinforced Library | AU147: 16 | AX147: PreK - 3 | AY147: 625.1--dc23 | AZ147: Wendy Strobel Dieker
B148: 9781681519128 | D148: 9781681518862 | F148: Los coches de carreras (Race Cars) | J148: Máquinas poderosas (Spot Mighty Machines) | N148: 27.1 | O148: 18.95 | P148: 37.8 | Q148: =O148+5 -> 23.95 | S148: =S87 -> 0 | U148: =U87 -> 0 | W148: =W87 -> 0 | Y148: 0 | Z148: 0 | AA148: 0 | AB148: 0 | AC148: 0 | AD148: 0 | AE148: 0 | AF148: 0 | AL148: Fall 2019 | AM148: 42 | AN148: 2020 | AO148: Amicus | AP148: Spot | AQ148: 1.2 | AR148: Science & Technology | AS148: Spanish | AT148: Reinforced Library | AU148: 16 | AX148: PreK - 3 | AY148: 629.228/5--dc23 | AZ148: Wendy Strobel Dieker
B149: 9781681519104 | D149: 9781681518848 | F149: Los helicópteros (Helicopters) | J149: Máquinas poderosas (Spot Mighty Machines) | N149: 27.1 | O149: 18.95 | P149: 37.8 | Q149: =O149+5 -> 23.95 | S149: =S87 -> 0 | U149: =U87 -> 0 | W149: =W87 -> 0 | Y149: 0 | Z149: 0 | AA149: 0 | AB149: 0 | AC149: 0 | AD149: 0 | AE149: 0 | AF149: 0 | AL149: Fall 2019 | AM149: 42 | AN149: 2020 | AO149: Amicus | AP149: Spot | AQ149: 1.3 | AR149: Science & Technology | AS149: Spanish | AT149: Reinforced Library | AU149: 16 | AX149: PreK - 3 | AY149: 629.133/352--dc23 | AZ149: Wendy Strobel Dieker
B150: 9781681519135 | D150: 9781681518879 | F150: Los tanques (Tanks) | J150: Máquinas poderosas (Spot Mighty Machines) | N150: 27.1 | O150: 18.95 | P150: 37.8 | Q150: =O150+5 -> 23.95 | S150: =S87 -> 0 | U150: =U87 -> 0 | W150: =W87 -> 0 | Y150: 0 | Z150: 0 | AA150: 0 | AB150: 0 | AC150: 0 | AD150: 0 | AE150: 0 | AF150: 0 | AL150: Fall 2019 | AM150: 42 | AN150: 2020 | AO150: Amicus | AP150: Spot | AQ150: 1.3 | AR150: Science & Technology | AS150: Spanish | AT150: Reinforced Library | AU150: 16 | AX150: PreK - 3 | AY150: 623.74/752--dc23 | AZ150: Wendy Strobel Dieker
B151: 9781681519142 | D151: 9781681518886 | F151: Los trenes (Trains) | J151: Máquinas poderosas (Spot Mighty Machines) | N151: 27.1 | O151: 18.95 | P151: 37.8 | Q151: =O151+5 -> 23.95 | S151: =S87 -> 0 | U151: =U87 -> 0 | W151: =W87 -> 0 | Y151: 0 | Z151: 0 | AA151: 0 | AB151: 0 | AC151: 0 | AD151: 0 | AE151: 0 | AF151: 0 | AL151: Fall 2019 | AM151: 42 | AN151: 2020 | AO151: Amicus | AP151: Spot | AQ151: 1.1 | AR151: Science & Technology | AS151: Spanish | AT151: Reinforced Library | AU151: 16 | AX151: PreK - 3 | AY151: 625.1--dc23 | AZ151: Wendy Strobel Dieker
F153: Complete Series of 6 | J153: Ecosystem Food Webs | N153: =SUM(N154:N159) -> 179.7 | O153: =SUM(O154:O159) -> 125.7 | P153: =SUM(P154:P159) -> 256.8 | Q153: =SUM(Q154:Q159) -> 155.7 | AO153: Amicus
A154: NEW | B154: 9781645490807 | D154: 9781645490005 | F154: A Desert Food Web | J154: Ecosystem Food Webs | N154: 29.95 | O154: 20.95 | P154: 42.8 | Q154: =O154+5 -> 25.95 | S154: =S153 -> 0 | U154: =U153 -> 0 | W154: =W153 -> 0 | Y154: =S154 -> 0 | Z154: =U154 -> 0 | AA154: =W154*2 -> 0 | AB154: =Y154+Z154+AA154 -> 0 | AC154: =S154*O154 -> 0 | AD154: =U154*P154 -> 0 | AE154: =W154*Q154 -> 0 | AF154: =IF(AH154=FALSE,AC154+AD154+AE154,0) -> 0 | AL154: Spring 2021 | AM154: J | AN154: 2021 | AO154: Amicus | AP154: Amicus Illustrated | AR154: Life Science | AS154: English | AT154: Reinforced Library | AU154: 24 | AV154: L | AW154: 570L | AX154: Grade 2 & up | AY154: 577.540973 | AZ154: Cari Meister
A155: NEW | B155: 9781645490814 | D155: 9781645490012 | F155: A Freshwater Food Web | J155: Ecosystem Food Webs | N155: 29.95 | O155: 20.95 | P155: 42.8 | Q155: =O155+5 -> 25.95 | S155: =S153 -> 0 | U155: =U153 -> 0 | W155: =W153 -> 0 | Y155: 0 | Z155: 0 | AA155: 0 | AB155: 0 | AC155: 0 | AD155: 0 | AE155: 0 | AF155: 0 | AL155: Spring 2021 | AM155: J | AN155: 2021 | AO155: Amicus | AP155: Amicus Illustrated | AR155: Life Science | AS155: English | AT155: Reinforced Library | AU155: 24 | AV155: L | AW155: 500L | AX155: Grade 2 & up | AY155: 577.680973 | AZ155: Cari Meister
A156: NEW | B156: 9781645490821 | D156: 9781645490029 | F156: A Grassland Food Web | J156: Ecosystem Food Webs | N156: 29.95 | O156: 20.95 | P156: 42.8 | Q156: 25.95 | S156: =S153 -> 0 | U156: =U153 -> 0 | W156: =W153 -> 0 | Y156: 0 | Z156: 0 | AA156: 0 | AB156: 0 | AC156: 0 | AD156: 0 | AE156: 0 | AF156: 0 | AL156: Spring 2021 | AM156: J | AN156: 2021 | AO156: Amicus | AP156: Amicus Illustrated | AR156: Life Science | AS156: English | AT156: Reinforced Library | AU156: 24 | AV156: L | AW156: 530L | AX156: Grade 2 & up | AY156: 577.4 | AZ156: Cari Meister
A157: NEW | B157: 9781645490838 | D157: 9781645490036 | F157: A Rainforest Food Web | J157: Ecosystem Food Webs | N157: 29.95 | O157: 20.95 | P157: 42.8 | Q157: 25.95 | S157: =S153 -> 0 | U157: =U153 -> 0 | W157: =W153 -> 0 | Y157: 0 | Z157: 0 | AA157: 0 | AB157: 0 | AC157: 0 | AD157: 0 | AE157: 0 | AF157: 0 | AL157: Spring 2021 | AM157: J | AN157: 2021 | AO157: Amicus | AP157: Amicus Illustrated | AR157: Life Science | AS157: English | AT157: Reinforced Library | AU157: 24 | AV157: L | AW157: 530L | AX157: Grade 2 & up | AY157: 577.340981/1 | AZ157: Cari Meister
A158: NEW | B158: 9781645490845 | D158: 9781645490043 | F158: An Arctic Food Web | J158: Ecosystem Food Webs | N158: 29.95 | O158: 20.95 | P158: 42.8 | Q158: 25.95 | S158: =S153 -> 0 | U158: =U153 -> 0 | W158: =W153 -> 0 | Y158: 0 | Z158: 0 | AA158: 0 | AB158: 0 | AC158: 0 | AD158: 0 | AE158: 0 | AF158: 0 | AL158: Spring 2021 | AM158: J | AN158: 2021 | AO158: Amicus | AP158: Amicus Illustrated | AR158: Life Science | AS158: English | AT158: Reinforced Library | AU158: 24 | AV158: L | AW158: 540L | AX158: Grade 2 & up | AY158: 577.5/8609113 | AZ158: Imogen Kingsley
A159: NEW | B159: 9781645490852 | D159: 9781645490050 | F159: An Ocean Food Web | J159: Ecosystem Food Webs | N159: 29.95 | O159: 20.95 | P159: 42.8 | Q159: 25.95 | S159: =S153 -> 0 | U159: =U153 -> 0 | W159: =W153 -> 0 | Y159: 0 | Z159: 0 | AA159: 0 | AB159: 0 | AC159: 0 | AD159: 0 | AE159: 0 | AF159: 0 | AL159: Spring 2021 | AM159: J | AN159: 2021 | AO159: Amicus | AP159: Amicus Illustrated | AR159: Life Science | AS159: English | AT159: Reinforced Library | AU159: 24 | AV159: L | AW159: 510L | AX159: Grade 2 & up | AY159: 577.7 | AZ159: Cari Meister
F161: Complete Series of 16 | J161: Making Good Choices | N161: =SUM(N162:N177) -> 479.2 | O161: =SUM(O162:O177) -> 335.2 | P161: 684.8 | Q161: 415.2 | AO161: Amicus
A162: NEW | B162: 9781645490708 | D162: 9781681519852 | F162: You Can Be Helpful: Step Aside or Pitch In? | J162: Making Good Choices | N162: 29.95 | O162: 20.95 | P162: 42.8 | Q162: =O162+5 -> 25.95 | S162: =S161 -> 0 | U162: =U161 -> 0 | W162: =W161 -> 0 | Y162: =S162 -> 0 | Z162: =U162 -> 0 | AA162: =W162*2 -> 0 | AB162: =Y162+Z162+AA162 -> 0 | AC162: =S162*O162 -> 0 | AD162: =U162*P162 -> 0 | AE162: =W162*Q162 -> 0 | AF162: =IF(AH162=FALSE,AC162+AD162+AE162,0) -> 0 | AL162: Spring 2021 | AM162: H | AN162: 2021 | AO162: Amicus | AP162: Amicus Illustrated | AR162: Social and Emotional Health | AS162: English | AT162: Reinforced Library | AU162: 24 | AV162: K | AW162: 530L | AX162: Grade 2 & up | AY162: 179/.9 | AZ162: Connie Colwell Miller
A163: NEW | B163: 9781645490715 | D163: 9781681519869 | F163: You Can Be Polite: Be Rude or Use Tact? | J163: Making Good Choices | N163: 29.95 | O163: 20.95 | P163: 42.8 | Q163: 25.95 | S163: =S161 -> 0 | U163: =U161 -> 0 | W163: =W161 -> 0 | Y163: 0 | Z163: 0 | AA163: 0 | AB163: 0 | AC163: 0 | AD163: 0 | AE163: 0 | AF163: 0 | AL163: Spring 2021 | AM163: H | AN163: 2021 | AO163: Amicus | AP163: Amicus Illustrated | AR163: Social and Emotional Health | AS163: English | AT163: Reinforced Library | AU163: 24 | AV163: K | AW163: 520L | AX163: Grade 2 & up | AY163: 395.1/22 | AZ163: Connie Colwell Miller
B164: 9781681517704 | D164: 9781681516882 | F164: You Can Be Responsible: Do it Now or Put it Off? | J164: Making Good Choices | N164: 29.95 | O164: 20.95 | P164: 42.8 | Q164: 25.95 | S164: =S161 -> 0 | U164: =U161 -> 0 | W164: =W161 -> 0 | Y164: 0 | Z164: 0 | AA164: 0 | AB164: 0 | AC164: 0 | AD164: 0 | AE164: 0 | AF164: 0 | AL164: Fall 2019 | AM164: 31 | AN164: 2020 | AO164: Amicus | AP164: Amicus Illustrated | AQ164: Not Quizzable | AR164: High Interest | AS164: English | AT164: Reinforced Library | AU164: 24 | AV164: K | AW164: 510L | AX164: K - 3 | AY164: 179.9 | AZ164: Connie Colwell Miller
B165: 9781681512570 | D165: 9781681511672 | F165: You Can Control Your Voice: Loud or Quiet? | J165: Making Good Choices | N165: 29.95 | O165: 20.95 | P165: 42.8 | Q165: 25.95 | S165: =S161 -> 0 | U165: =U161 -> 0 | W165: =W161 -> 0 | Y165: 0 | Z165: 0 | AA165: 0 | AB165: 0 | AC165: 0 | AD165: 0 | AE165: 0 | AF165: 0 | AL165: Fall 2017 | AM165: 31 | AN165: 2018 | AO165: Amicus | AP165: Amicus Illustrated | AQ165: Not Quizzable | AR165: High Interest | AS165: English | AT165: Reinforced Library | AU165: 24 | AV165: K | AW165: 500L | AX165: K - 3 | AY165: 395.5/3 | AZ165: Connie Colwell Miller
B166: 9781681517711 | D166: 9781681516899 | F166: You Can Encourage Others: Tease or Inspire? | J166: Making Good Choices | N166: 29.95 | O166: 20.95 | P166: 42.8 | Q166: 25.95 | S166: =S161 -> 0 | U166: =U161 -> 0 | W166: =W161 -> 0 | Y166: 0 | Z166: 0 | AA166: 0 | AB166: 0 | AC166: 0 | AD166: 0 | AE166: 0 | AF166: 0 | AL166: Fall 2019 | AM166: 31 | AN166: 2020 | AO166: Amicus | AP166: Amicus Illustrated | AQ166: Not Quizzable | AR166: High Interest | AS166: English | AT166: Reinforced Library | AU166: 24 | AV166: K | AW166: 490L | AX166: K - 3 | AY166: 158.3 | AZ166: Connie Colwell Miller
B167: 9781681517728 | D167: 9781681516905 | F167: You Can Follow Rules: Cheat or Play Fair? | J167: Making Good Choices | N167: 29.95 | O167: 20.95 | P167: 42.8 | Q167: 25.95 | S167: =S161 -> 0 | U167: =U161 -> 0 | W167: =W161 -> 0 | Y167: 0 | Z167: 0 | AA167: 0 | AB167: 0 | AC167: 0 | AD167: 0 | AE167: 0 | AF167: 0 | AL167: Fall 2019 | AM167: 31 | AN167: 2020 | AO167: Amicus | AP167: Amicus Illustrated | AQ167: Not Quizzable | AR167: High Interest | AS167: English | AT167: Reinforced Library | AU167: 24 | AV167: K | AW167: 490L | AX167: K - 3 | AY167: 796.01 | AZ167: Connie Colwell Miller
B168: 9781681512525 | D168: 9781681511627 | F168: You Can Handle Conflict: Hands or Words? | J168: Making Good Choices | N168: 29.95 | O168: 20.95 | P168: 42.8 | Q168: 25.95 | S168: =S161 -> 0 | U168: =U161 -> 0 | W168: =W161 -> 0 | Y168: 0 | Z168: 0 | AA168: 0 | AB168: 0 | AC168: 0 | AD168: 0 | AE168: 0 | AF168: 0 | AL168: Fall 2017 | AM168: 31 | AN168: 2018 | AO168: Amicus | AP168: Amicus Illustrated | AQ168: Not Quizzable | AR168: High Interest | AS168: English | AT168: Reinforced Library | AU168: 24 | AV168: K | AW168: 500L | AX168: K - 3 | AY168: 155.4/192 | AZ168: Connie Colwell Miller
B169: 9781681512563 | D169: 9781681511665 | F169: You Can Listen to Directions: Stop or Go? | J169: Making Good Choices | N169: 29.95 | O169: 20.95 | P169: 42.8 | Q169: 25.95 | S169: =S161 -> 0 | U169: =U161 -> 0 | W169: =W161 -> 0 | Y169: 0 | Z169: 0 | AA169: 0 | AB169: 0 | AC169: 0 | AD169: 0 | AE169: 0 | AF169: 0 | AL169: Fall 2017 | AM169: 31 | AN169: 2018 | AO169: Amicus | AP169: Amicus Illustrated | AQ169: Not Quizzable | AR169: High Interest | AS169: English | AT169: Reinforced Library | AU169: 24 | AV169: K | AW169: 510L | AX169: K - 3 | AY169: 155.4/19 | AZ169: Connie Colwell Miller
B170: 9781681517735 | D170: 9781681516912 | F170: You Can Make Changes: Ask or Ignore? | J170: Making Good Choices | N170: 29.95 | O170: 20.95 | P170: 42.8 | Q170: 25.95 | S170: =S161 -> 0 | U170: =U161 -> 0 | W170: =W161 -> 0 | Y170: 0 | Z170: 0 | AA170: 0 | AB170: 0 | AC170: 0 | AD170: 0 | AE170: 0 | AF170: 0 | AL170: Fall 2019 | AM170: 31 | AN170: 2020 | AO170: Amicus | AP170: Amicus Illustrated | AQ170: Not Quizzable | AR170: High Interest | AS170: English | AT170: Reinforced Library | AU170: 24 | AV170: K | AW170: 590L | AX170: K - 3 | AY170: 320.083 | AZ170: Connie Colwell Miller
A171: NEW | B171: 9781645490722 | D171: 9781681519876 | F171: You Can Persevere: Quit or Keep Going? | J171: Making Good Choices | N171: 29.95 | O171: 20.95 | P171: 42.8 | Q171: 25.95 | S171: =S161 -> 0 | U171: =U161 -> 0 | W171: =W161 -> 0 | Y171: 0 | Z171: 0 | AA171: 0 | AB171: 0 | AC171: 0 | AD171: 0 | AE171: 0 | AF171: 0 | AL171: Spring 2021 | AM171: H | AN171: 2021 | AO171: Amicus | AP171: Amicus Illustrated | AR171: Social and Emotional Health | AS171: English | AT171: Reinforced Library | AU171: 24 | AV171: K | AW171: 580L | AX171: Grade 2 & up | AY171: 179/.9 | AZ171: Connie Colwell Miller
B172: 9781681517742 | D172: 9781681516929 | F172: You Can Respect Differences: Assume or Find Out? | J172: Making Good Choices | N172: 29.95 | O172: 20.95 | P172: 42.8 | Q172: 25.95 | S172: =S161 -> 0 | U172: =U161 -> 0 | W172: =W161 -> 0 | Y172: 0 | Z172: 0 | AA172: 0 | AB172: 0 | AC172: 0 | AD172: 0 | AE172: 0 | AF172: 0 | AL172: Fall 2019 | AM172: 31 | AN172: 2020 | AO172: Amicus | AP172: Amicus Illustrated | AQ172: Not Quizzable | AR172: High Interest | AS172: English | AT172: Reinforced Library | AU172: 24 | AV172: K | AW172: 490L | AX172: K - 3 | AY172: 179.9 | AZ172: Connie Colwell Miller
B173: 9781681512556 | D173: 9781681511658 | F173: You Can Stay in Control: Wild or Calm? | J173: Making Good Choices | N173: 29.95 | O173: 20.95 | P173: 42.8 | Q173: 25.95 | S173: =S161 -> 0 | U173: =U161 -> 0 | W173: =W161 -> 0 | Y173: 0 | Z173: 0 | AA173: 0 | AB173: 0 | AC173: 0 | AD173: 0 | AE173: 0 | AF173: 0 | AL173: Fall 2017 | AM173: 31 | AN173: 2018 | AO173: Amicus | AP173: Amicus Illustrated | AQ173: Not Quizzable | AR173: High Interest | AS173: English | AT173: Reinforced Library | AU173: 24 | AV173: K | AW173: 500L | AX173: K - 3 | AY173: 155.4/19 | AZ173: Connie Colwell Miller
B174: 9781681517759 | D174: 9781681516936 | F174: You Can Stop Bullying: Stand By or Stand Up? | J174: Making Good Choices | N174: 29.95 | O174: 20.95 | P174: 42.8 | Q174: 25.95 | S174: =S161 -> 0 | U174: =U161 -> 0 | W174: =W161 -> 0 | Y174: 0 | Z174: 0 | AA174: 0 | AB174: 0 | AC174: 0 | AD174: 0 | AE174: 0 | AF174: 0 | AL174: Fall 2019 | AM174: 31 | AN174: 2020 | AO174: Amicus | AP174: Amicus Illustrated | AQ174: Not Quizzable | AR174: High Interest | AS174: English | AT174: Reinforced Library | AU174: 24 | AV174: K | AW174: 510L | AX174: K - 3 | AY174: 302.34/3 | AZ174: Connie Colwell Miller
A175: NEW | B175: 9781645490739 | D175: 9781681519883 | F175: You Can Use Money Wisely: Spend or Save? | J175: Making Good Choices | N175: 29.95 | O175: 20.95 | P175: 42.8 | Q175: 25.95 | S175: =S161 -> 0 | U175: =U161 -> 0 | W175: =W161 -> 0 | Y175: 0 | Z175: 0 | AA175: 0 | AB175: 0 | AC175: 0 | AD175: 0 | AE175: 0 | AF175: 0 | AL175: Spring 2021 | AM175: H | AN175: 2021 | AO175: Amicus | AP175: Amicus Illustrated | AR175: Social and Emotional Health | AS175: English | AT175: Reinforced Library | AU175: 24 | AV175: K | AW175: 520L | AX175: Grade 2 & up | AY175: 332.4 | AZ175: Connie Colwell Miller
B176: 9781681512549 | D176: 9781681511641 | F176: You're Angry: Throw a Fit or Talk it Out? | J176: Making Good Choices | N176: 29.95 | O176: 20.95 | P176: 42.8 | Q176: 25.95 | S176: =S161 -> 0 | U176: =U161 -> 0 | W176: =W161 -> 0 | Y176: 0 | Z176: 0 | AA176: 0 | AB176: 0 | AC176: 0 | AD176: 0 | AE176: 0 | AF176: 0 | AL176: Fall 2017 | AM176: 31 | AN176: 2018 | AO176: Amicus | AP176: Amicus Illustrated | AQ176: Not Quizzable | AR176: High Interest | AS176: English | AT176: Reinforced Library | AU176: 24 | AV176: K | AW176: 500L | AX176: K - 3 | AY176: 155.4/1247 | AZ176: Connie Colwell Miller
B177: 9781681512532 | D177: 9781681511634 | F177: You're in Trouble: Fib or Truth? | J177: Making Good Choices | N177: 29.95 | O177: 20.95 | P177: 42.8 | Q177: 25.95 | S177: =S161 -> 0 | U177: =U161 -> 0 | W177: =W161 -> 0 | Y177: 0 | Z177: 0 | AA177: 0 | AB177: 0 | AC177: 0 | AD177: 0 | AE177: 0 | AF177: 0 | AL177: Fall 2017 | AM177: 31 | AN177: 2018 | AO177: Amicus | AP177: Amicus Illustrated | AQ177: Not Quizzable | AR177: High Interest | AS177: English | AT177: Reinforced Library | AU177: 24 | AV177: K | AW177: 500L | AX177: K - 3 | AY177: 177/.3 | AZ177: Connie Colwell Miller
F179: Complete Series of 6 | J179: Mi vida con… (My Life With…) | N179: =SUM(N180:N185) -> 179.7 | O179: =SUM(O180:O185) -> 125.7 | P179: =SUM(P180:P185) -> 256.8 | Q179: =SUM(Q180:Q185) -> 155.7 | AO179: Amicus
A180: NEW | B180: 9781645492290 | D180: 9781645492030 | F180: Mi vida con autismo (Autism) | J180: Mi vida con… (My Life With…) | N180: 29.95 | O180: 20.95 | P180: 42.8 | Q180: =O180+5 -> 25.95 | S180: =S179 -> 0 | U180: =U179 -> 0 | W180: =W179 -> 0 | Y180: =S180 -> 0 | Z180: =U180 -> 0 | AA180: =W180*2 -> 0 | AB180: =Y180+Z180+AA180 -> 0 | AC180: =S180*O180 -> 0 | AD180: =U180*P180 -> 0 | AE180: =W180*Q180 -> 0 | AF180: =IF(AH180=FALSE,AC180+AD180+AE180,0) -> 0 | AL180: Spring 2021 | AM180: K | AN180: 2021 | AO180: Amicus | AP180: Amicus Illustrated | AR180: Social and Emotional Health | AS180: Spanish | AT180: Reinforced Library | AU180: 24 | AX180: Grade 2 & up | AY180: 618.92/85882 | AZ180: Mari Schuh
A181: NEW | B181: 9781645492269 | D181: 9781645492009 | F181: Mi vida con ceguera (Blindness) | J181: Mi vida con… (My Life With…) | N181: 29.95 | O181: 20.95 | P181: 42.8 | Q181: 25.95 | S181: =S179 -> 0 | U181: =U179 -> 0 | W181: =W179 -> 0 | Y181: 0 | Z181: 0 | AA181: 0 | AB181: 0 | AC181: 0 | AD181: 0 | AE181: 0 | AF181: 0 | AL181: Spring 2021 | AM181: K | AN181: 2021 | AO181: Amicus | AP181: Amicus Illustrated | AR181: Social and Emotional Health | AS181: Spanish | AT181: Reinforced Library | AU181: 24 | AX181: Grade 2 & up | AY181: 362.4/1092 | AZ181: Mari Schuh
A182: NEW | B182: 9781645492313 | D182: 9781645492054 | F182: Mi vida con dislexia (Dyslexia) | J182: Mi vida con… (My Life With…) | N182: 29.95 | O182: 20.95 | P182: 42.8 | Q182: 25.95 | S182: =S179 -> 0 | U182: =U179 -> 0 | W182: =W179 -> 0 | Y182: 0 | Z182: 0 | AA182: 0 | AB182: 0 | AC182: 0 | AD182: 0 | AE182: 0 | AF182: 0 | AL182: Spring 2021 | AM182: K | AN182: 2021 | AO182: Amicus | AP182: Amicus Illustrated | AR182: Social and Emotional Health | AS182: Spanish | AT182: Reinforced Library | AU182: 24 | AX182: Grade 2 & up | AY182: 618.92/8553 | AZ182: Mari Schuh
A183: NEW | B183: 9781645492306 | D183: 9781645492047 | F183: Mi vida con síndrome de Down (Down Syndrome) | J183: Mi vida con… (My Life With…) | N183: 29.95 | O183: 20.95 | P183: 42.8 | Q183: 25.95 | S183: =S179 -> 0 | U183: =U179 -> 0 | W183: =W179 -> 0 | Y183: 0 | Z183: 0 | AA183: 0 | AB183: 0 | AC183: 0 | AD183: 0 | AE183: 0 | AF183: 0 | AL183: Spring 2021 | AM183: K | AN183: 2021 | AO183: Amicus | AP183: Amicus Illustrated | AR183: Social and Emotional Health | AS183: Spanish | AT183: Reinforced Library | AU183: 24 | AX183: Grade 2 & up | AY183: 616.85/88420092 | AZ183: Mari Schuh
A184: NEW | B184: 9781645492276 | D184: 9781645492016 | F184: Mi vida con sordera (Deafness) | J184: Mi vida con… (My Life With…) | N184: 29.95 | O184: 20.95 | P184: 42.8 | Q184: 25.95 | S184: =S179 -> 0 | U184: =U179 -> 0 | W184: =W179 -> 0 | Y184: 0 | Z184: 0 | AA184: 0 | AB184: 0 | AC184: 0 | AD184: 0 | AE184: 0 | AF184: 0 | AL184: Spring 2021 | AM184: K | AN184: 2021 | AO184: Amicus | AP184: Amicus Illustrated | AR184: Social and Emotional Health | AS184: Spanish | AT184: Reinforced Library | AU184: 24 | AX184: Grade 2 & up | AY184: 362.4/2092 | AZ184: Mari Schuh
A185: NEW | B185: 9781645492283 | D185: 9781645492023 | F185: Mi vida con TDAH (ADHD) | J185: Mi vida con… (My Life With…) | N185: 29.95 | O185: 20.95 | P185: 42.8 | Q185: 25.95 | S185: =S179 -> 0 | U185: =U179 -> 0 | W185: =W179 -> 0 | Y185: 0 | Z185: 0 | AA185: 0 | AB185: 0 | AC185: 0 | AD185: 0 | AE185: 0 | AF185: 0 | AL185: Spring 2021 | AM185: K | AN185: 2021 | AO185: Amicus | AP185: Amicus Illustrated | AR185: Social and Emotional Health | AS185: Spanish | AT185: Reinforced Library | AU185: 24 | AX185: Grade 2 & up | AY185: 618.92/8589 | AZ185: Mari Schuh
F187: Complete Series of 6 | J187: My Life With . . . | N187: =SUM(N188:N193) -> 179.7 | O187: =SUM(O188:O193) -> 125.7 | P187: =SUM(P188:P193) -> 256.8 | Q187: =SUM(Q188:Q193) -> 155.7 | AO187: Amicus
A188: NEW | B188: 9781645490760 | D188: 9781681519913 | F188: My Life with ADHD | J188: My Life With . . . | N188: 29.95 | O188: 20.95 | P188: 42.8 | Q188: =O188+5 -> 25.95 | S188: =S187 -> 0 | U188: =U187 -> 0 | W188: =W187 -> 0 | Y188: =S188 -> 0 | Z188: =U188 -> 0 | AA188: =W188*2 -> 0 | AB188: =Y188+Z188+AA188 -> 0 | AC188: =S188*O188 -> 0 | AD188: =U188*P188 -> 0 | AE188: =W188*Q188 -> 0 | AF188: =IF(AH188=FALSE,AC188+AD188+AE188,0) -> 0 | AL188: Spring 2021 | AM188: I | AN188: 2021 | AO188: Amicus | AP188: Amicus Illustrated | AR188: Social and Emotional Health | AS188: English | AT188: Reinforced Library | AU188: 24 | AV188: K | AW188: 540L | AX188: Grade 2 & up | AY188: 618.92/8589 | AZ188: Mari Schuh
A189: NEW | B189: 9781645490777 | D189: 9781681519920 | F189: My Life with Autism | J189: My Life With . . . | N189: 29.95 | O189: 20.95 | P189: 42.8 | Q189: 25.95 | S189: =S187 -> 0 | U189: =U187 -> 0 | W189: =W187 -> 0 | Y189: 0 | Z189: 0 | AA189: 0 | AB189: 0 | AC189: 0 | AD189: 0 | AE189: 0 | AF189: 0 | AL189: Spring 2021 | AM189: I | AN189: 2021 | AO189: Amicus | AP189: Amicus Illustrated | AR189: Social and Emotional Health | AS189: English | AT189: Reinforced Library | AU189: 24 | AV189: K | AW189: 510L | AX189: Grade 2 & up | AY189: 618.92/85882 | AZ189: Mari Schuh
A190: NEW | B190: 9781645490746 | D190: 9781681519890 | F190: My Life with Blindness | J190: My Life With . . . | N190: 29.95 | O190: 20.95 | P190: 42.8 | Q190: 25.95 | S190: =S187 -> 0 | U190: =U187 -> 0 | W190: =W187 -> 0 | Y190: 0 | Z190: 0 | AA190: 0 | AB190: 0 | AC190: 0 | AD190: 0 | AE190: 0 | AF190: 0 | AL190: Spring 2021 | AM190: I | AN190: 2021 | AO190: Amicus | AP190: Amicus Illustrated | AR190: Social and Emotional Health | AS190: English | AT190: Reinforced Library | AU190: 24 | AV190: K | AW190: 510L | AX190: Grade 2 & up | AY190: 362.4/1092 | AZ190: Mari Schuh
A191: NEW | B191: 9781645490753 | D191: 9781681519906 | F191: My Life with Deafness | J191: My Life With . . . | N191: 29.95 | O191: 20.95 | P191: 42.8 | Q191: 25.95 | S191: =S187 -> 0 | U191: =U187 -> 0 | W191: =W187 -> 0 | Y191: 0 | Z191: 0 | AA191: 0 | AB191: 0 | AC191: 0 | AD191: 0 | AE191: 0 | AF191: 0 | AL191: Spring 2021 | AM191: I | AN191: 2021 | AO191: Amicus | AP191: Amicus Illustrated | AR191: Social and Emotional Health | AS191: English | AT191: Reinforced Library | AU191: 24 | AV191: K | AW191: 510L | AX191: Grade 2 & up | AY191: 362.4/2092 | AZ191: Mari Schuh
A192: NEW | B192: 9781645490784 | D192: 9781681519937 | F192: My Life with Down Syndrome | J192: My Life With . . . | N192: 29.95 | O192: 20.95 | P192: 42.8 | Q192: 25.95 | S192: =S187 -> 0 | U192: =U187 -> 0 | W192: =W187 -> 0 | Y192: 0 | Z192: 0 | AA192: 0 | AB192: 0 | AC192: 0 | AD192: 0 | AE192: 0 | AF192: 0 | AL192: Spring 2021 | AM192: I | AN192: 2021 | AO192: Amicus | AP192: Amicus Illustrated | AR192: Social and Emotional Health | AS192: English | AT192: Reinforced Library | AU192: 24 | AV192: K | AW192: 520L | AX192: Grade 2 & up | AY192: 616.85/88420092 | AZ192: Mari Schuh
A193: NEW | B193: 9781645490791 | D193: 9781681519944 | F193: My Life with Dyslexia | J193: My Life With . . . | N193: 29.95 | O193: 20.95 | P193: 42.8 | Q193: 25.95 | S193: =S187 -> 0 | U193: =U187 -> 0 | W193: =W187 -> 0 | Y193: 0 | Z193: 0 | AA193: 0 | AB193: 0 | AC193: 0 | AD193: 0 | AE193: 0 | AF193: 0 | AL193: Spring 2021 | AM193: I | AN193: 2021 | AO193: Amicus | AP193: Amicus Illustrated | AR193: Social and Emotional Health | AS193: English | AT193: Reinforced Library | AU193: 24 | AV193: K | AW193: 520L | AX193: Grade 2 & up | AY193: 618.92/8553 | AZ193: Mari Schuh
F195: Complete Series of 160 | J195: Spot | N195: =SUM(N196:N355) -> 4336 | O195: =SUM(O196:O355) -> 3032 | P195: 6048 | Q195: 3832 | AO195: Amicus
B196: 9781681517186 | D196: 9781681516363 | F196: Cheetahs | J196: Spot African Animals | N196: 27.1 | O196: 18.95 | P196: 37.8 | Q196: =O196+5 -> 23.95 | S196: =S195 -> 0 | U196: =U195 -> 0 | W196: =W195 -> 0 | Y196: =S196 -> 0 | Z196: =U196 -> 0 | AA196: =W196*2 -> 0 | AB196: =Y196+Z196+AA196 -> 0 | AC196: =S196*O196 -> 0 | AD196: =U196*P196 -> 0 | AE196: =W196*Q196 -> 0 | AF196: =IF(AH196=FALSE,AC196+AD196+AE196,0) -> 0 | AL196: Fall 2019 | AM196: 9 | AN196: 2020 | AO196: Amicus | AP196: Spot | AQ196: 0.9 | AR196: Animals & Nature | AS196: English | AT196: Reinforced Library | AU196: 16 | AV196: C | AW196: 370L | AX196: PreK - 3 | AY196: 599.75/9 | AZ196: Mary Ellen Klukow
B197: 9781681517193 | D197: 9781681516370 | F197: Crocodiles | J197: Spot African Animals | N197: 27.1 | O197: 18.95 | P197: 37.8 | Q197: 23.95 | S197: =S195 -> 0 | U197: =U195 -> 0 | W197: =W195 -> 0 | Y197: 0 | Z197: 0 | AA197: 0 | AB197: 0 | AC197: 0 | AD197: 0 | AE197: 0 | AF197: 0 | AL197: Fall 2019 | AM197: 9 | AN197: 2020 | AO197: Amicus | AP197: Spot | AQ197: 0.8 | AR197: Animals & Nature | AS197: English | AT197: Reinforced Library | AU197: 16 | AV197: C | AW197: 300L | AX197: PreK - 3 | AY197: 597.98/2 | AZ197: Mary Ellen Klukow
B198: 9781681517209 | D198: 9781681516387 | F198: Elephants | J198: Spot African Animals | N198: 27.1 | O198: 18.95 | P198: 37.8 | Q198: 23.95 | S198: =S195 -> 0 | U198: =U195 -> 0 | W198: =W195 -> 0 | Y198: 0 | Z198: 0 | AA198: 0 | AB198: 0 | AC198: 0 | AD198: 0 | AE198: 0 | AF198: 0 | AL198: Fall 2019 | AM198: 9 | AN198: 2020 | AO198: Amicus | AP198: Spot | AQ198: 0.9 | AR198: Animals & Nature | AS198: English | AT198: Reinforced Library | AU198: 16 | AV198: C | AW198: 330L | AX198: PreK - 3 | AY198: 599.67 | AZ198: Mary Ellen Klukow
B199: 9781681517216 | D199: 9781681516394 | F199: Giraffes | J199: Spot African Animals | N199: 27.1 | O199: 18.95 | P199: 37.8 | Q199: 23.95 | S199: =S195 -> 0 | U199: =U195 -> 0 | W199: =W195 -> 0 | Y199: 0 | Z199: 0 | AA199: 0 | AB199: 0 | AC199: 0 | AD199: 0 | AE199: 0 | AF199: 0 | AL199: Fall 2019 | AM199: 9 | AN199: 2020 | AO199: Amicus | AP199: Spot | AQ199: 0.9 | AR199: Animals & Nature | AS199: English | AT199: Reinforced Library | AU199: 16 | AV199: C | AW199: 320L | AX199: PreK - 3 | AY199: 599.638 | AZ199: Mary Ellen Klukow
B200: 9781681517223 | D200: 9781681516400 | F200: Gorillas | J200: Spot African Animals | N200: 27.1 | O200: 18.95 | P200: 37.8 | Q200: 23.95 | S200: =S195 -> 0 | U200: =U195 -> 0 | W200: =W195 -> 0 | Y200: 0 | Z200: 0 | AA200: 0 | AB200: 0 | AC200: 0 | AD200: 0 | AE200: 0 | AF200: 0 | AL200: Fall 2019 | AM200: 9 | AN200: 2020 | AO200: Amicus | AP200: Spot | AQ200: 0.9 | AR200: Animals & Nature | AS200: English | AT200: Reinforced Library | AU200: 16 | AV200: C | AW200: 340L | AX200: PreK - 3 | AY200: 599.884 | AZ200: Mary Ellen Klukow
B201: 9781681517230 | D201: 9781681516417 | F201: Hippos | J201: Spot African Animals | N201: 27.1 | O201: 18.95 | P201: 37.8 | Q201: 23.95 | S201: =S195 -> 0 | U201: =U195 -> 0 | W201: =W195 -> 0 | Y201: 0 | Z201: 0 | AA201: 0 | AB201: 0 | AC201: 0 | AD201: 0 | AE201: 0 | AF201: 0 | AL201: Fall 2019 | AM201: 9 | AN201: 2020 | AO201: Amicus | AP201: Spot | AQ201: 0.9 | AR201: Animals & Nature | AS201: English | AT201: Reinforced Library | AU201: 16 | AV201: C | AW201: 330L | AX201: PreK - 3 | AY201: 599.63/5 | AZ201: Mary Ellen Klukow
B202: 9781681517247 | D202: 9781681516424 | F202: Lions | J202: Spot African Animals | N202: 27.1 | O202: 18.95 | P202: 37.8 | Q202: 23.95 | S202: =S195 -> 0 | U202: =U195 -> 0 | W202: =W195 -> 0 | Y202: 0 | Z202: 0 | AA202: 0 | AB202: 0 | AC202: 0 | AD202: 0 | AE202: 0 | AF202: 0 | AL202: Fall 2019 | AM202: 9 | AN202: 2020 | AO202: Amicus | AP202: Spot | AQ202: 0.9 | AR202: Animals & Nature | AS202: English | AT202: Reinforced Library | AU202: 16 | AV202: C | AW202: 310L | AX202: PreK - 3 | AY202: 599.757 | AZ202: Mary Ellen Klukow
B203: 9781681517254 | D203: 9781681516431 | F203: Zebras | J203: Spot African Animals | N203: 27.1 | O203: 18.95 | P203: 37.8 | Q203: 23.95 | S203: =S195 -> 0 | U203: =U195 -> 0 | W203: =W195 -> 0 | Y203: 0 | Z203: 0 | AA203: 0 | AB203: 0 | AC203: 0 | AD203: 0 | AE203: 0 | AF203: 0 | AL203: Fall 2019 | AM203: 9 | AN203: 2020 | AO203: Amicus | AP203: Spot | AQ203: 0.9 | AR203: Animals & Nature | AS203: English | AT203: Reinforced Library | AU203: 16 | AV203: C | AW203: 300L | AX203: PreK - 3 | AY203: 599.665/7 | AZ203: Mary Ellen Klukow
A204: NEW | B204: 9781681518350 | D204: 9781681517957 | F204: Arctic Foxes | J204: Spot Arctic Animals | N204: 27.1 | O204: 18.95 | P204: 37.8 | Q204: 23.95 | S204: =S195 -> 0 | U204: =U195 -> 0 | W204: =W195 -> 0 | Y204: 0 | Z204: 0 | AA204: 0 | AB204: 0 | AC204: 0 | AD204: 0 | AE204: 0 | AF204: 0 | AL204: Spring 2020 | AM204: 5 | AN204: 2020 | AO204: Amicus | AP204: Spot | AR204: Animals & Nature | AS204: English | AT204: Reinforced Library | AU204: 16 | AV204: C | AX204: PreK - 3 | AY204: 599.776/4--dc23 | AZ204: Anastasia Suen
A205: NEW | B205: 9781681518367 | D205: 9781681517964 | F205: Orcas | J205: Spot Arctic Animals | N205: 27.1 | O205: 18.95 | P205: 37.8 | Q205: 23.95 | S205: =S195 -> 0 | U205: =U195 -> 0 | W205: =W195 -> 0 | Y205: 0 | Z205: 0 | AA205: 0 | AB205: 0 | AC205: 0 | AD205: 0 | AE205: 0 | AF205: 0 | AL205: Spring 2020 | AM205: 5 | AN205: 2020 | AO205: Amicus | AP205: Spot | AR205: Animals & Nature | AS205: English | AT205: Reinforced Library | AU205: 16 | AV205: C | AX205: PreK - 3 | AY205: 599.53/6--dc23 | AZ205: Anastasia Suen
A206: NEW | B206: 9781681518374 | D206: 9781681517971 | F206: Polar Bears | J206: Spot Arctic Animals | N206: 27.1 | O206: 18.95 | P206: 37.8 | Q206: 23.95 | S206: =S195 -> 0 | U206: =U195 -> 0 | W206: =W195 -> 0 | Y206: 0 | Z206: 0 | AA206: 0 | AB206: 0 | AC206: 0 | AD206: 0 | AE206: 0 | AF206: 0 | AL206: Spring 2020 | AM206: 5 | AN206: 2020 | AO206: Amicus | AP206: Spot | AR206: Animals & Nature | AS206: English | AT206: Reinforced Library | AU206: 16 | AV206: C | AX206: PreK - 3 | AY206: 599.786--dc23 | AZ206: Anastasia Suen
A207: NEW | B207: 9781681518381 | D207: 9781681517988 | F207: Reindeer | J207: Spot Arctic Animals | N207: 27.1 | O207: 18.95 | P207: 37.8 | Q207: 23.95 | S207: =S195 -> 0 | U207: =U195 -> 0 | W207: =W195 -> 0 | Y207: 0 | Z207: 0 | AA207: 0 | AB207: 0 | AC207: 0 | AD207: 0 | AE207: 0 | AF207: 0 | AL207: Spring 2020 | AM207: 5 | AN207: 2020 | AO207: Amicus | AP207: Spot | AR207: Animals & Nature | AS207: English | AT207: Reinforced Library | AU207: 16 | AV207: C | AX207: PreK - 3 | AY207: 599.65/8--dc23 | AZ207: Anastasia Suen
A208: NEW | B208: 9781681518398 | D208: 9781681517995 | F208: Sea Otters | J208: Spot Arctic Animals | N208: 27.1 | O208: 18.95 | P208: 37.8 | Q208: 23.95 | S208: =S195 -> 0 | U208: =U195 -> 0 | W208: =W195 -> 0 | Y208: 0 | Z208: 0 | AA208: 0 | AB208: 0 | AC208: 0 | AD208: 0 | AE208: 0 | AF208: 0 | AL208: Spring 2020 | AM208: 5 | AN208: 2020 | AO208: Amicus | AP208: Spot | AR208: Animals & Nature | AS208: English | AT208: Reinforced Library | AU208: 16 | AV208: C | AX208: PreK - 3 | AY208: 599.769/5--dc23 | AZ208: Anastasia Suen
A209: NEW | B209: 9781681518404 | D209: 9781681518008 | F209: Snowy Owls | J209: Spot Arctic Animals | N209: 27.1 | O209: 18.95 | P209: 37.8 | Q209: 23.95 | S209: =S195 -> 0 | U209: =U195 -> 0 | W209: =W195 -> 0 | Y209: 0 | Z209: 0 | AA209: 0 | AB209: 0 | AC209: 0 | AD209: 0 | AE209: 0 | AF209: 0 | AL209: Spring 2020 | AM209: 5 | AN209: 2020 | AO209: Amicus | AP209: Spot | AR209: Animals & Nature | AS209: English | AT209: Reinforced Library | AU209: 16 | AV209: C | AX209: PreK - 3 | AY209: 598.9/7--dc23 | AZ209: Anastasia Suen
B210: 9781681513270 | D210: 9781681512877 | F210: Flowers | J210: Spot Awesome Nature | N210: 27.1 | O210: 18.95 | P210: 37.8 | Q210: 23.95 | S210: =S195 -> 0 | U210: =U195 -> 0 | W210: =W195 -> 0 | Y210: 0 | Z210: 0 | AA210: 0 | AB210: 0 | AC210: 0 | AD210: 0 | AE210: 0 | AF210: 0 | AL210: Spring 2018 | AM210: 10 | AN210: 2018 | AO210: Amicus | AP210: Spot | AQ210: 1.1 | AR210: Animals & Nature | AS210: English | AT210: Reinforced Library | AU210: 16 | AV210: D | AW210: 310L | AX210: PreK - 3 | AY210: 582 | AZ210: K.C. Kelley
B211: 9781681513287 | D211: 9781681512884 | F211: Oceans | J211: Spot Awesome Nature | N211: 27.1 | O211: 18.95 | P211: 37.8 | Q211: 23.95 | S211: =S195 -> 0 | U211: =U195 -> 0 | W211: =W195 -> 0 | Y211: 0 | Z211: 0 | AA211: 0 | AB211: 0 | AC211: 0 | AD211: 0 | AE211: 0 | AF211: 0 | AL211: Spring 2018 | AM211: 10 | AN211: 2018 | AO211: Amicus | AP211: Spot | AQ211: 1 | AR211: Animals & Nature | AS211: English | AT211: Reinforced Library | AU211: 16 | AV211: D | AW211: 350L | AX211: PreK - 3 | AY211: 551.46 | AZ211: K.C. Kelley
B212: 9781681513256 | D212: 9781681512853 | F212: Seasons | J212: Spot Awesome Nature | N212: 27.1 | O212: 18.95 | P212: 37.8 | Q212: 23.95 | S212: =S195 -> 0 | U212: =U195 -> 0 | W212: =W195 -> 0 | Y212: 0 | Z212: 0 | AA212: 0 | AB212: 0 | AC212: 0 | AD212: 0 | AE212: 0 | AF212: 0 | AL212: Spring 2018 | AM212: 10 | AN212: 2018 | AO212: Amicus | AP212: Spot | AQ212: 0.9 | AR212: Animals & Nature | AS212: English | AT212: Reinforced Library | AU212: 16 | AV212: D | AW212: 280L | AX212: PreK - 3 | AY212: 508.2 | AZ212: K.C. Kelley
B213: 9781681513294 | D213: 9781681512891 | F213: Space | J213: Spot Awesome Nature | N213: 27.1 | O213: 18.95 | P213: 37.8 | Q213: 23.95 | S213: =S195 -> 0 | U213: =U195 -> 0 | W213: =W195 -> 0 | Y213: 0 | Z213: 0 | AA213: 0 | AB213: 0 | AC213: 0 | AD213: 0 | AE213: 0 | AF213: 0 | AL213: Spring 2018 | AM213: 10 | AN213: 2018 | AO213: Amicus | AP213: Spot | AQ213: 1 | AR213: Animals & Nature | AS213: English | AT213: Reinforced Library | AU213: 16 | AV213: D | AW213: 340L | AX213: PreK - 3 | AY213: 523.1 | AZ213: K.C. Kelley
... 838 more rows

Sheet Summary
J1: SHIP TO INFORMATION: | S1: PAYMENT OPTIONS:
H2: Organization: | S2: We accept: Visa, Mastercard, American Express or Check
H3: Contact Name: | S3: Credit cards will have a 3% service fee applied
H4: Address: | Q4: Card Type:
H5: City, State, Zip: | Q5: Card Number:
H6: eMail Address: | Q6: Expiration Date: | W6: Billing Zip Code:
H7: Phone Number:
J9: BILL TO INFORMATION: | S9: SUMMARY:
D10: Sales Representative: | H10: Organization: | S10: HC | U10: EB | W10: Bundles | AF10: Total
D11: PO Number: | H11: Contact Name: | Q11: # of Books: | S11: ='Title List'!U9 -> 0 | U11: ='Title List'!W9 -> 0 | W11: ='Title List'!AF9 -> 0 | AF11: ='Title List'!AJ9 -> 0
D12: Need by Date: | H12: Address: | Q12: Subtotals: | S12: ='Title List'!U10 -> 0 | U12: ='Title List'!W10 -> 0 | W12: ='Title List'!AF10 -> 0 | AF12: ='Title List'!AJ10 -> 0
D13: Backorders Accepted: | H13: City, State, Zip: | Q13: Processing: | AF13: ='Processing Spec Form'!EB25 -> 0
H14: eMail Address: | Q14: Shipping: | AF14: FREE
D15: Promotional Item Chosen: | H15: Phone Number: | Q15: Total: | AF15: =AF12+AF13 -> 0
A17: New | B17: eBook ISBN | D17: Print ISBN | F17: Title | J17: Series | N17: HC List Price | O17: HC S/L Price | P17: Multi User eBook Price | Q17: Bundle Price | S17: Print Qty | U17: Multi User eBook Qty | W17: Bundle Qty | Y17: HIDDEN HC Qty | Z17: HIDDEN EB Qty | AA17: HIDDEN BUNDLE QTY (HC + EB) | AB17: HIDDEN QTY TOTAL | AC17: HIDDEN HC TOTAL | AD17: HIDDEN EB TOTAL | AE17: HIDDEN BUNDLE TOTAL | AF17: Total | AH17: Mark X for FREE Book | AJ17: Custom Field

Sheet Promotions
E6: Promotions available with J. Appleseed!
E7: Promotions cannot be combined with any other offer
C12:  | D12: Buy 1 Hardcover Book and get 1 Hardcover FREE! | F12: Purchased Qty: | G12: ='Title List'!U9 -> 0
D13: Can mix and match between publishers to meet minimum, | F13: Purchased Amount: | G13: ='Title List'!U10 -> 0 | I13: =IF(G13>=300,"Eligible for FREE HC Books!","Not yet, add more hardcovers!") -> Not yet, add more hardcovers!
A14: Package 1: | D14: However, Free hardcover book MUST be from the same Publisher
A15: BOGO (HC) | D15: $300 minimum order required | F15: Eligible for | G15: =IF(G13>=300,G12/2,0) -> 0 | I15: FREE Hardcover Books
C19:  | D19: Buy 1 eBook and get 1 eBook FREE! | F19: Purchased Qty: | G19: ='Title List'!W9 -> 0
D20: Can mix and match between publishers to meet minimum, | F20: Purchased Amount: | G20: ='Title List'!W10 -> 0 | I20: =IF(G20>=300,"Eligible for FREE eBOOKS!","Not yet, add more eBooks!") -> Not yet, add more eBooks!
A21: Package 2: | D21: However, Free eBook MUST be from the same Publisher
A22: BOGO (EB) | D22: $300 minimum order required | F22: Eligible for | G22: =IF(G20>=300,G19/2,0) -> 0 | I22: FREE eBooks
A26: Package 3: | C26:  | D26: $50 Amazon Gift Card
D27: Can mix and match between publishers to meet minimum, | F27: Eligibility Qty: | G27: ='Title List'!AF9 -> 0
A28: Bundle Gift Card | D28: However, only bundles are eligible | F28: Eligibility Amount: | G28: ='Title List'!AF10 -> 0 | I28: =IF(G28>=1000,"Eligible for $50 Gift Card!","Not yet, add more bundles!") -> Not yet, add more bundles!
A29: 1000 | D29: $1,000 minimum order required
A33: Package 4: | C33:  | D33: $75 Amazon Gift Card
D34: Can mix and match between publishers to meet minimum, | F34: Eligibility Qty: | G34: ='Title List'!AF9 -> 0
A35: Bundle | D35: However, only bundles are eligible | F35: Eligibility Amount: | G35: ='Title List'!AF10 -> 0 | I35: =IF(G35>=1500,"Eligible for $75 Gift Card!","Not yet, add more bundles!") -> Not yet, add more bundles!
A36: 1500 | D36: $1,500 minimum order required
A40: Package 5: | C40:  | D40: $100 Amazon Gift Card
D41: Can mix and match between publishers to meet minimum, | F41: Eligibility Qty: | G41: ='Title List'!AF9 -> 0
A42: Bundle | D42: However, only bundles are eligible | F42: Eligibility Amount: | G42: ='Title List'!AF10 -> 0 | I42: =IF(G42>=2000,"Eligible for $100 Gift Card!","Not yet, add more bundles!") -> Not yet, add more bundles!
A43: 2000 | D43: $2,000 minimum order required
I48: =I13 -> Not yet, add more hardcovers!
I49: =I20 -> Not yet, add more eBooks!
I50: =I28 -> Not yet, add more bundles!
I51: =I35 -> Not yet, add more bundles!
I52: =I42 -> Not yet, add more bundles!

Sheet Processing Spec Form
A2: Please mark an X next to any/all options you wish to order | DZ2: Number of Books | EB2: ='Title List'!U9 -> 0
DZ4: MARC Records Only | EB4: =IF(I13="x",0,0) -> 0
U5: School or Library Name: | DZ5: Shelf Ready | EB5: =IF(I17="x",EB2*0,0) -> 0
U6: Contact Name: | DZ6: Bar Codes | EB6: =IF(I19="x",EB2*0.75,0) -> 0
U7: Phone Number: | DZ7: Additional Bar Codes | EB7: =IF(I21="x",EB2*0.75,0) -> 0
U8: E-Mail Address: | DZ8: Spine Labels | EB8: =IF(I23="x",EB2*0.5,0) -> 0
DZ9: Book Pockets | EB9: =IF(AC21="x",EB2*0.5,0) -> 0
DZ10: Date Due Cards | EB10: =IF(AC23="x",EB2*0.1,0) -> 0
DZ11: Date Due Slip | EB11: =IF(AC25="x",EB2*0.1,0) -> 0
I12: Processing Package: | DZ12: Property Label | EB12: =IF(AC27="x",EB2*0.5,0) -> 0
K13: MARC Records Only (FREE) | AE13: Attached (FREE) | AY13: Unattached (FREE) | DZ13: AR Spine Label | EB13: =IF(I25="x",EB2*0.25,0) -> 0
DZ14: AR Info Label | EB14: =IF(I27="x",EB2*0.25,0) -> 0
I15: Processing Options: | DZ15: Lexile Label | EB15: =IF(AC19="x",EB2*0.2,0) -> 0
K17: Shelf Ready Processing (Includes MARC Records, 1 Barcode, 1 Spine label, 1 AR label of your choice - FREE) | DZ17: Theft 3M Tattle Tape | EB17: =IF(AW19="x",EB2*1,0) -> 0
K19: Barcode ($.75) | AE19: Lexile Label ($.20) | AY19: 3M Tattle Tape ($1.00) | DZ19: Theft Checkpoint 8.2 | EB19: =IF(AW21="x",EB2*1,0) -> 0
K21: Additional Barcode ($.75) | AE21: Book Pocket ($.50) | AY21: Checkpoint 8.2 (Plain or Date Due) ($1.00) | DZ21: Theft Checkpoint 9.5 | EB21: =IF(AW23="x",EB2*1,0) -> 0
K22: (additonal fees will apply)
K23: Spine Label ($.50) | AE23: Date Due Card ($.10) | AY23: Checkpoint 9.5 (Plain or Date Due) ($1.00) | DZ23: Theft RFID | EB23: =IF(AW25="x",EB2*1,0) -> 0
K25: AR Spine Label ($.25) | AE25: Date Due Slip ($.10) | AY25: Checkpoint RFID ($1.00) | DZ25: Total Processing: | EB25: =EB4+EB5+EB6+EB7+EB8+EB9+EB10+EB11+EB12+EB13+EB14+EB15+EB17+EB19+EB21+EB23 -> 0
AY26: (additonal fees will apply)
K27: AR Information Label ($.25) | AE27: Property Label ($.50)
I31: Electronic Data Specifications:
I32: Software Type: | AC32: Software Version: | AW32: Software Format:
K33: Destiny | AY33: USMARC 852 Holdings
K35: Circulation Plus | AC35: Delivery Type: | AY35: US MARC 949 Holdings
K37: Spectrum | AE37: CD Rom | AY37: (Requires Custom Holdings to be provided)
K39: Follett | AE39: Web Download (provide email address) | AW39: Computer Type:
K41: Other: | AY41: Windows / PC
AY43: Macintosh
I47: Barcode Specifications:
I48: Name to appear on Barcode: (max 30 characters)
I51: Barcode Range:
AK52: -
I54: Symbology:
K55: Code 3 of 9 / No Check | AE55: Codabar / Mod 10 check digit
K57: Code 3 of 9 / Mod 10 check digit | AE57: Interleaved 2 of 5 / Follett Classic
K59: Code 3 of 9 / Mod 43 check digit | AE59: Interleaved 2 of 5 / no check digit
K61: Codabar / no check digit | AE61: Other:
M65: * = Standard (Check if standard options are wanted. If no options checked, the standard options will be applied)
I67: Cataloging Profile Specifications:
I68: Subject Headings:
K69: Sears* | AE69: Library of Congress | AY69: Library of Congress - Children's
I71: Dewey Number:
K72: Do no truncate the abridged dewey* | AE72: Truncate abridged dewey number by | AY72: digits
I74: Workmark:
K75: Initial letter capitalized* | AE75: All uppercase letters
I77: Individual Biography Call Number:
I78: Prefix: | AC78: Classification: | AW78: Workmark:
K79: Follow non-fiction prefixes specified* | AE79: B * | AY79: 3 biographee letters*
K81: None | AE81: 92 | AY81: Biographee's last name
AE83: Other: | AY83: Other:
I85: Easy Fiction (K-3) Call Number:
I86: Prefix: | AC86: Classification: | AW86: Workmark:
K87: None * | AE87: E * | AY87: 3 biographee letters*
K89: J above class | AE89: F | AY89: Biographee's last name
K91: Other: | AE91: Other: | AY91: Other:
I93: Fiction (grades 4-8) Call Number:
I94: Prefix: | AC94: Classification: | AW94: Workmark:
K95: None * | AE95: F * | AY95: 3 biographee letters*
K97: J above class | AE97: Fic | AY97: Biographee's last name
K99: Other: | AE99: Other: | AY99: Other:
I101: Fiction (grades 9-12) Call Number:
I102: Prefix: | AC102: Classification: | AW102: Workmark:
K103: None * | AE103: F * | AY103: 3 biographee letters*
K105: J above class | AE105: Fic | AY105: Biographee's last name
K107: Other: | AE107: Other: | AY107: Other:
I109: Easy Non-Fiction (K-3) Call Number:
I110: Prefix: | AC110: Classification: | AW110: Workmark:
K111: None * | AE111: Dewey Number * | AY111: 3 biographee letters*
K113: J above class | AE113: E | AY113: Biographee's last name
K115: Other: | AE115: Other: | AY115: Other:
I117: Non-Fiction (4-8) Call Number:
I118: Prefix: | AC118: Classification: | AW118: Workmark:
K119: None * | AE119: Dewey Number * | AY119: 3 biographee letters*
K121: J above class | AE121: E | AY121: Biographee's last name
K123: Other: | AE123: Other: | AY123: Other:
I125: Non-Fiction (9-12) Call Number:
I126: Prefix: | AC126: Classification: | AW126: Workmark:
K127: None * | AE127: Dewey Number * | AY127: 3 biographee letters*
K129: J above class | AE129: E | AY129: Biographee's last name
K131: Other: | AE131: Other: | AY131: Other:
I133: Graphic Fiction Call Number:
I134: Prefix: | AC134: Classification: | AW134: Workmark:
K135: None * | AE135: 741.5 * | AY135: 3 biographee letters*
K137: Graphic | AE137: Use fiction classification | AY137: Biographee's last name
K139: Other: | AE139: Other: | AY139: Other:
I141: Graphic Non-Fiction Call Number:
I142: Prefix: | AC142: Classification: | AW142: Workmark:
K143: None * | AE143: Dewey Number * | AY143: 3 biographee letters*
K145: J above class | AE145: E | AY145: Biographee's last name
K147: Other: | AE147: Other: | AY147: Other:
I149: Collective Biography Call Number:
I150: Prefix: | AC150: Classification: | AW150: Workmark:
K151: Follow nonfiction prefixes * | AE151: 920 * | AY151: 3 biographee letters*
K153: Other: | AE153: BC | AY153: Biographee's last name
AE155: Other: | AY155: Other:
I157: Story Collection Books Call Number:
I158: Prefix: | AC158: Classification: | AW158: Workmark:
K159: Follow fiction prefixes * | AE159: F * | AY159: 3 biographee letters*
K161: Other: | AE161: Fic | AY161: Biographee's last name
AE163: SC | AY163: Other:
AE165: Other:
I167: Foreign Language Call Number:
I168: Prefix: | AC168: Classification: | AW168: Workmark:
K169: None * | AE169: Dewey by Lang * | AY169: 3 biographee letters*
K171: Sp | AE171: Dewey by Subject | AY171: Biographee's last name
K173: Other: | AY173: Other:
I175: Billingual:
K176: Use English call number options * | AE176: Use foreign language call number options
I178: Reference Call Number:
I179: Prefix: | AC179: Classification: | AW179: Workmark:
K180: None | AE180: Dewey * | AY180: 3 biographee letters*
K182: R above dewey number * | AY182: Biographee's last name
K184: Other: | AY184: Other:
I188: Attaching Instructions:
K189: *Mylar Jackets are attached to all books with dust jackets (Standard)
I191: Barcode Label(s):
K192: Barcode 1:
M193: Position 1 - 24:
M195: Other:
K197: Barcode 2:
M198: Position 1 - 24:
M200: Other:
I202: Spine Label:
M203: 1.5" from bottom of spine*
M205: Other:
I207: AR Spine Label: | AK207: Vertical | AU207: Vertical | BE207: Horizontal
M208: Above Spine Label* | AK208: (Reading Up) | AU208: (Reading Down)
M210: Other:
I212: AR Information Label:
M213: Other:
I216: Book Pocket:
M217: Inside front cover centered *
M219: Other:
I221: Other Option(s):
M222: Other:
M224: Other:
M226: Other:
I229: Additional / Special Instructions:

Sheet eBook Access Form
A1: eBOOK ACCESS INFORMATION:
A2: * = REQUIRED FIELDS
A3: If no information is provided, J. Appleseed will create a Username / Password for you.
I5: School or Library Name:
I6: School District:
I7: Contact Name:
I8: Phone Number:
I9: E-Mail Address:
Q14: *Administrative Access: | S14: (Administrative access provides valuable usage statistics and resources)
Q16: Username (1st choice):
Q17: Username (2nd choice):
Q19: Password:
Q24: * General Access: | S24: (This allows general reader access to your eBooks. General access credentials must be different from Administrative Access)
Q26: Username (1st choice):
Q27: Username (2nd choice):
Q29: Password:
I34: * MARC Records Access Requirements:
O36: Instant Access: | W36: (No username / password required to access)
Q38: Yes | AC38: No
I43: IP Address Authentication (optional):
K44: If we add your IP address information to your account, users who access your library onsite from the building will automatically be logged in. PLEASE NOTE: IP authentication is not an access option for organizations who use a private IP address or use a shared public IP address. Please consult with your network administrator if you are unsure.
K47: IP authentication does not work remotely (e.g. from home)
I48: Provide the IP addressor range of network:
I51: Does this IP address or range service multiple buildings or sites?
W52: Yes | AI52: No
I57: Referring URL Address (optional):
K58: If your organization has a secure password protected site, we can put the URL of your site on our list of approved URLs, and anytime a user clicks on your library link from your site regardless of whether they are at school or at home they will be automatically logged in. Referring URLs must be unique to your institution, not shared by a district.
I61: Provide the URL of the web page where the access link(s) will be posted:
I64: Does this IP address or range service multiple buildings or sites?
W65: Yes | AI65: No

Sheet HIDDEN Title List (hidden)
L1: SHIP TO INFORMATION:
J2: Organization:
J3: Contact Name:
J4: Address:
J5: City, State, Zip:
J6: eMail Address:
J7: Phone Number:
U8: HC | W8: EB | AF8: Bundles | AJ8: Total Qty
L9: BILL TO INFORMATION: | P9: Check if same as Ship To | U9: =#REF! ->  | W9: =#REF! ->  | AF9: =#REF! ->  | AJ9: =#REF! -> 
J10: Organization: | U10: =#REF! ->  | W10: =#REF! ->  | AF10: =#REF! ->  | AJ10: =#REF! -> 
D11: Sales Representative: | J11: Contact Name:
D12: PO Number: | J12: Address:
D13: Need by Date: | J13: City, State, Zip: | U13: Does your order qualify for a promotional item?
D14: Backorders Accepted: | J14: eMail Address: | U14: See available promotions and eligiblity
J15: Phone Number: | U15: on the Promotions tab!
A17: New | B17: eBook ISBN | D17: Print ISBN | F17: Title | J17: Series | N17: HC List Price | O17: HC S/L Price | P17: Multi User eBook Price | Q17: Bundle Price | S17: Print Qty | U17: Multi User eBook Qty | W17: Bundle Qty | Y17: HIDDEN HC Qty | Z17: HIDDEN EB Qty | AA17: HIDDEN BUNDLE QTY (HC + EB) | AB17: HIDDEN QTY TOTAL | AC17: HIDDEN HC TOTAL | AD17: HIDDEN EB TOTAL | AE17: HIDDEN BUNDLE TOTAL | AF17: Total | AH17: Mark X for FREE Book | AJ17: Custom Field
F19: Complete Series of 3 | J19: Amicus Ink Board Books | N19: =SUM(N20) -> 0 | O19: =SUM(O20) -> 9.99 | P19: 25.7 | Q19: 14.99
B20: 9781681525129 | D20: 9781681521947 | F20: It's Not the Baby | J20: Amicus Ink Board Books | N20: 0 | O20: 9.99 | P20: 25.7 | Q20: =O20+5 -> 14.99 | S20: =S19 -> 0 | U20: =U19 -> 0 | W20: =W19 -> 0 | Y20: =S20 -> 0 | Z20: =U20 -> 0 | AA20: =W20*2 -> 0 | AB20: =Y20+Z20+AA20 -> 0 | AC20: =S20*O20 -> 0 | AD20: =U20*P20 -> 0 | AE20: =W20*Q20 -> 0 | AF20: =IF(AH20=FALSE,AC20+AD20+AE20,0) -> 0
B21: 9781681525150 | D21: 9781681524092 | F21: It's Not the Puppy | J21: Amicus Ink Board Books | N21: 0 | O21: 9.99 | P21: 25.7 | Q21: =O21+5 -> 14.99 | S21: =S19 -> 0 | U21: =U19 -> 0 | W21: =W19 -> 0 | Y21: =S21 -> 0 | Z21: =U21 -> 0 | AA21: =W21*2 -> 0 | AB21: =Y21+Z21+AA21 -> 0 | AC21: =S21*O21 -> 0 | AD21: =U21*P21 -> 0 | AE21: =W21*Q21 -> 0 | AF21: =IF(AH21=FALSE,AC21+AD21+AE21,0) -> 0
A22: NEW | B22: 9781681525679 | D22: 9781681525037 | F22: Who is Making a Mess? | J22: Amicus Ink Board Books | N22: 0 | O22: 8.99 | P22: 9.99 | Q22: =O22+5 -> 13.99 | S22: =S19 -> 0 | U22: =U19 -> 0 | W22: =W19 -> 0 | Y22: =S22 -> 0 | Z22: =U22 -> 0 | AA22: =W22*2 -> 0 | AB22: =Y22+Z22+AA22 -> 0 | AC22: =S22*O22 -> 0 | AD22: =U22*P22 -> 0 | AE22: =W22*Q22 -> 0 | AF22: =IF(AH22=FALSE,AC22+AD22+AE22,0) -> 0
F24: Complete Series of 6 | J24: Little Animal Friends | N24: =SUM(N25:N30) -> 0 | O24: 53.94 | P24: 77.16 | Q24: 83.94
A25: NEW | B25: 9781681525648 | D25: 9781681525631 | F25: Little Hippo | J25: Little Animal Friends (Board Book) | N25: 0 | O25: 8.99 | P25: 12.86 | Q25: =O25+5 -> 13.99 | S25: =S24 -> 0 | U25: =U24 -> 0 | W25: =W24 -> 0 | Y25: =S25 -> 0 | Z25: =U25 -> 0 | AA25: =W25*2 -> 0 | AB25: =Y25+Z25+AA25 -> 0 | AC25: =S25*O25 -> 0 | AD25: =U25*P25 -> 0 | AE25: =W25*Q25 -> 0 | AF25: =IF(AH25=FALSE,AC25+AD25+AE25,0) -> 0
A26: NEW | B26: 9781681525662 | D26: 9781681525655 | F26: Little Monkey | J26: Little Animal Friends (Board Book) | N26: 0 | O26: 8.99 | P26: 12.86 | Q26: 13.99 | S26: =S24 -> 0 | U26: =U24 -> 0 | W26: =W24 -> 0 | Y26: 0 | Z26: 0 | AA26: 0 | AB26: 0 | AC26: 0 | AD26: 0 | AE26: 0 | AF26: 0
A27: NEW | B27: 9781681525174 | D27: 9781681524146 | F27: Little Panda | J27: Little Animal Friends (Board Book) | N27: 0 | O27: 8.99 | P27: 12.86 | Q27: 13.99 | S27: =S24 -> 0 | U27: =U24 -> 0 | W27: =W24 -> 0 | Y27: 0 | Z27: 0 | AA27: 0 | AB27: 0 | AC27: 0 | AD27: 0 | AE27: 0 | AF27: 0
A28: NEW | B28: 9781681527437 | D28: 9781681527413 | F28: Little Penguin | J28: Little Animal Friends (Board Book) | N28: 0 | O28: 8.99 | P28: 12.86 | Q28: 13.99 | S28: =S24 -> 0 | U28: =U24 -> 0 | W28: =W24 -> 0 | Y28: 0 | Z28: 0 | AA28: 0 | AB28: 0 | AC28: 0 | AD28: 0 | AE28: 0 | AF28: 0
A29: NEW | B29: 9781681525167 | D29: 9781681524139 | F29: Little Tiger | J29: Little Animal Friends (Board Book) | N29: 0 | O29: 8.99 | P29: 12.86 | Q29: 13.99 | S29: =S24 -> 0 | U29: =U24 -> 0 | W29: =W24 -> 0 | Y29: 0 | Z29: 0 | AA29: 0 | AB29: 0 | AC29: 0 | AD29: 0 | AE29: 0 | AF29: 0
A30: NEW | B30: 9781681527444 | D30: 9781681527420 | F30: Little Zebra | J30: Little Animal Friends (Board Book) | N30: 0 | O30: 8.99 | P30: 12.86 | Q30: 13.99 | S30: =S24 -> 0 | U30: =U24 -> 0 | W30: =W24 -> 0 | Y30: 0 | Z30: 0 | AA30: 0 | AB30: 0 | AC30: 0 | AD30: 0 | AE30: 0 | AF30: 0
F32: Complete Series of 8 | J32: The Amicus Book of... | N32: =SUM(N33:N40) -> 0 | O32: 72.92 | P32: 0 | Q32: 0
B33: Not Available | D33: 9781681525693 | F33: The Amicus Book of 123 | J33: The Amicus Book of…(Board Book) | N33: 0 | O33: 8.99 | P33: 0 | Q33: 0 | S33: =S32 -> 0 | Y33: =S33 -> 0 | Z33: =U33 -> 0 | AA33: =W33*2 -> 0 | AB33: =Y33+Z33+AA33 -> 0 | AC33: =S33*O33 -> 0 | AD33: =U33*P33 -> 0 | AE33: =W33*Q33 -> 0 | AF33: =IF(AH33=FALSE,AC33+AD33+AE33,0) -> 0
B34: Not Available | D34: 9781681525686 | F34: The Amicus Book of ABC | J34: The Amicus Book of…(Board Book) | N34: 0 | O34: 8.99 | P34: 0 | Q34: 0 | S34: =S32 -> 0 | Y34: =S34 -> 0 | Z34: =U34 -> 0 | AA34: =W34*2 -> 0 | AB34: =Y34+Z34+AA34 -> 0 | AC34: =S34*O34 -> 0 | AD34: =U34*P34 -> 0 | AE34: =W34*Q34 -> 0 | AF34: =IF(AH34=FALSE,AC34+AD34+AE34,0) -> 0
A35: NEW | B35: Not Available | D35: 9781681527574 | F35: The Amicus Book of Animal Homes | J35: The Amicus Book of…(Board Book) | N35: 0 | O35: 9.99 | P35: 0 | Q35: 0 | S35: =S32 -> 0 | Y35: =S35 -> 0 | Z35: =U35 -> 0 | AA35: =W35*2 -> 0 | AB35: =Y35+Z35+AA35 -> 0 | AC35: =S35*O35 -> 0 | AD35: =U35*P35 -> 0 | AE35: =W35*Q35 -> 0 | AF35: =IF(AH35=FALSE,AC35+AD35+AE35,0) -> 0
B36: Not Available | D36: 9781681525709 | F36: The Amicus Book of Animals | J36: The Amicus Book of…(Board Book) | N36: 0 | O36: 8.99 | P36: 0 | Q36: 0 | S36: =S32 -> 0 | Y36: =S36 -> 0 | Z36: =U36 -> 0 | AA36: =W36*2 -> 0 | AB36: =Y36+Z36+AA36 -> 0 | AC36: =S36*O36 -> 0 | AD36: =U36*P36 -> 0 | AE36: =W36*Q36 -> 0 | AF36: =IF(AH36=FALSE,AC36+AD36+AE36,0) -> 0
A37: NEW | B37: Not Available | D37: 9781681527604 | F37: The Amicus Book of Bugs | J37: The Amicus Book of…(Board Book) | N37: 0 | O37: 8.99 | P37: 0 | Q37: 0 | S37: =S32 -> 0 | Y37: =S37 -> 0 | Z37: =U37 -> 0 | AA37: =W37*2 -> 0 | AB37: =Y37+Z37+AA37 -> 0 | AC37: =S37*O37 -> 0 | AD37: =U37*P37 -> 0 | AE37: =W37*Q37 -> 0 | AF37: =IF(AH37=FALSE,AC37+AD37+AE37,0) -> 0
B38: Not Available | D38: 9781681525716 | F38: The Amicus Book of Colors | J38: The Amicus Book of…(Board Book) | N38: 0 | O38: 8.99 | P38: 0 | Q38: 0 | S38: =S32 -> 0 | Y38: 0 | Z38: 0 | AA38: 0 | AB38: 0 | AC38: 0 | AD38: 0 | AE38: 0 | AF38: 0
A39: NEW | B39: Not Available | D39: 9781681527581 | F39: The Amicus Book of Earth | J39: The Amicus Book of…(Board Book) | N39: 0 | O39: 8.99 | P39: 0 | Q39: 0 | S39: =S32 -> 0 | Y39: 0 | Z39: 0 | AA39: 0 | AB39: 0 | AC39: 0 | AD39: 0 | AE39: 0 | AF39: 0
A40: NEW | B40: Not Available | D40: 9781681527598 | F40: The Amicus Book of Nature | J40: The Amicus Book of…(Board Book) | N40: 0 | O40: 8.99 | P40: 0 | Q40: 0 | S40: =S32 -> 0 | Y40: 0 | Z40: 0 | AA40: 0 | AB40: 0 | AC40: 0 | AD40: 0 | AE40: 0 | AF40: 0
F42: Complete Series of 13 | J42: Amicus Ink | N42: =SUM(N43:N54) -> 0 | O42: =SUM(O43:O54) -> 214.88 | P42: =SUM(P43:P54) -> 282.7 | Q42: =SUM(Q43:Q54) -> 251.89
B43: 9781681525204 | D43: 9781681524986 | F43: A Tiny Brown Monkey on the Big Blue Earth | J43: Amicus Ink Picture Books | N43: 0 | O43: 17.99 | P43: 25.7 | Q43: =O43+5 -> 22.99 | S43: =S42 -> 0 | U43: =U42 -> 0 | W43: =W42 -> 0 | Y43: =S43 -> 0 | Z43: =U43 -> 0 | AA43: =W43*2 -> 0 | AB43: =Y43+Z43+AA43 -> 0 | AC43: =S43*O43 -> 0 | AD43: =U43*P43 -> 0 | AE43: =W43*Q43 -> 0 | AF43: =IF(AH43=FALSE,AC43+AD43+AE43,0) -> 0
B44: 9781681525143 | D44: 9781681524085 | F44: Crane & Crane | J44: Amicus Ink Picture Books | N44: 0 | O44: 17.99 | P44: 25.7 | Q44: =O44+5 -> 22.99 | S44: =S42 -> 0 | U44: =U42 -> 0 | W44: =W42 -> 0 | Y44: 0 | Z44: 0 | AA44: 0 | AB44: 0 | AC44: 0 | AD44: 0 | AE44: 0 | AF44: 0
B45: Not Available | D45: 9781681521930 | F45: Daddy Cuddle | J45: Amicus Ink Picture Books | N45: 0 | O45: 17.99 | P45: 0 | Q45: 0 | S45: =S42 -> 0 | U45: =U42 -> 0 | W45: =W42 -> 0 | Y45: 0 | Z45: 0 | AA45: 0 | AB45: 0 | AC45: 0 | AD45: 0 | AE45: 0 | AF45: 0
A46: NEW | B46: 9781681525051 | D46: 9781681525020 | F46: Extraordinary Ordinary Ella | J46: Amicus Ink Picture Books | N46: 0 | O46: 17.99 | P46: 25.7 | Q46: =O46+5 -> 22.99 | S46: =S42 -> 0 | U46: =U42 -> 0 | W46: =W42 -> 0 | Y46: 0 | Z46: 0 | AA46: 0 | AB46: 0 | AC46: 0 | AD46: 0 | AE46: 0 | AF46: 0
B47: 9781681525112 | D47: 9781681522395 | F47: Grow | J47: Amicus Ink Picture Books | N47: 0 | O47: 17.99 | P47: 25.7 | Q47: 22.99 | S47: =S42 -> 0 | U47: =U42 -> 0 | W47: =W42 -> 0 | Y47: 0 | Z47: 0 | AA47: 0 | AB47: 0 | AC47: 0 | AD47: 0 | AE47: 0 | AF47: 0
B48: 9781681525044 | D48: 9781681525013 | F48: I've Got a Tail!: Terrific Tails of the Animal World | J48: Amicus Ink Picture Books | N48: 0 | O48: 17.99 | P48: 25.7 | Q48: 22.99 | S48: =S42 -> 0 | U48: =U42 -> 0 | W48: =W42 -> 0 | Y48: 0 | Z48: 0 | AA48: 0 | AB48: 0 | AC48: 0 | AD48: 0 | AE48: 0 | AF48: 0
B49: 9781681525136 | D49: 9781681521954 | F49: I've Got Feet: Fantastical Feet of the Animal World | J49: Amicus Ink Picture Books | N49: 0 | O49: 17.99 | P49: 25.7 | Q49: 22.99 | S49: =S42 -> 0 | U49: =U42 -> 0 | W49: =W42 -> 0 | Y49: 0 | Z49: 0 | AA49: 0 | AB49: 0 | AC49: 0 | AD49: 0 | AE49: 0 | AF49: 0
B50: 9781681525068 | D50: 9781681524047 | F50: I’ve Got Eyes!: Exceptional Eyes of the Animal World | J50: Amicus Ink Picture Books | N50: 0 | O50: 17.99 | P50: 25.7 | Q50: 22.99 | S50: =S42 -> 0 | U50: =U42 -> 0 | W50: =W42 -> 0 | Y50: 0 | Z50: 0 | AA50: 0 | AB50: 0 | AC50: 0 | AD50: 0 | AE50: 0 | AF50: 0
B51: 9781681525105 | D51: 9781681522029 | F51: Just My Style | J51: Amicus Ink Picture Books | N51: 0 | O51: 17.99 | P51: 25.7 | Q51: 22.99 | S51: =S42 -> 0 | U51: =U42 -> 0 | W51: =W42 -> 0 | Y51: 0 | Z51: 0 | AA51: 0 | AB51: 0 | AC51: 0 | AD51: 0 | AE51: 0 | AF51: 0
B52: 9781681525198 | D52: 9781681524153 | F52: No Hugs! | J52: Amicus Ink Picture Books | N52: 0 | O52: 16.99 | P52: 25.7 | Q52: 21.99 | S52: =S42 -> 0 | U52: =U42 -> 0 | W52: =W42 -> 0 | Y52: 0 | Z52: 0 | AA52: 0 | AB52: 0 | AC52: 0 | AD52: 0 | AE52: 0 | AF52: 0
B53: 9781681525181 | D53: 9781681522371 | F53: The Mighty Steam Engine | J53: Amicus Ink Picture Books | N53: 0 | O53: 17.99 | P53: 25.7 | Q53: 22.99 | S53: =S42 -> 0 | U53: =U42 -> 0 | W53: =W42 -> 0 | Y53: 0 | Z53: 0 | AA53: 0 | AB53: 0 | AC53: 0 | AD53: 0 | AE53: 0 | AF53: 0
B54: 9781681525075 | D54: 9781681524054 | F54: Twinkle, Twinkle, Little Lamb | J54: Amicus Ink Picture Books | N54: 0 | O54: 17.99 | P54: 25.7 | Q54: 22.99 | S54: =S42 -> 0 | U54: =U42 -> 0 | W54: =W42 -> 0 | Y54: 0 | Z54: 0 | AA54: 0 | AB54: 0 | AC54: 0 | AD54: 0 | AE54: 0 | AF54: 0
F56: Complete Series of 4 | J56: Riddle Diddle Dumplings | N56: =SUM(N57:N60) -> 0 | O56: 39.96 | P56: 39.96 | Q56: 59.96
B57: 9781681525082 | D57: 9781681524061 | F57: Riddle Diddle Farm | J57: Riddle Diddle Dumplings (Board Book) | N57: 0 | O57: 9.99 | P57: 9.99 | Q57: =O57+5 -> 14.99 | S57: =S56 -> 0 | U57: =U56 -> 0 | W57: =W56 -> 0 | Y57: =S57 -> 0 | Z57: =U57 -> 0 | AA57: =W57*2 -> 0 | AB57: =Y57+Z57+AA57 -> 0 | AC57: =S57*O57 -> 0 | AD57: =U57*P57 -> 0 | AE57: =W57*Q57 -> 0 | AF57: =IF(AH57=FALSE,AC57+AD57+AE57,0) -> 0
B58: 9781681525211 | D58: 9781681524993 | F58: Riddle Diddle Ocean | J58: Riddle Diddle Dumplings (Board Book) | N58: 0 | O58: 9.99 | P58: 9.99 | Q58: =O58+5 -> 14.99 | S58: =S56 -> 0 | U58: =U56 -> 0 | W58: =W56 -> 0 | Y58: =S58 -> 0 | Z58: =U58 -> 0 | AA58: =W58*2 -> 0 | AB58: =Y58+Z58+AA58 -> 0 | AC58: =S58*O58 -> 0 | AD58: =U58*P58 -> 0 | AE58: =W58*Q58 -> 0 | AF58: =IF(AH58=FALSE,AC58+AD58+AE58,0) -> 0
B59: 9781681525228 | D59: 9781681525006 | F59: Riddle Diddle Rainforest | J59: Riddle Diddle Dumplings (Board Book) | N59: 0 | O59: 9.99 | P59: 9.99 | Q59: 14.99 | S59: =S56 -> 0 | U59: =U56 -> 0 | W59: =W56 -> 0 | Y59: =S59 -> 0 | Z59: =U59 -> 0 | AA59: =W59*2 -> 0 | AB59: =Y59+Z59+AA59 -> 0 | AC59: =S59*O59 -> 0 | AD59: =U59*P59 -> 0 | AE59: =W59*Q59 -> 0 | AF59: =IF(AH59=FALSE,AC59+AD59+AE59,0) -> 0
B60: 9781681525099 | D60: 9781681524078 | F60: Riddle Diddle Safari | J60: Riddle Diddle Dumplings (Board Book) | N60: 0 | O60: 9.99 | P60: 9.99 | Q60: 14.99 | S60: =S56 -> 0 | U60: =U56 -> 0 | W60: =W56 -> 0 | Y60: =S60 -> 0 | Z60: =U60 -> 0 | AA60: =W60*2 -> 0 | AB60: =Y60+Z60+AA60 -> 0 | AC60: =S60*O60 -> 0 | AD60: =U60*P60 -> 0 | AE60: =W60*Q60 -> 0 | AF60: =IF(AH60=FALSE,AC60+AD60+AE60,0) -> 0
F62: Complete Series of 4 | J62: First Words and Pictures | N62: =SUM(N63:N65) -> 0 | O62: =SUM(O63:O65) -> 29.97 | P62: =SUM(P63:P65) -> 0 | Q62: =SUM(Q63:Q65) -> 0
B63: Not Available | D63: 9781681524108 | F63: Around Town | J63: First Words and Pictures (Board Book) | N63: 0 | O63: 9.99 | P63: 0 | Q63: 0 | S63: =S62 -> 0 | Y63: =S63 -> 0 | Z63: =U63 -> 0 | AA63: =W63*2 -> 0 | AB63: =Y63+Z63+AA63 -> 0 | AC63: =S63*O63 -> 0 | AD63: =U63*P63 -> 0 | AE63: =W63*Q63 -> 0 | AF63: =IF(AH63=FALSE,AC63+AD63+AE63,0) -> 0
B64: Not Available | D64: 9781681524115 | F64: At Home | J64: First Words and Pictures (Board Book) | N64: 0 | O64: 9.99 | P64: 0 | Q64: 0 | S64: =S62 -> 0 | Y64: =S64 -> 0 | Z64: =U64 -> 0 | AA64: =W64*2 -> 0 | AB64: =Y64+Z64+AA64 -> 0 | AC64: =S64*O64 -> 0 | AD64: =U64*P64 -> 0 | AE64: =W64*Q64 -> 0 | AF64: =IF(AH64=FALSE,AC64+AD64+AE64,0) -> 0
B65: Not Available | D65: 9781681522012 | F65: On the Go | J65: First Words and Pictures (Board Book) | N65: 0 | O65: 9.99 | P65: 0 | Q65: 0 | S65: =S62 -> 0 | Y65: =S65 -> 0 | Z65: =U65 -> 0 | AA65: =W65*2 -> 0 | AB65: =Y65+Z65+AA65 -> 0 | AC65: =S65*O65 -> 0 | AD65: =U65*P65 -> 0 | AE65: =W65*Q65 -> 0 | AF65: =IF(AH65=FALSE,AC65+AD65+AE65,0) -> 0
F67: Complete Series of 21 | J67: Amicus Ink | N67: =SUM(N68:N85) -> 0 | O67: =SUM(O68:O85) -> 143.82 | P67: =SUM(P68:P85) -> 0 | Q67: =SUM(Q68:Q85) -> 0
B68: Not Available | D68: 9781681521251 | F68: Cows Moo | J68: Amicus Ink Board Books - Farm Animals | N68: 0 | O68: 7.99 | P68: 0 | Q68: 0 | S68: =S67 -> 0 | Y68: =S68 -> 0 | Z68: =U68 -> 0 | AA68: =W68*2 -> 0 | AB68: =Y68+Z68+AA68 -> 0 | AC68: =S68*O68 -> 0 | AD68: =U68*P68 -> 0 | AE68: =W68*Q68 -> 0 | AF68: =IF(AH68=FALSE,AC68+AD68+AE68,0) -> 0
B69: Not Available | D69: 9781681521275 | F69: Ducks Quack | J69: Amicus Ink Board Books - Farm Animals | N69: 0 | O69: 7.99 | P69: 0 | Q69: 0 | S69: =S67 -> 0 | Y69: 0 | Z69: 0 | AA69: 0 | AB69: 0 | AC69: 0 | AD69: 0 | AE69: 0 | AF69: 0
B70: Not Available | D70: 9781681521268 | F70: Horses Neigh | J70: Amicus Ink Board Books - Farm Animals | N70: 0 | O70: 7.99 | P70: 0 | Q70: 0 | S70: =S67 -> 0 | Y70: 0 | Z70: 0 | AA70: 0 | AB70: 0 | AC70: 0 | AD70: 0 | AE70: 0 | AF70: 0
B71: Not Available | D71: 9781681521992 | F71: Bunnies Hop | J71: Amicus Ink Board Books - Pets | N71: 0 | O71: 7.99 | P71: 0 | Q71: 0 | S71: =S67 -> 0 | Y71: 0 | Z71: 0 | AA71: 0 | AB71: 0 | AC71: 0 | AD71: 0 | AE71: 0 | AF71: 0
B72: Not Available | D72: 9781681521985 | F72: Fish Swim | J72: Amicus Ink Board Books - Pets | N72: 0 | O72: 7.99 | P72: 0 | Q72: 0 | S72: =S67 -> 0 | Y72: 0 | Z72: 0 | AA72: 0 | AB72: 0 | AC72: 0 | AD72: 0 | AE72: 0 | AF72: 0
B73: Not Available | D73: 9781681521978 | F73: Kittens Pounce | J73: Amicus Ink Board Books - Pets | N73: 0 | O73: 7.99 | P73: 0 | Q73: 0 | S73: =S67 -> 0 | Y73: 0 | Z73: 0 | AA73: 0 | AB73: 0 | AC73: 0 | AD73: 0 | AE73: 0 | AF73: 0
B74: Not Available | D74: 9781681521961 | F74: Puppies Chase | J74: Amicus Ink Board Books - Pets | N74: 0 | O74: 7.99 | P74: 0 | Q74: 0 | S74: =S67 -> 0 | Y74: 0 | Z74: 0 | AA74: 0 | AB74: 0 | AC74: 0 | AD74: 0 | AE74: 0 | AF74: 0
B75: Not Available | D75: 9781681522432 | F75: Boats Float | J75: Amicus Ink Board Books - Vehicles | N75: 0 | O75: 7.99 | P75: 0 | Q75: 0 | S75: =S67 -> 0 | Y75: 0 | Z75: 0 | AA75: 0 | AB75: 0 | AC75: 0 | AD75: 0 | AE75: 0 | AF75: 0
B76: Not Available | D76: 9781681521213 | F76: Cars Zoom | J76: Amicus Ink Board Books - Vehicles | N76: 0 | O76: 7.99 | P76: 0 | Q76: 0 | S76: =S67 -> 0 | Y76: 0 | Z76: 0 | AA76: 0 | AB76: 0 | AC76: 0 | AD76: 0 | AE76: 0 | AF76: 0
B77: Not Available | D77: 9781681522401 | F77: Fire Trucks Rescue | J77: Amicus Ink Board Books - Vehicles | N77: 0 | O77: 7.99 | P77: 0 | Q77: 0 | S77: =S67 -> 0 | Y77: 0 | Z77: 0 | AA77: 0 | AB77: 0 | AC77: 0 | AD77: 0 | AE77: 0 | AF77: 0
B78: Not Available | D78: 9781681521220 | F78: Planes Soar | J78: Amicus Ink Board Books - Vehicles | N78: 0 | O78: 7.99 | P78: 0 | Q78: 0 | S78: =S67 -> 0 | Y78: 0 | Z78: 0 | AA78: 0 | AB78: 0 | AC78: 0 | AD78: 0 | AE78: 0 | AF78: 0
B79: Not Available | D79: 9781681522425 | F79: Trains Chug | J79: Amicus Ink Board Books - Vehicles | N79: 0 | O79: 7.99 | P79: 0 | Q79: 0 | S79: =S67 -> 0 | Y79: 0 | Z79: 0 | AA79: 0 | AB79: 0 | AC79: 0 | AD79: 0 | AE79: 0 | AF79: 0
B80: Not Available | D80: 9781681521244 | F80: Trucks Haul | J80: Amicus Ink Board Books - Vehicles | N80: 0 | O80: 7.99 | P80: 0 | Q80: 0 | S80: =S67 -> 0 | Y80: 0 | Z80: 0 | AA80: 0 | AB80: 0 | AC80: 0 | AD80: 0 | AE80: 0 | AF80: 0
B81: Not Available | D81: 9781681520674 | F81: Dolphins Play | J81: Amicus Ink Board Books - Wild Animals | N81: 0 | O81: 7.99 | P81: 0 | Q81: 0 | S81: =S67 -> 0 | Y81: 0 | Z81: 0 | AA81: 0 | AB81: 0 | AC81: 0 | AD81: 0 | AE81: 0 | AF81: 0
B82: Not Available | D82: 9781681520681 | F82: Elephants Spray | J82: Amicus Ink Board Books - Wild Animals | N82: 0 | O82: 7.99 | P82: 0 | Q82: 0 | S82: =S67 -> 0 | Y82: 0 | Z82: 0 | AA82: 0 | AB82: 0 | AC82: 0 | AD82: 0 | AE82: 0 | AF82: 0
B83: Not Available | D83: 9781681520698 | F83: Giraffes Stretch | J83: Amicus Ink Board Books - Wild Animals | N83: 0 | O83: 7.99 | P83: 0 | Q83: 0 | S83: =S67 -> 0 | Y83: 0 | Z83: 0 | AA83: 0 | AB83: 0 | AC83: 0 | AD83: 0 | AE83: 0 | AF83: 0
B84: Not Available | D84: 9781681520711 | F84: Lions Roar | J84: Amicus Ink Board Books - Wild Animals | N84: 0 | O84: 7.99 | P84: 0 | Q84: 0 | S84: =S67 -> 0 | Y84: 0 | Z84: 0 | AA84: 0 | AB84: 0 | AC84: 0 | AD84: 0 | AE84: 0 | AF84: 0
B85: Not Available | D85: 9781681520728 | F85: Monkeys Swing | J85: Amicus Ink Board Books - Wild Animals | N85: 0 | O85: 7.99 | P85: 0 | Q85: 0 | S85: =S67 -> 0 | Y85: 0 | Z85: 0 | AA85: 0 | AB85: 0 | AC85: 0 | AD85: 0 | AE85: 0 | AF85: 0
F87: Complete Series of 64 | J87: Mancha (Spot Spanish) | N87: =SUM(N88:N151) -> 1734.4 | O87: =SUM(O88:O151) -> 1212.8 | P87: =SUM(P88:P151) -> 1512 | Q87: =SUM(Q88:Q151) -> 958
B88: 9781681519081 | D88: 9781681518824 | F88: Las cebras (Zebras) | J88: Animales africanos (Spot African Animals) | N88: 27.1 | O88: 18.95 | P88: 37.8 | Q88: =O88+5 -> 23.95 | S88: =S87 -> 0 | U88: =U87 -> 0 | W88: =W87 -> 0 | Y88: =S88 -> 0 | Z88: =U88 -> 0 | AA88: =W88*2 -> 0 | AB88: =Y88+Z88+AA88 -> 0 | AC88: =S88*O88 -> 0 | AD88: =U88*P88 -> 0 | AE88: =W88*Q88 -> 0 | AF88: =IF(AH88=FALSE,AC88+AD88+AE88,0) -> 0
B89: 9781681519043 | D89: 9781681518787 | F89: Las jirafas (Giraffes) | J89: Animales africanos (Spot African Animals) | N89: 27.1 | O89: 18.95 | P89: 37.8 | Q89: 23.95 | S89: =S87 -> 0 | U89: =U87 -> 0 | W89: =W87 -> 0 | Y89: 0 | Z89: 0 | AA89: 0 | AB89: 0 | AC89: 0 | AD89: 0 | AE89: 0 | AF89: 0
B90: 9781681519029 | D90: 9781681518763 | F90: Los cocodrilos (Crocodiles) | J90: Animales africanos (Spot African Animals) | N90: 27.1 | O90: 18.95 | P90: 37.8 | Q90: 23.95 | S90: =S87 -> 0 | U90: =U87 -> 0 | W90: =W87 -> 0 | Y90: 0 | Z90: 0 | AA90: 0 | AB90: 0 | AC90: 0 | AD90: 0 | AE90: 0 | AF90: 0
B91: 9781681519036 | D91: 9781681518770 | F91: Los elefantes (Elephants) | J91: Animales africanos (Spot African Animals) | N91: 27.1 | O91: 18.95 | P91: 37.8 | Q91: 23.95 | S91: =S87 -> 0 | U91: =U87 -> 0 | W91: =W87 -> 0 | Y91: 0 | Z91: 0 | AA91: 0 | AB91: 0 | AC91: 0 | AD91: 0 | AE91: 0 | AF91: 0
B92: 9781681519050 | D92: 9781681518794 | F92: Los gorilas (Gorillas) | J92: Animales africanos (Spot African Animals) | N92: 27.1 | O92: 18.95 | P92: 37.8 | Q92: 23.95 | S92: =S87 -> 0 | U92: =U87 -> 0 | W92: =W87 -> 0 | Y92: 0 | Z92: 0 | AA92: 0 | AB92: 0 | AC92: 0 | AD92: 0 | AE92: 0 | AF92: 0
B93: 9781681519012 | D93: 9781681518756 | F93: Los guepardos (Cheetahs) | J93: Animales africanos (Spot African Animals) | N93: 27.1 | O93: 18.95 | P93: 37.8 | Q93: 23.95 | S93: =S87 -> 0 | U93: =U87 -> 0 | W93: =W87 -> 0 | Y93: 0 | Z93: 0 | AA93: 0 | AB93: 0 | AC93: 0 | AD93: 0 | AE93: 0 | AF93: 0
B94: 9781681519067 | D94: 9781681518800 | F94: Los hipopótamos (Hippos) | J94: Animales africanos (Spot African Animals) | N94: 27.1 | O94: 18.95 | P94: 37.8 | Q94: 23.95 | S94: =S87 -> 0 | U94: =U87 -> 0 | W94: =W87 -> 0 | Y94: 0 | Z94: 0 | AA94: 0 | AB94: 0 | AC94: 0 | AD94: 0 | AE94: 0 | AF94: 0
B95: 9781681519074 | D95: 9781681518817 | F95: Los leones (Lions) | J95: Animales africanos (Spot African Animals) | N95: 27.1 | O95: 18.95 | P95: 37.8 | Q95: 23.95 | S95: =S87 -> 0 | U95: =U87 -> 0 | W95: =W87 -> 0 | Y95: 0 | Z95: 0 | AA95: 0 | AB95: 0 | AC95: 0 | AD95: 0 | AE95: 0 | AF95: 0
A96: NEW | B96: 9781645492399 | D96: 9781645492337 | F96: Las anguilas (Eels) | J96: Animales del océano (Spot Ocean Animals) | N96: 27.1 | O96: 18.95 | P96: 37.8 | Q96: 23.95 | S96: =S87 -> 0 | U96: =U87 -> 0 | W96: =W87 -> 0 | Y96: 0 | Z96: 0 | AA96: 0 | AB96: 0 | AC96: 0 | AD96: 0 | AE96: 0 | AF96: 0
A97: NEW | B97: 9781645492405 | D97: 9781645492344 | F97: Las langostas (Lobsters) | J97: Animales del océano (Spot Ocean Animals) | N97: 27.1 | O97: 18.95 | P97: 37.8 | Q97: 23.95 | S97: =S87 -> 0 | U97: =U87 -> 0 | W97: =W87 -> 0 | Y97: 0 | Z97: 0 | AA97: 0 | AB97: 0 | AC97: 0 | AD97: 0 | AE97: 0 | AF97: 0
A98: NEW | B98: 9781645492436 | D98: 9781645492375 | F98: Los calamares (Squids) | J98: Animales del océano (Spot Ocean Animals) | N98: 27.1 | O98: 18.95 | P98: 37.8 | Q98: 23.95 | S98: =S87 -> 0 | U98: =U87 -> 0 | W98: =W87 -> 0 | Y98: 0 | Z98: 0 | AA98: 0 | AB98: 0 | AC98: 0 | AD98: 0 | AE98: 0 | AF98: 0
A99: NEW | B99: 9781645492382 | D99: 9781645492320 | F99: Los corales (Corals) | J99: Animales del océano (Spot Ocean Animals) | N99: 27.1 | O99: 18.95 | P99: 37.8 | Q99: 23.95 | S99: =S87 -> 0 | U99: =U87 -> 0 | W99: =W87 -> 0 | Y99: 0 | Z99: 0 | AA99: 0 | AB99: 0 | AC99: 0 | AD99: 0 | AE99: 0 | AF99: 0
A100: NEW | B100: 9781645492429 | D100: 9781645492368 | F100: Los dragones de mar (Sea Dragons) | J100: Animales del océano (Spot Ocean Animals) | N100: 27.1 | O100: 18.95 | P100: 37.8 | Q100: 23.95 | S100: =S87 -> 0 | U100: =U87 -> 0 | W100: =W87 -> 0 | Y100: 0 | Z100: 0 | AA100: 0 | AB100: 0 | AC100: 0 | AD100: 0 | AE100: 0 | AF100: 0
A101: NEW | B101: 9781645492412 | D101: 9781645492351 | F101: Los manatíes (Manatees) | J101: Animales del océano (Spot Ocean Animals) | N101: 27.1 | O101: 18.95 | P101: 37.8 | Q101: 23.95 | S101: =S87 -> 0 | U101: =U87 -> 0 | W101: =W87 -> 0 | Y101: 0 | Z101: 0 | AA101: 0 | AB101: 0 | AC101: 0 | AD101: 0 | AE101: 0 | AF101: 0
B102: Not Available | D102: 9781681512747 | F102: El búho (Owls) | J102: Animales del patio (Spot Backyard Animals) | N102: 27.1 | O102: 18.95 | P102: 0 | Q102: 0 | S102: =S87 -> 0 | Y102: 0 | Z102: 0 | AA102: 0 | AB102: 0 | AC102: 0 | AD102: 0 | AE102: 0 | AF102: 0
B103: Not Available | D103: 9781681512723 | F103: El geco (Geckos) | J103: Animales del patio (Spot Backyard Animals) | N103: 27.1 | O103: 18.95 | P103: 0 | Q103: 0 | S103: =S87 -> 0 | Y103: 0 | Z103: 0 | AA103: 0 | AB103: 0 | AC103: 0 | AD103: 0 | AE103: 0 | AF103: 0
B104: Not Available | D104: 9781681512754 | F104: El mapache (Raccoons) | J104: Animales del patio (Spot Backyard Animals) | N104: 27.1 | O104: 18.95 | P104: 0 | Q104: 0 | S104: =S87 -> 0 | Y104: 0 | Z104: 0 | AA104: 0 | AB104: 0 | AC104: 0 | AD104: 0 | AE104: 0 | AF104: 0
B105: Not Available | D105: 9781681512709 | F105: El murciélago (Bats) | J105: Animales del patio (Spot Backyard Animals) | N105: 27.1 | O105: 18.95 | P105: 0 | Q105: 0 | S105: =S87 -> 0 | Y105: 0 | Z105: 0 | AA105: 0 | AB105: 0 | AC105: 0 | AD105: 0 | AE105: 0 | AF105: 0
B106: Not Available | D106: 9781681512730 | F106: El ratón (Mice) | J106: Animales del patio (Spot Backyard Animals) | N106: 27.1 | O106: 18.95 | P106: 0 | Q106: 0 | S106: =S87 -> 0 | Y106: 0 | Z106: 0 | AA106: 0 | AB106: 0 | AC106: 0 | AD106: 0 | AE106: 0 | AF106: 0
B107: Not Available | D107: 9781681512761 | F107: El zorrillo (Skunks) | J107: Animales del patio (Spot Backyard Animals) | N107: 27.1 | O107: 18.95 | P107: 0 | Q107: 0 | S107: =S87 -> 0 | Y107: 0 | Z107: 0 | AA107: 0 | AB107: 0 | AC107: 0 | AD107: 0 | AE107: 0 | AF107: 0
B108: Not Available | D108: 9781681512778 | F108: La ardilla (Squirrels) | J108: Animales del patio (Spot Backyard Animals) | N108: 27.1 | O108: 18.95 | P108: 0 | Q108: 0 | S108: =S87 -> 0 | Y108: 0 | Z108: 0 | AA108: 0 | AB108: 0 | AC108: 0 | AD108: 0 | AE108: 0 | AF108: 0
B109: Not Available | D109: 9781681512716 | F109: La rana (Frogs) | J109: Animales del patio (Spot Backyard Animals) | N109: 27.1 | O109: 18.95 | P109: 0 | Q109: 0 | S109: =S87 -> 0 | Y109: 0 | Z109: 0 | AA109: 0 | AB109: 0 | AC109: 0 | AD109: 0 | AE109: 0 | AF109: 0
A110: NEW | B110: 9781645492221 | D110: 9781645491965 | F110: Las inundaciones (Floods) | J110: Clima extremo (Spot Extreme Weather) | N110: 27.1 | O110: 18.95 | P110: 37.8 | Q110: 23.95 | S110: =S87 -> 0 | U110: =U87 -> 0 | W110: =W87 -> 0 | Y110: 0 | Z110: 0 | AA110: 0 | AB110: 0 | AC110: 0 | AD110: 0 | AE110: 0 | AF110: 0
A111: NEW | B111: 9781645492207 | D111: 9781645491941 | F111: Las ventiscas (Blizzards) | J111: Clima extremo (Spot Extreme Weather) | N111: 27.1 | O111: 18.95 | P111: 37.8 | Q111: 23.95 | S111: =S87 -> 0 | U111: =U87 -> 0 | W111: =W87 -> 0 | Y111: 0 | Z111: 0 | AA111: 0 | AB111: 0 | AC111: 0 | AD111: 0 | AE111: 0 | AF111: 0
A112: NEW | B112: 9781645492238 | D112: 9781645491972 | F112: Los huracanes (Hurricanes) | J112: Clima extremo (Spot Extreme Weather) | N112: 27.1 | O112: 18.95 | P112: 37.8 | Q112: 23.95 | S112: =S87 -> 0 | U112: =U87 -> 0 | W112: =W87 -> 0 | Y112: 0 | Z112: 0 | AA112: 0 | AB112: 0 | AC112: 0 | AD112: 0 | AE112: 0 | AF112: 0
A113: NEW | B113: 9781645492252 | D113: 9781645491996 | F113: Los incendios forestales (Forest Fires) | J113: Clima extremo (Spot Extreme Weather) | N113: 27.1 | O113: 18.95 | P113: 37.8 | Q113: 23.95 | S113: =S87 -> 0 | U113: =U87 -> 0 | W113: =W87 -> 0 | Y113: 0 | Z113: 0 | AA113: 0 | AB113: 0 | AC113: 0 | AD113: 0 | AE113: 0 | AF113: 0
A114: NEW | B114: 9781645492214 | D114: 9781645491958 | F114: Los terremotos (Earthquakes) | J114: Clima extremo (Spot Extreme Weather) | N114: 27.1 | O114: 18.95 | P114: 37.8 | Q114: 23.95 | S114: =S87 -> 0 | U114: =U87 -> 0 | W114: =W87 -> 0 | Y114: 0 | Z114: 0 | AA114: 0 | AB114: 0 | AC114: 0 | AD114: 0 | AE114: 0 | AF114: 0
A115: NEW | B115: 9781645492245 | D115: 9781645491989 | F115: Los tornados (Tornadoes) | J115: Clima extremo (Spot Extreme Weather) | N115: 27.1 | O115: 18.95 | P115: 37.8 | Q115: 23.95 | S115: =S87 -> 0 | U115: =U87 -> 0 | W115: =W87 -> 0 | Y115: 0 | Z115: 0 | AA115: 0 | AB115: 0 | AC115: 0 | AD115: 0 | AE115: 0 | AF115: 0
A116: NEW | B116: 9781645492191 | D116: 9781645491934 | F116: Atletismo (Track & Field) | J116: Deportes (Spot Sports) | N116: 27.1 | O116: 18.95 | P116: 37.8 | Q116: 23.95 | S116: =S87 -> 0 | U116: =U87 -> 0 | W116: =W87 -> 0 | Y116: 0 | Z116: 0 | AA116: 0 | AB116: 0 | AC116: 0 | AD116: 0 | AE116: 0 | AF116: 0
A117: NEW | B117: 9781645492122 | D117: 9781645491866 | F117: Boliche (Bowling) | J117: Deportes (Spot Sports) | N117: 27.1 | O117: 18.95 | P117: 37.8 | Q117: 23.95 | S117: =S87 -> 0 | U117: =U87 -> 0 | W117: =W87 -> 0 | Y117: 0 | Z117: 0 | AA117: 0 | AB117: 0 | AC117: 0 | AD117: 0 | AE117: 0 | AF117: 0
A118: NEW | B118: 9781645492146 | D118: 9781645491880 | F118: Esquí alpino (Downhill Skiing) | J118: Deportes (Spot Sports) | N118: 27.1 | O118: 18.95 | P118: 37.8 | Q118: 23.95 | S118: =S87 -> 0 | U118: =U87 -> 0 | W118: =W87 -> 0 | Y118: 0 | Z118: 0 | AA118: 0 | AB118: 0 | AC118: 0 | AD118: 0 | AE118: 0 | AF118: 0
A119: NEW | B119: 9781645492153 | D119: 9781645491897 | F119: Lacrosse (Lacrosse) | J119: Deportes (Spot Sports) | N119: 27.1 | O119: 18.95 | P119: 37.8 | Q119: 23.95 | S119: =S87 -> 0 | U119: =U87 -> 0 | W119: =W87 -> 0 | Y119: 0 | Z119: 0 | AA119: 0 | AB119: 0 | AC119: 0 | AD119: 0 | AE119: 0 | AF119: 0
A120: NEW | B120: 9781645492160 | D120: 9781645491903 | F120: Patineta (Skateboarding) | J120: Deportes (Spot Sports) | N120: 27.1 | O120: 18.95 | P120: 37.8 | Q120: 23.95 | S120: =S87 -> 0 | U120: =U87 -> 0 | W120: =W87 -> 0 | Y120: 0 | Z120: 0 | AA120: 0 | AB120: 0 | AC120: 0 | AD120: 0 | AE120: 0 | AF120: 0
A121: NEW | B121: 9781645492139 | D121: 9781645491873 | F121: Porrismo (Cheerleading) | J121: Deportes (Spot Sports) | N121: 27.1 | O121: 18.95 | P121: 37.8 | Q121: 23.95 | S121: =S87 -> 0 | U121: =U87 -> 0 | W121: =W87 -> 0 | Y121: 0 | Z121: 0 | AA121: 0 | AB121: 0 | AC121: 0 | AD121: 0 | AE121: 0 | AF121: 0
A122: NEW | B122: 9781645492177 | D122: 9781645491910 | F122: Sofbol (Softball) | J122: Deportes (Spot Sports) | N122: 27.1 | O122: 18.95 | P122: 37.8 | Q122: 23.95 | S122: =S87 -> 0 | U122: =U87 -> 0 | W122: =W87 -> 0 | Y122: 0 | Z122: 0 | AA122: 0 | AB122: 0 | AC122: 0 | AD122: 0 | AE122: 0 | AF122: 0
A123: NEW | B123: 9781645492184 | D123: 9781645491927 | F123: Tenis (Tennis) | J123: Deportes (Spot Sports) | N123: 27.1 | O123: 18.95 | P123: 37.8 | Q123: 23.95 | S123: =S87 -> 0 | U123: =U87 -> 0 | W123: =W87 -> 0 | Y123: 0 | Z123: 0 | AA123: 0 | AB123: 0 | AC123: 0 | AD123: 0 | AE123: 0 | AF123: 0
B124: Not Available | D124: 9781681516295 | F124: El invierno (Winter) | J124: Estaciones (Spot Seasons) | N124: 27.1 | O124: 18.95 | P124: 0 | Q124: 0 | S124: =S87 -> 0 | Y124: 0 | Z124: 0 | AA124: 0 | AB124: 0 | AC124: 0 | AD124: 0 | AE124: 0 | AF124: 0
B125: Not Available | D125: 9781681516288 | F125: El otoño (Autumn) | J125: Estaciones (Spot Seasons) | N125: 27.1 | O125: 18.95 | P125: 0 | Q125: 0 | S125: =S87 -> 0 | Y125: 0 | Z125: 0 | AA125: 0 | AB125: 0 | AC125: 0 | AD125: 0 | AE125: 0 | AF125: 0
B126: Not Available | D126: 9781681516271 | F126: El verano (Summer) | J126: Estaciones (Spot Seasons) | N126: 27.1 | O126: 18.95 | P126: 0 | Q126: 0 | S126: =S87 -> 0 | Y126: 0 | Z126: 0 | AA126: 0 | AB126: 0 | AC126: 0 | AD126: 0 | AE126: 0 | AF126: 0
B127: Not Available | D127: 9781681516264 | F127: La primavera (Spring) | J127: Estaciones (Spot Seasons) | N127: 27.1 | O127: 18.95 | P127: 0 | Q127: 0 | S127: =S87 -> 0 | Y127: 0 | Z127: 0 | AA127: 0 | AB127: 0 | AC127: 0 | AD127: 0 | AE127: 0 | AF127: 0
A128: NEW | B128: 9781645492061 | D128: 9781645491804 | F128: Los gatos monteses (Wild Cats) | J128: Los gatos salvajes (Spot Wild Cats) | N128: 27.1 | O128: 18.95 | P128: 37.8 | Q128: =O128+5 -> 23.95 | S128: =S87 -> 0 | U128: =U87 -> 0 | W128: =W87 -> 0 | Y128: 0 | Z128: 0 | AA128: 0 | AB128: 0 | AC128: 0 | AD128: 0 | AE128: 0 | AF128: 0
A129: NEW | B129: 9781645492085 | D129: 9781645491828 | F129: Los jaguares (Jaguars) | J129: Los gatos salvajes (Spot Wild Cats) | N129: 27.1 | O129: 18.95 | P129: 37.8 | Q129: 23.95 | S129: =S87 -> 0 | U129: =U87 -> 0 | W129: =W87 -> 0 | Y129: 0 | Z129: 0 | AA129: 0 | AB129: 0 | AC129: 0 | AD129: 0 | AE129: 0 | AF129: 0
A130: NEW | B130: 9781645492092 | D130: 9781645491835 | F130: Los leopardos (Leopards) | J130: Los gatos salvajes (Spot Wild Cats) | N130: 27.1 | O130: 18.95 | P130: 37.8 | Q130: 23.95 | S130: =S87 -> 0 | U130: =U87 -> 0 | W130: =W87 -> 0 | Y130: 0 | Z130: 0 | AA130: 0 | AB130: 0 | AC130: 0 | AD130: 0 | AE130: 0 | AF130: 0
A131: NEW | B131: 9781645492108 | D131: 9781645491842 | F131: Los linces (Lynx) | J131: Los gatos salvajes (Spot Wild Cats) | N131: 27.1 | O131: 18.95 | P131: 37.8 | Q131: 23.95 | S131: =S87 -> 0 | U131: =U87 -> 0 | W131: =W87 -> 0 | Y131: 0 | Z131: 0 | AA131: 0 | AB131: 0 | AC131: 0 | AD131: 0 | AE131: 0 | AF131: 0
A132: NEW | B132: 9781645492078 | D132: 9781645491811 | F132: Los pumas (Pumas) | J132: Los gatos salvajes (Spot Wild Cats) | N132: 27.1 | O132: 18.95 | P132: 37.8 | Q132: 23.95 | S132: =S87 -> 0 | U132: =U87 -> 0 | W132: =W87 -> 0 | Y132: 0 | Z132: 0 | AA132: 0 | AB132: 0 | AC132: 0 | AD132: 0 | AE132: 0 | AF132: 0
A133: NEW | B133: 9781645492115 | D133: 9781645491859 | F133: Los tigres (Tigers) | J133: Los gatos salvajes (Spot Wild Cats) | N133: 27.1 | O133: 18.95 | P133: 37.8 | Q133: 23.95 | S133: =S87 -> 0 | U133: =U87 -> 0 | W133: =W87 -> 0 | Y133: 0 | Z133: 0 | AA133: 0 | AB133: 0 | AC133: 0 | AD133: 0 | AE133: 0 | AF133: 0
B134: Not Available | D134: 9781681516073 | F134: Las camionetas (Trucks) | J134: Máquinas poderosas (Spot Mighty Machines) | N134: 27.1 | O134: 18.95 | P134: 0 | Q134: 0 | S134: =S87 -> 0 | Y134: 0 | Z134: 0 | AA134: 0 | AB134: 0 | AC134: 0 | AD134: 0 | AE134: 0 | AF134: 0
B135: Not Available | D135: 9781681512693 | F135: Las cargadoras (Loaders) | J135: Máquinas poderosas (Spot Mighty Machines) | N135: 27.1 | O135: 18.95 | P135: 0 | Q135: 0 | S135: =S87 -> 0 | Y135: 0 | Z135: 0 | AA135: 0 | AB135: 0 | AC135: 0 | AD135: 0 | AE135: 0 | AF135: 0
B136: Not Available | D136: 9781681512679 | F136: Las excavadoras (Diggers) | J136: Máquinas poderosas (Spot Mighty Machines) | N136: 27.1 | O136: 18.95 | P136: 0 | Q136: 0 | S136: =S87 -> 0 | Y136: 0 | Z136: 0 | AA136: 0 | AB136: 0 | AC136: 0 | AD136: 0 | AE136: 0 | AF136: 0
B137: Not Available | D137: 9781681512662 | F137: Las grúas (Cranes) | J137: Máquinas poderosas (Spot Mighty Machines) | N137: 27.1 | O137: 18.95 | P137: 0 | Q137: 0 | S137: =S87 -> 0 | Y137: 0 | Z137: 0 | AA137: 0 | AB137: 0 | AC137: 0 | AD137: 0 | AE137: 0 | AF137: 0
B138: Not Available | D138: 9781681512655 | F138: Las mezcladoras de concreto (Concrete Mixers) | J138: Máquinas poderosas (Spot Mighty Machines) | N138: 27.1 | O138: 18.95 | P138: 0 | Q138: 0 | S138: =S87 -> 0 | Y138: 0 | Z138: 0 | AA138: 0 | AB138: 0 | AC138: 0 | AD138: 0 | AE138: 0 | AF138: 0
B139: 9781681519111 | D139: 9781681518855 | F139: Las motocicletas (Motorcycles) | J139: Máquinas poderosas (Spot Mighty Machines) | N139: 27.1 | O139: 18.95 | P139: 37.8 | Q139: =O139+5 -> 23.95 | S139: =S87 -> 0 | U139: =U87 -> 0 | W139: =W87 -> 0 | Y139: 0 | Z139: 0 | AA139: 0 | AB139: 0 | AC139: 0 | AD139: 0 | AE139: 0 | AF139: 0
B140: Not Available | D140: 9781681512648 | F140: Las topadoras (Bulldozers) | J140: Máquinas poderosas (Spot Mighty Machines) | N140: 27.1 | O140: 18.95 | P140: 0 | Q140: 0 | S140: =S87 -> 0 | Y140: 0 | Z140: 0 | AA140: 0 | AB140: 0 | AC140: 0 | AD140: 0 | AE140: 0 | AF140: 0
B141: 9781681519098 | D141: 9781681518831 | F141: Los aviones (Airplanes) | J141: Máquinas poderosas (Spot Mighty Machines) | N141: 27.1 | O141: 18.95 | P141: 37.8 | Q141: =O141+5 -> 23.95 | S141: =S87 -> 0 | U141: =U87 -> 0 | W141: =W87 -> 0 | Y141: 0 | Z141: 0 | AA141: 0 | AB141: 0 | AC141: 0 | AD141: 0 | AE141: 0 | AF141: 0
B142: Not Available | D142: 9781681516080 | F142: Los camiones cisterna (Tanker Trucks) | J142: Máquinas poderosas (Spot Mighty Machines) | N142: 27.1 | O142: 18.95 | P142: 0 | Q142: 0 | S142: =S87 -> 0 | Y142: 0 | Z142: 0 | AA142: 0 | AB142: 0 | AC142: 0 | AD142: 0 | AE142: 0 | AF142: 0
B143: Not Available | D143: 9781681516066 | F143: Los camiones de basura (Garbage Trucks) | J143: Máquinas poderosas (Spot Mighty Machines) | N143: 27.1 | O143: 18.95 | P143: 0 | Q143: 0 | S143: =S87 -> 0 | Y143: 0 | Z143: 0 | AA143: 0 | AB143: 0 | AC143: 0 | AD143: 0 | AE143: 0 | AF143: 0
B144: Not Available | D144: 9781681516059 | F144: Los camiones de bomberos (Fire Trucks) | J144: Máquinas poderosas (Spot Mighty Machines) | N144: 27.1 | O144: 18.95 | P144: 0 | Q144: 0 | S144: =S87 -> 0 | Y144: 0 | Z144: 0 | AA144: 0 | AB144: 0 | AC144: 0 | AD144: 0 | AE144: 0 | AF144: 0
B145: Not Available | D145: 9781681516097 | F145: Los camiones de remolque (Tow Trucks) | J145: Máquinas poderosas (Spot Mighty Machines) | N145: 27.1 | O145: 18.95 | P145: 0 | Q145: 0 | S145: =S87 -> 0 | Y145: 0 | Z145: 0 | AA145: 0 | AB145: 0 | AC145: 0 | AD145: 0 | AE145: 0 | AF145: 0
B146: Not Available | D146: 9781681516042 | F146: Los camiones grandes (Big Rigs) | J146: Máquinas poderosas (Spot Mighty Machines) | N146: 27.1 | O146: 18.95 | P146: 0 | Q146: 0 | S146: =S87 -> 0 | Y146: 0 | Z146: 0 | AA146: 0 | AB146: 0 | AC146: 0 | AD146: 0 | AE146: 0 | AF146: 0
B147: Not Available | D147: 9781681512686 | F147: Los camiones volquetes (Dump Trucks) | J147: Máquinas poderosas (Spot Mighty Machines) | N147: 27.1 | O147: 18.95 | P147: 0 | Q147: 0 | S147: =S87 -> 0 | Y147: 0 | Z147: 0 | AA147: 0 | AB147: 0 | AC147: 0 | AD147: 0 | AE147: 0 | AF147: 0
B148: 9781681519128 | D148: 9781681518862 | F148: Los coches de carreras (Race Cars) | J148: Máquinas poderosas (Spot Mighty Machines) | N148: 27.1 | O148: 18.95 | P148: 37.8 | Q148: =O148+5 -> 23.95 | S148: =S87 -> 0 | U148: =U87 -> 0 | W148: =W87 -> 0 | Y148: 0 | Z148: 0 | AA148: 0 | AB148: 0 | AC148: 0 | AD148: 0 | AE148: 0 | AF148: 0
B149: 9781681519104 | D149: 9781681518848 | F149: Los helicópteros (Helicopters) | J149: Máquinas poderosas (Spot Mighty Machines) | N149: 27.1 | O149: 18.95 | P149: 37.8 | Q149: =O149+5 -> 23.95 | S149: =S87 -> 0 | U149: =U87 -> 0 | W149: =W87 -> 0 | Y149: 0 | Z149: 0 | AA149: 0 | AB149: 0 | AC149: 0 | AD149: 0 | AE149: 0 | AF149: 0
B150: 9781681519135 | D150: 9781681518879 | F150: Los tanques (Tanks) | J150: Máquinas poderosas (Spot Mighty Machines) | N150: 27.1 | O150: 18.95 | P150: 37.8 | Q150: =O150+5 -> 23.95 | S150: =S87 -> 0 | U150: =U87 -> 0 | W150: =W87 -> 0 | Y150: 0 | Z150: 0 | AA150: 0 | AB150: 0 | AC150: 0 | AD150: 0 | AE150: 0 | AF150: 0
B151: 9781681519142 | D151: 9781681518886 | F151: Los trenes (Trains) | J151: Máquinas poderosas (Spot Mighty Machines) | N151: 27.1 | O151: 18.95 | P151: 37.8 | Q151: =O151+5 -> 23.95 | S151: =S87 -> 0 | U151: =U87 -> 0 | W151: =W87 -> 0 | Y151: 0 | Z151: 0 | AA151: 0 | AB151: 0 | AC151: 0 | AD151: 0 | AE151: 0 | AF151: 0
F153: Complete Series of 6 | J153: Ecosystem Food Webs | N153: =SUM(N154:N159) -> 179.7 | O153: =SUM(O154:O159) -> 125.7 | P153: =SUM(P154:P159) -> 256.8 | Q153: =SUM(Q154:Q159) -> 155.7
A154: NEW | B154: 9781645490807 | D154: 9781645490005 | F154: A Desert Food Web | J154: Ecosystem Food Webs | N154: 29.95 | O154: 20.95 | P154: 42.8 | Q154: =O154+5 -> 25.95 | S154: =S153 -> 0 | U154: =U153 -> 0 | W154: =W153 -> 0 | Y154: =S154 -> 0 | Z154: =U154 -> 0 | AA154: =W154*2 -> 0 | AB154: =Y154+Z154+AA154 -> 0 | AC154: =S154*O154 -> 0 | AD154: =U154*P154 -> 0 | AE154: =W154*Q154 -> 0 | AF154: =IF(AH154=FALSE,AC154+AD154+AE154,0) -> 0
A155: NEW | B155: 9781645490814 | D155: 9781645490012 | F155: A Freshwater Food Web | J155: Ecosystem Food Webs | N155: 29.95 | O155: 20.95 | P155: 42.8 | Q155: =O155+5 -> 25.95 | S155: =S153 -> 0 | U155: =U153 -> 0 | W155: =W153 -> 0 | Y155: 0 | Z155: 0 | AA155: 0 | AB155: 0 | AC155: 0 | AD155: 0 | AE155: 0 | AF155: 0
A156: NEW | B156: 9781645490821 | D156: 9781645490029 | F156: A Grassland Food Web | J156: Ecosystem Food Webs | N156: 29.95 | O156: 20.95 | P156: 42.8 | Q156: 25.95 | S156: =S153 -> 0 | U156: =U153 -> 0 | W156: =W153 -> 0 | Y156: 0 | Z156: 0 | AA156: 0 | AB156: 0 | AC156: 0 | AD156: 0 | AE156: 0 | AF156: 0
A157: NEW | B157: 9781645490838 | D157: 9781645490036 | F157: A Rainforest Food Web | J157: Ecosystem Food Webs | N157: 29.95 | O157: 20.95 | P157: 42.8 | Q157: 25.95 | S157: =S153 -> 0 | U157: =U153 -> 0 | W157: =W153 -> 0 | Y157: 0 | Z157: 0 | AA157: 0 | AB157: 0 | AC157: 0 | AD157: 0 | AE157: 0 | AF157: 0
A158: NEW | B158: 9781645490845 | D158: 9781645490043 | F158: An Arctic Food Web | J158: Ecosystem Food Webs | N158: 29.95 | O158: 20.95 | P158: 42.8 | Q158: 25.95 | S158: =S153 -> 0 | U158: =U153 -> 0 | W158: =W153 -> 0 | Y158: 0 | Z158: 0 | AA158: 0 | AB158: 0 | AC158: 0 | AD158: 0 | AE158: 0 | AF158: 0
A159: NEW | B159: 9781645490852 | D159: 9781645490050 | F159: An Ocean Food Web | J159: Ecosystem Food Webs | N159: 29.95 | O159: 20.95 | P159: 42.8 | Q159: 25.95 | S159: =S153 -> 0 | U159: =U153 -> 0 | W159: =W153 -> 0 | Y159: 0 | Z159: 0 | AA159: 0 | AB159: 0 | AC159: 0 | AD159: 0 | AE159: 0 | AF159: 0
F161: Complete Series of 16 | J161: Making Good Choices | N161: =SUM(N162:N177) -> 479.2 | O161: =SUM(O162:O177) -> 335.2 | P161: 684.8 | Q161: 415.2
A162: NEW | B162: 9781645490708 | D162: 9781681519852 | F162: You Can Be Helpful: Step Aside or Pitch In? | J162: Making Good Choices | N162: 29.95 | O162: 20.95 | P162: 42.8 | Q162: =O162+5 -> 25.95 | S162: =S161 -> 0 | U162: =U161 -> 0 | W162: =W161 -> 0 | Y162: =S162 -> 0 | Z162: =U162 -> 0 | AA162: =W162*2 -> 0 | AB162: =Y162+Z162+AA162 -> 0 | AC162: =S162*O162 -> 0 | AD162: =U162*P162 -> 0 | AE162: =W162*Q162 -> 0 | AF162: =IF(AH162=FALSE,AC162+AD162+AE162,0) -> 0
A163: NEW | B163: 9781645490715 | D163: 9781681519869 | F163: You Can Be Polite: Be Rude or Use Tact? | J163: Making Good Choices | N163: 29.95 | O163: 20.95 | P163: 42.8 | Q163: 25.95 | S163: =S161 -> 0 | U163: =U161 -> 0 | W163: =W161 -> 0 | Y163: 0 | Z163: 0 | AA163: 0 | AB163: 0 | AC163: 0 | AD163: 0 | AE163: 0 | AF163: 0
B164: 9781681517704 | D164: 9781681516882 | F164: You Can Be Responsible: Do it Now or Put it Off? | J164: Making Good Choices | N164: 29.95 | O164: 20.95 | P164: 42.8 | Q164: 25.95 | S164: =S161 -> 0 | U164: =U161 -> 0 | W164: =W161 -> 0 | Y164: 0 | Z164: 0 | AA164: 0 | AB164: 0 | AC164: 0 | AD164: 0 | AE164: 0 | AF164: 0
B165: 9781681512570 | D165: 9781681511672 | F165: You Can Control Your Voice: Loud or Quiet? | J165: Making Good Choices | N165: 29.95 | O165: 20.95 | P165: 42.8 | Q165: 25.95 | S165: =S161 -> 0 | U165: =U161 -> 0 | W165: =W161 -> 0 | Y165: 0 | Z165: 0 | AA165: 0 | AB165: 0 | AC165: 0 | AD165: 0 | AE165: 0 | AF165: 0
B166: 9781681517711 | D166: 9781681516899 | F166: You Can Encourage Others: Tease or Inspire? | J166: Making Good Choices | N166: 29.95 | O166: 20.95 | P166: 42.8 | Q166: 25.95 | S166: =S161 -> 0 | U166: =U161 -> 0 | W166: =W161 -> 0 | Y166: 0 | Z166: 0 | AA166: 0 | AB166: 0 | AC166: 0 | AD166: 0 | AE166: 0 | AF166: 0
B167: 9781681517728 | D167: 9781681516905 | F167: You Can Follow Rules: Cheat or Play Fair? | J167: Making Good Choices | N167: 29.95 | O167: 20.95 | P167: 42.8 | Q167: 25.95 | S167: =S161 -> 0 | U167: =U161 -> 0 | W167: =W161 -> 0 | Y167: 0 | Z167: 0 | AA167: 0 | AB167: 0 | AC167: 0 | AD167: 0 | AE167: 0 | AF167: 0
B168: 9781681512525 | D168: 9781681511627 | F168: You Can Handle Conflict: Hands or Words? | J168: Making Good Choices | N168: 29.95 | O168: 20.95 | P168: 42.8 | Q168: 25.95 | S168: =S161 -> 0 | U168: =U161 -> 0 | W168: =W161 -> 0 | Y168: 0 | Z168: 0 | AA168: 0 | AB168: 0 | AC168: 0 | AD168: 0 | AE168: 0 | AF168: 0
B169: 9781681512563 | D169: 9781681511665 | F169: You Can Listen to Directions: Stop or Go? | J169: Making Good Choices | N169: 29.95 | O169: 20.95 | P169: 42.8 | Q169: 25.95 | S169: =S161 -> 0 | U169: =U161 -> 0 | W169: =W161 -> 0 | Y169: 0 | Z169: 0 | AA169: 0 | AB169: 0 | AC169: 0 | AD169: 0 | AE169: 0 | AF169: 0
B170: 9781681517735 | D170: 9781681516912 | F170: You Can Make Changes: Ask or Ignore? | J170: Making Good Choices | N170: 29.95 | O170: 20.95 | P170: 42.8 | Q170: 25.95 | S170: =S161 -> 0 | U170: =U161 -> 0 | W170: =W161 -> 0 | Y170: 0 | Z170: 0 | AA170: 0 | AB170: 0 | AC170: 0 | AD170: 0 | AE170: 0 | AF170: 0
A171: NEW | B171: 9781645490722 | D171: 9781681519876 | F171: You Can Persevere: Quit or Keep Going? | J171: Making Good Choices | N171: 29.95 | O171: 20.95 | P171: 42.8 | Q171: 25.95 | S171: =S161 -> 0 | U171: =U161 -> 0 | W171: =W161 -> 0 | Y171: 0 | Z171: 0 | AA171: 0 | AB171: 0 | AC171: 0 | AD171: 0 | AE171: 0 | AF171: 0
B172: 9781681517742 | D172: 9781681516929 | F172: You Can Respect Differences: Assume or Find Out? | J172: Making Good Choices | N172: 29.95 | O172: 20.95 | P172: 42.8 | Q172: 25.95 | S172: =S161 -> 0 | U172: =U161 -> 0 | W172: =W161 -> 0 | Y172: 0 | Z172: 0 | AA172: 0 | AB172: 0 | AC172: 0 | AD172: 0 | AE172: 0 | AF172: 0
B173: 9781681512556 | D173: 9781681511658 | F173: You Can Stay in Control: Wild or Calm? | J173: Making Good Choices | N173: 29.95 | O173: 20.95 | P173: 42.8 | Q173: 25.95 | S173: =S161 -> 0 | U173: =U161 -> 0 | W173: =W161 -> 0 | Y173: 0 | Z173: 0 | AA173: 0 | AB173: 0 | AC173: 0 | AD173: 0 | AE173: 0 | AF173: 0
B174: 9781681517759 | D174: 9781681516936 | F174: You Can Stop Bullying: Stand By or Stand Up? | J174: Making Good Choices | N174: 29.95 | O174: 20.95 | P174: 42.8 | Q174: 25.95 | S174: =S161 -> 0 | U174: =U161 -> 0 | W174: =W161 -> 0 | Y174: 0 | Z174: 0 | AA174: 0 | AB174: 0 | AC174: 0 | AD174: 0 | AE174: 0 | AF174: 0
A175: NEW | B175: 9781645490739 | D175: 9781681519883 | F175: You Can Use Money Wisely: Spend or Save? | J175: Making Good Choices | N175: 29.95 | O175: 20.95 | P175: 42.8 | Q175: 25.95 | S175: =S161 -> 0 | U175: =U161 -> 0 | W175: =W161 -> 0 | Y175: 0 | Z175: 0 | AA175: 0 | AB175: 0 | AC175: 0 | AD175: 0 | AE175: 0 | AF175: 0
B176: 9781681512549 | D176: 9781681511641 | F176: You're Angry: Throw a Fit or Talk it Out? | J176: Making Good Choices | N176: 29.95 | O176: 20.95 | P176: 42.8 | Q176: 25.95 | S176: =S161 -> 0 | U176: =U161 -> 0 | W176: =W161 -> 0 | Y176: 0 | Z176: 0 | AA176: 0 | AB176: 0 | AC176: 0 | AD176: 0 | AE176: 0 | AF176: 0
B177: 9781681512532 | D177: 9781681511634 | F177: You're in Trouble: Fib or Truth? | J177: Making Good Choices | N177: 29.95 | O177: 20.95 | P177: 42.8 | Q177: 25.95 | S177: =S161 -> 0 | U177: =U161 -> 0 | W177: =W161 -> 0 | Y177: 0 | Z177: 0 | AA177: 0 | AB177: 0 | AC177: 0 | AD177: 0 | AE177: 0 | AF177: 0
F179: Complete Series of 6 | J179: Mi vida con… (My Life With…) | N179: =SUM(N180:N185) -> 179.7 | O179: =SUM(O180:O185) -> 125.7 | P179: 256.8 | Q179: 155.7
A180: NEW | B180: 9781645492290 | D180: 9781645492030 | F180: Mi vida con autismo (Autism) | J180: Mi vida con… (My Life With…) | N180: 29.95 | O180: 20.95 | P180: 42.8 | Q180: =O180+5 -> 25.95 | S180: =S179 -> 0 | U180: =U179 -> 0 | W180: =W179 -> 0 | Y180: =S180 -> 0 | Z180: =U180 -> 0 | AA180: =W180*2 -> 0 | AB180: =Y180+Z180+AA180 -> 0 | AC180: =S180*O180 -> 0 | AD180: =U180*P180 -> 0 | AE180: =W180*Q180 -> 0 | AF180: =IF(AH180=FALSE,AC180+AD180+AE180,0) -> 0
A181: NEW | B181: 9781645492269 | D181: 9781645492009 | F181: Mi vida con ceguera (Blindness) | J181: Mi vida con… (My Life With…) | N181: 29.95 | O181: 20.95 | P181: 42.8 | Q181: 25.95 | S181: =S179 -> 0 | U181: =U179 -> 0 | W181: =W179 -> 0 | Y181: 0 | Z181: 0 | AA181: 0 | AB181: 0 | AC181: 0 | AD181: 0 | AE181: 0 | AF181: 0
A182: NEW | B182: 9781645492313 | D182: 9781645492054 | F182: Mi vida con dislexia (Dyslexia) | J182: Mi vida con… (My Life With…) | N182: 29.95 | O182: 20.95 | P182: 42.8 | Q182: 25.95 | S182: =S179 -> 0 | U182: =U179 -> 0 | W182: =W179 -> 0 | Y182: 0 | Z182: 0 | AA182: 0 | AB182: 0 | AC182: 0 | AD182: 0 | AE182: 0 | AF182: 0
A183: NEW | B183: 9781645492306 | D183: 9781645492047 | F183: Mi vida con síndrome de Down (Down Syndrome) | J183: Mi vida con… (My Life With…) | N183: 29.95 | O183: 20.95 | P183: 42.8 | Q183: 25.95 | S183: =S179 -> 0 | U183: =U179 -> 0 | W183: =W179 -> 0 | Y183: 0 | Z183: 0 | AA183: 0 | AB183: 0 | AC183: 0 | AD183: 0 | AE183: 0 | AF183: 0
A184: NEW | B184: 9781645492276 | D184: 9781645492016 | F184: Mi vida con sordera (Deafness) | J184: Mi vida con… (My Life With…) | N184: 29.95 | O184: 20.95 | P184: 42.8 | Q184: 25.95 | S184: =S179 -> 0 | U184: =U179 -> 0 | W184: =W179 -> 0 | Y184: 0 | Z184: 0 | AA184: 0 | AB184: 0 | AC184: 0 | AD184: 0 | AE184: 0 | AF184: 0
A185: NEW | B185: 9781645492283 | D185: 9781645492023 | F185: Mi vida con TDAH (ADHD) | J185: Mi vida con… (My Life With…) | N185: 29.95 | O185: 20.95 | P185: 42.8 | Q185: 25.95 | S185: =S179 -> 0 | U185: =U179 -> 0 | W185: =W179 -> 0 | Y185: 0 | Z185: 0 | AA185: 0 | AB185: 0 | AC185: 0 | AD185: 0 | AE185: 0 | AF185: 0
F187: Complete Series of 6 | J187: My Life With . . . | N187: =SUM(N188:N193) -> 179.7 | O187: =SUM(O188:O193) -> 125.7 | P187: 256.8 | Q187: 155.7
A188: NEW | B188: 9781645490760 | D188: 9781681519913 | F188: My Life with ADHD | J188: My Life With . . . | N188: 29.95 | O188: 20.95 | P188: 42.8 | Q188: =O188+5 -> 25.95 | S188: =S187 -> 0 | U188: =U187 -> 0 | W188: =W187 -> 0 | Y188: =S188 -> 0 | Z188: =U188 -> 0 | AA188: =W188*2 -> 0 | AB188: =Y188+Z188+AA188 -> 0 | AC188: =S188*O188 -> 0 | AD188: =U188*P188 -> 0 | AE188: =W188*Q188 -> 0 | AF188: =IF(AH188=FALSE,AC188+AD188+AE188,0) -> 0
A189: NEW | B189: 9781645490777 | D189: 9781681519920 | F189: My Life with Autism | J189: My Life With . . . | N189: 29.95 | O189: 20.95 | P189: 42.8 | Q189: 25.95 | S189: =S187 -> 0 | U189: =U187 -> 0 | W189: =W187 -> 0 | Y189: 0 | Z189: 0 | AA189: 0 | AB189: 0 | AC189: 0 | AD189: 0 | AE189: 0 | AF189: 0
A190: NEW | B190: 9781645490746 | D190: 9781681519890 | F190: My Life with Blindness | J190: My Life With . . . | N190: 29.95 | O190: 20.95 | P190: 42.8 | Q190: 25.95 | S190: =S187 -> 0 | U190: =U187 -> 0 | W190: =W187 -> 0 | Y190: 0 | Z190: 0 | AA190: 0 | AB190: 0 | AC190: 0 | AD190: 0 | AE190: 0 | AF190: 0
A191: NEW | B191: 9781645490753 | D191: 9781681519906 | F191: My Life with Deafness | J191: My Life With . . . | N191: 29.95 | O191: 20.95 | P191: 42.8 | Q191: 25.95 | S191: =S187 -> 0 | U191: =U187 -> 0 | W191: =W187 -> 0 | Y191: 0 | Z191: 0 | AA191: 0 | AB191: 0 | AC191: 0 | AD191: 0 | AE191: 0 | AF191: 0
A192: NEW | B192: 9781645490784 | D192: 9781681519937 | F192: My Life with Down Syndrome | J192: My Life With . . . | N192: 29.95 | O192: 20.95 | P192: 42.8 | Q192: 25.95 | S192: =S187 -> 0 | U192: =U187 -> 0 | W192: =W187 -> 0 | Y192: 0 | Z192: 0 | AA192: 0 | AB192: 0 | AC192: 0 | AD192: 0 | AE192: 0 | AF192: 0
A193: NEW | B193: 9781645490791 | D193: 9781681519944 | F193: My Life with Dyslexia | J193: My Life With . . . | N193: 29.95 | O193: 20.95 | P193: 42.8 | Q193: 25.95 | S193: =S187 -> 0 | U193: =U187 -> 0 | W193: =W187 -> 0 | Y193: 0 | Z193: 0 | AA193: 0 | AB193: 0 | AC193: 0 | AD193: 0 | AE193: 0 | AF193: 0
F195: Complete Series of 160 | J195: Spot | N195: =SUM(N196:N355) -> 4336 | O195: =SUM(O196:O355) -> 3032 | P195: 6048 | Q195: 3832
B196: 9781681517186 | D196: 9781681516363 | F196: Cheetahs | J196: Spot African Animals | N196: 27.1 | O196: 18.95 | P196: 37.8 | Q196: =O196+5 -> 23.95 | S196: =S195 -> 0 | U196: =U195 -> 0 | W196: =W195 -> 0 | Y196: =S196 -> 0 | Z196: =U196 -> 0 | AA196: =W196*2 -> 0 | AB196: =Y196+Z196+AA196 -> 0 | AC196: =S196*O196 -> 0 | AD196: =U196*P196 -> 0 | AE196: =W196*Q196 -> 0 | AF196: =IF(AH196=FALSE,AC196+AD196+AE196,0) -> 0
B197: 9781681517193 | D197: 9781681516370 | F197: Crocodiles | J197: Spot African Animals | N197: 27.1 | O197: 18.95 | P197: 37.8 | Q197: 23.95 | S197: =S195 -> 0 | U197: =U195 -> 0 | W197: =W195 -> 0 | Y197: 0 | Z197: 0 | AA197: 0 | AB197: 0 | AC197: 0 | AD197: 0 | AE197: 0 | AF197: 0
B198: 9781681517209 | D198: 9781681516387 | F198: Elephants | J198: Spot African Animals | N198: 27.1 | O198: 18.95 | P198: 37.8 | Q198: 23.95 | S198: =S195 -> 0 | U198: =U195 -> 0 | W198: =W195 -> 0 | Y198: 0 | Z198: 0 | AA198: 0 | AB198: 0 | AC198: 0 | AD198: 0 | AE198: 0 | AF198: 0
B199: 9781681517216 | D199: 9781681516394 | F199: Giraffes | J199: Spot African Animals | N199: 27.1 | O199: 18.95 | P199: 37.8 | Q199: 23.95 | S199: =S195 -> 0 | U199: =U195 -> 0 | W199: =W195 -> 0 | Y199: 0 | Z199: 0 | AA199: 0 | AB199: 0 | AC199: 0 | AD199: 0 | AE199: 0 | AF199: 0
B200: 9781681517223 | D200: 9781681516400 | F200: Gorillas | J200: Spot African Animals | N200: 27.1 | O200: 18.95 | P200: 37.8 | Q200: 23.95 | S200: =S195 -> 0 | U200: =U195 -> 0 | W200: =W195 -> 0 | Y200: 0 | Z200: 0 | AA200: 0 | AB200: 0 | AC200: 0 | AD200: 0 | AE200: 0 | AF200: 0
B201: 9781681517230 | D201: 9781681516417 | F201: Hippos | J201: Spot African Animals | N201: 27.1 | O201: 18.95 | P201: 37.8 | Q201: 23.95 | S201: =S195 -> 0 | U201: =U195 -> 0 | W201: =W195 -> 0 | Y201: 0 | Z201: 0 | AA201: 0 | AB201: 0 | AC201: 0 | AD201: 0 | AE201: 0 | AF201: 0
B202: 9781681517247 | D202: 9781681516424 | F202: Lions | J202: Spot African Animals | N202: 27.1 | O202: 18.95 | P202: 37.8 | Q202: 23.95 | S202: =S195 -> 0 | U202: =U195 -> 0 | W202: =W195 -> 0 | Y202: 0 | Z202: 0 | AA202: 0 | AB202: 0 | AC202: 0 | AD202: 0 | AE202: 0 | AF202: 0
B203: 9781681517254 | D203: 9781681516431 | F203: Zebras | J203: Spot African Animals | N203: 27.1 | O203: 18.95 | P203: 37.8 | Q203: 23.95 | S203: =S195 -> 0 | U203: =U195 -> 0 | W203: =W195 -> 0 | Y203: 0 | Z203: 0 | AA203: 0 | AB203: 0 | AC203: 0 | AD203: 0 | AE203: 0 | AF203: 0
A204: NEW | B204: 9781681518350 | D204: 9781681517957 | F204: Arctic Foxes | J204: Spot Arctic Animals | N204: 27.1 | O204: 18.95 | P204: 37.8 | Q204: 23.95 | S204: =S195 -> 0 | U204: =U195 -> 0 | W204: =W195 -> 0 | Y204: 0 | Z204: 0 | AA204: 0 | AB204: 0 | AC204: 0 | AD204: 0 | AE204: 0 | AF204: 0
A205: NEW | B205: 9781681518367 | D205: 9781681517964 | F205: Orcas | J205: Spot Arctic Animals | N205: 27.1 | O205: 18.95 | P205: 37.8 | Q205: 23.95 | S205: =S195 -> 0 | U205: =U195 -> 0 | W205: =W195 -> 0 | Y205: 0 | Z205: 0 | AA205: 0 | AB205: 0 | AC205: 0 | AD205: 0 | AE205: 0 | AF205: 0
A206: NEW | B206: 9781681518374 | D206: 9781681517971 | F206: Polar Bears | J206: Spot Arctic Animals | N206: 27.1 | O206: 18.95 | P206: 37.8 | Q206: 23.95 | S206: =S195 -> 0 | U206: =U195 -> 0 | W206: =W195 -> 0 | Y206: 0 | Z206: 0 | AA206: 0 | AB206: 0 | AC206: 0 | AD206: 0 | AE206: 0 | AF206: 0
A207: NEW | B207: 9781681518381 | D207: 9781681517988 | F207: Reindeer | J207: Spot Arctic Animals | N207: 27.1 | O207: 18.95 | P207: 37.8 | Q207: 23.95 | S207: =S195 -> 0 | U207: =U195 -> 0 | W207: =W195 -> 0 | Y207: 0 | Z207: 0 | AA207: 0 | AB207: 0 | AC207: 0 | AD207: 0 | AE207: 0 | AF207: 0
A208: NEW | B208: 9781681518398 | D208: 9781681517995 | F208: Sea Otters | J208: Spot Arctic Animals | N208: 27.1 | O208: 18.95 | P208: 37.8 | Q208: 23.95 | S208: =S195 -> 0 | U208: =U195 -> 0 | W208: =W195 -> 0 | Y208: 0 | Z208: 0 | AA208: 0 | AB208: 0 | AC208: 0 | AD208: 0 | AE208: 0 | AF208: 0
A209: NEW | B209: 9781681518404 | D209: 9781681518008 | F209: Snowy Owls | J209: Spot Arctic Animals | N209: 27.1 | O209: 18.95 | P209: 37.8 | Q209: 23.95 | S209: =S195 -> 0 | U209: =U195 -> 0 | W209: =W195 -> 0 | Y209: 0 | Z209: 0 | AA209: 0 | AB209: 0 | AC209: 0 | AD209: 0 | AE209: 0 | AF209: 0
B210: 9781681513270 | D210: 9781681512877 | F210: Flowers | J210: Spot Awesome Nature | N210: 27.1 | O210: 18.95 | P210: 37.8 | Q210: 23.95 | S210: =S195 -> 0 | U210: =U195 -> 0 | W210: =W195 -> 0 | Y210: 0 | Z210: 0 | AA210: 0 | AB210: 0 | AC210: 0 | AD210: 0 | AE210: 0 | AF210: 0
B211: 9781681513287 | D211: 9781681512884 | F211: Oceans | J211: Spot Awesome Nature | N211: 27.1 | O211: 18.95 | P211: 37.8 | Q211: 23.95 | S211: =S195 -> 0 | U211: =U195 -> 0 | W211: =W195 -> 0 | Y211: 0 | Z211: 0 | AA211: 0 | AB211: 0 | AC211: 0 | AD211: 0 | AE211: 0 | AF211: 0
B212: 9781681513256 | D212: 9781681512853 | F212: Seasons | J212: Spot Awesome Nature | N212: 27.1 | O212: 18.95 | P212: 37.8 | Q212: 23.95 | S212: =S195 -> 0 | U212: =U195 -> 0 | W212: =W195 -> 0 | Y212: 0 | Z212: 0 | AA212: 0 | AB212: 0 | AC212: 0 | AD212: 0 | AE212: 0 | AF212: 0
B213: 9781681513294 | D213: 9781681512891 | F213: Space | J213: Spot Awesome Nature | N213: 27.1 | O213: 18.95 | P213: 37.8 | Q213: 23.95 | S213: =S195 -> 0 | U213: =U195 -> 0 | W213: =W195 -> 0 | Y213: 0 | Z213: 0 | AA213: 0 | AB213: 0 | AC213: 0 | AD213: 0 | AE213: 0 | AF213: 0
B214: 9781681513263 | D214: 9781681512860 | F214: Trees | J214: Spot Awesome Nature | N214: 27.1 | O214: 18.95 | P214: 37.8 | Q214: 23.95 | S214: =S195 -> 0 | U214: =U195 -> 0 | W214: =W195 -> 0 | Y214: 0 | Z214: 0 | AA214: 0 | AB214: 0 | AC214: 0 | AD214: 0 | AE214: 0 | AF214: 0
... 1852 more rows

Sheet HIDDEN (hidden)
A1: PACKAGE 1 | B1: PROMOTIONS | C1: PAYMENTS
C3: VISA
A4: $50 Amazon Gift Card | B4: Buy 1 Print Book, Get 1 Print Book FREE | C4: Mastercard
A5: $75 Amazon Gift Card | B5: Buy 1 eBook, Get 1 eBook FREE | C5: American Express
A6: $100 Amazon Gift Card | B6: $50 Amazon Gift Card | C6: Check
B7: $75 Amazon Gift Card
B8: $100 Amazon Gift Card
A11: YES/NO OPTION | B11: SUBJECTS | C11: PROCESSING OPTIONS
A13: Yes
A14: No | B14: Animals & Nature | C14: MARC Records
B15: Arts, Crafts, & Activities | C15: Bar Codes
B16: Biographies | C16: Bar Codes (Additional Set)
B17: Careers | C17: Spine Labels
B18: Culture & Religion | C18: Spine Labels (Additional Set)
B19: Current Issues | C19: QR Labels (for eBooks)
B20: Fiction | C20: Book Pockets
B21: Health | C21: Shelf List Cards
B22: High Interest | C22: Date Due Cards
B23: History | C23: Date Due Slips
B24: Language Arts | C24: Property Label
B25: Legends, Myths, & Paranormal | C25: AR Spine Label
B26: Math and Finance | C26: AR Info Label
B27: Science & Technology | C27: AR Indicator Label
B28: Social Studies | C28: Lexile Label
B29: Sports & Recreation | C29: Catalog Card Kits
C30: Theft 3M Tattle Tape
C31: Theft Checkpoint
C32: Theft RFID
